Body Name,Body,Date,Department,Beneficiary,Summary of Purpose (SeRCOP),Amount SUM,Merchant Code,Transaction Number,Supplier ID
Sandwell Metropolitan Borough Council,http://www.sandwell.gov.uk/info/200202/performance_and_spending/1079/payments_over_500,18-May-2023,Adult Social Care Transformation,LONDON CARE PLC.,Adult Social Care Transformation,1255.04,Domiciliary Personal Budget,2324P02_CR00001,140255
Sandwell Metropolitan Borough Council,http://www.sandwell.gov.uk/info/200202/performance_and_spending/1079/payments_over_500,18-May-2023,Adult Social Care Transformation,ELITE CARE 24/7 (ASC),Adult Social Care Transformation,3613.42,Domiciliary Personal Budget,2324P02_CR00002,132727
Sandwell Metropolitan Borough Council,http://www.sandwell.gov.uk/info/200202/performance_and_spending/1079/payments_over_500,19-May-2023,Adult Social Care Transformation,CARING CARE (ASC),Adult Social Care Transformation,4177.05,Domiciliary Personal Budget,2324P02_CR00003,129169
Sandwell Metropolitan Borough Council,http://www.sandwell.gov.uk/info/200202/performance_and_spending/1079/payments_over_500,18-May-2023,Adult Social Care Transformation,DHC MIDLANDS LTD,Adult Social Care Transformation,4359.39,Domiciliary Personal Budget,2324P02_CR00004,140777
Sandwell Metropolitan Borough Council,http://www.sandwell.gov.uk/info/200202/performance_and_spending/1079/payments_over_500,30-May-2023,Adult Social Care Transformation,GREAT CARE HEALTH CARE SERVICES LIMITED (ASC),Adult Social Care Transformation,5143.00,Domiciliary Personal Budget,2324P02_CR00005,130450
Sandwell Metropolitan Borough Council,http://www.sandwell.gov.uk/info/200202/performance_and_spending/1079/payments_over_500,18-May-2023,Adult Social Care Transformation,SAGECARE LTD,Adult Social Care Transformation,5185.55,Domiciliary Personal Budget,2324P02_CR00006,140325
Sandwell Metropolitan Borough Council,http://www.sandwell.gov.uk/info/200202/performance_and_spending/1079/payments_over_500,01-May-2023,Adult Social Care Transformation,TRUST IN CARE LIMITED,Adult Social Care Transformation,21675.20,Domiciliary Personal Budget,2324P02_CR00007,138595
Sandwell Metropolitan Borough Council,http://www.sandwell.gov.uk/info/200202/performance_and_spending/1079/payments_over_500,01-May-2023,Adults Social Care Capital,VINCI CONSTRUCTION LTD,Adults Social Care Capital,-5392.72,Deferred Charges/Grant Payments,2324P02_CR00008,36361
Sandwell Metropolitan Borough Council,http://www.sandwell.gov.uk/info/200202/performance_and_spending/1079/payments_over_500,01-May-2023,Adults Social Care Capital,VINCI CONSTRUCTION LTD,Adults Social Care Capital,-5120.20,Deferred Charges/Grant Payments,2324P02_CR00009,36361
Sandwell Metropolitan Borough Council,http://www.sandwell.gov.uk/info/200202/performance_and_spending/1079/payments_over_500,01-May-2023,Adults Social Care Capital,VINCI CONSTRUCTION LTD,Adults Social Care Capital,-4738.71,Deferred Charges/Grant Payments,2324P02_CR00010,36361
Sandwell Metropolitan Borough Council,http://www.sandwell.gov.uk/info/200202/performance_and_spending/1079/payments_over_500,01-May-2023,Adults Social Care Capital,VINCI CONSTRUCTION LTD,Adults Social Care Capital,-4675.39,Deferred Charges/Grant Payments,2324P02_CR00011,36361
Sandwell Metropolitan Borough Council,http://www.sandwell.gov.uk/info/200202/performance_and_spending/1079/payments_over_500,01-May-2023,Adults Social Care Capital,VINCI CONSTRUCTION LTD,Adults Social Care Capital,-4248.50,Deferred Charges/Grant Payments,2324P02_CR00012,36361
Sandwell Metropolitan Borough Council,http://www.sandwell.gov.uk/info/200202/performance_and_spending/1079/payments_over_500,03-May-2023,Adults Social Care Capital,T.A. SMITH (BUILDERS) LIMITED,Adults Social Care Capital,612.94,Deferred Charges/Grant Payments,2324P02_CR00013,89846
Sandwell Metropolitan Borough Council,http://www.sandwell.gov.uk/info/200202/performance_and_spending/1079/payments_over_500,01-May-2023,Adults Social Care Capital,DOLPHIN LIFTS MIDLANDS LTD,Adults Social Care Capital,1198.66,Deferred Charges/Grant Payments,2324P02_CR00014,123852
Sandwell Metropolitan Borough Council,http://www.sandwell.gov.uk/info/200202/performance_and_spending/1079/payments_over_500,03-May-2023,Adults Social Care Capital,T.A. SMITH (BUILDERS) LIMITED,Adults Social Care Capital,1282.61,Deferred Charges/Grant Payments,2324P02_CR00015,89846
Sandwell Metropolitan Borough Council,http://www.sandwell.gov.uk/info/200202/performance_and_spending/1079/payments_over_500,11-May-2023,Adults Social Care Capital,DOLPHIN LIFTS MIDLANDS LTD,Adults Social Care Capital,1681.54,Deferred Charges/Grant Payments,2324P02_CR00016,123852
Sandwell Metropolitan Borough Council,http://www.sandwell.gov.uk/info/200202/performance_and_spending/1079/payments_over_500,03-May-2023,Adults Social Care Capital,DOLPHIN LIFTS MIDLANDS LTD,Adults Social Care Capital,1724.87,Deferred Charges/Grant Payments,2324P02_CR00017,123852
Sandwell Metropolitan Borough Council,http://www.sandwell.gov.uk/info/200202/performance_and_spending/1079/payments_over_500,01-May-2023,Adults Social Care Capital,AXIS EUROPE PLC  ,Adults Social Care Capital,3998.65,Deferred Charges/Grant Payments,2324P02_CR00018,64946
Sandwell Metropolitan Borough Council,http://www.sandwell.gov.uk/info/200202/performance_and_spending/1079/payments_over_500,01-May-2023,Adults Social Care Capital,AXIS EUROPE PLC  ,Adults Social Care Capital,4448.34,Deferred Charges/Grant Payments,2324P02_CR00019,64946
Sandwell Metropolitan Borough Council,http://www.sandwell.gov.uk/info/200202/performance_and_spending/1079/payments_over_500,01-May-2023,Adults Social Care Capital,VINCI CONSTRUCTION LTD,Adults Social Care Capital,5155.59,Deferred Charges/Grant Payments,2324P02_CR00020,36361
Sandwell Metropolitan Borough Council,http://www.sandwell.gov.uk/info/200202/performance_and_spending/1079/payments_over_500,01-May-2023,Adults Social Care Capital,VINCI CONSTRUCTION LTD,Adults Social Care Capital,6461.26,Deferred Charges/Grant Payments,2324P02_CR00021,36361
Sandwell Metropolitan Borough Council,http://www.sandwell.gov.uk/info/200202/performance_and_spending/1079/payments_over_500,01-May-2023,Adults Social Care Capital,VINCI CONSTRUCTION LTD,Adults Social Care Capital,7116.56,Deferred Charges/Grant Payments,2324P02_CR00022,36361
Sandwell Metropolitan Borough Council,http://www.sandwell.gov.uk/info/200202/performance_and_spending/1079/payments_over_500,01-May-2023,Adults Social Care Capital,VINCI CONSTRUCTION LTD,Adults Social Care Capital,7501.99,Deferred Charges/Grant Payments,2324P02_CR00023,36361
Sandwell Metropolitan Borough Council,http://www.sandwell.gov.uk/info/200202/performance_and_spending/1079/payments_over_500,03-May-2023,Adults Social Care Capital,AXIS EUROPE PLC  ,Adults Social Care Capital,7645.55,Deferred Charges/Grant Payments,2324P02_CR00024,64946
Sandwell Metropolitan Borough Council,http://www.sandwell.gov.uk/info/200202/performance_and_spending/1079/payments_over_500,01-May-2023,Adults Social Care Capital,VINCI CONSTRUCTION LTD,Adults Social Care Capital,7805.04,Deferred Charges/Grant Payments,2324P02_CR00025,36361
Sandwell Metropolitan Borough Council,http://www.sandwell.gov.uk/info/200202/performance_and_spending/1079/payments_over_500,01-May-2023,Adults Social Care Capital,AXIS EUROPE PLC  ,Adults Social Care Capital,8431.00,Deferred Charges/Grant Payments,2324P02_CR00026,64946
Sandwell Metropolitan Borough Council,http://www.sandwell.gov.uk/info/200202/performance_and_spending/1079/payments_over_500,01-May-2023,Adults Social Care Capital,VINCI CONSTRUCTION LTD,Adults Social Care Capital,8649.28,Deferred Charges/Grant Payments,2324P02_CR00027,36361
Sandwell Metropolitan Borough Council,http://www.sandwell.gov.uk/info/200202/performance_and_spending/1079/payments_over_500,17-May-2023,Adults Social Care Capital,VINCI CONSTRUCTION LTD,Adults Social Care Capital,13494.86,Deferred Charges/Grant Payments,2324P02_CR00028,36361
Sandwell Metropolitan Borough Council,http://www.sandwell.gov.uk/info/200202/performance_and_spending/1079/payments_over_500,11-May-2023,Adults Social Care Capital,TERRY GROUP LIMITED,Adults Social Care Capital,16568.00,Deferred Charges/Grant Payments,2324P02_CR00029,77002029
Sandwell Metropolitan Borough Council,http://www.sandwell.gov.uk/info/200202/performance_and_spending/1079/payments_over_500,02-May-2023,Adults Social Care Capital,TDF DESIGN LIMITED,Adults Social Care Capital,1650.00,Deferred Charges/Grant Payments,2324P02_CR00030,10320
Sandwell Metropolitan Borough Council,http://www.sandwell.gov.uk/info/200202/performance_and_spending/1079/payments_over_500,01-May-2023,Adults Social Care Capital,ECLIPSE ACCESS SOLUTIONS LTD,Adults Social Care Capital,3395.00,Deferred Charges/Grant Payments,2324P02_CR00031,131248
Sandwell Metropolitan Borough Council,http://www.sandwell.gov.uk/info/200202/performance_and_spending/1079/payments_over_500,11-May-2023,Adults Social Care Capital,TDF DESIGN LIMITED,Adults Social Care Capital,4200.00,Deferred Charges/Grant Payments,2324P02_CR00032,10320
Sandwell Metropolitan Borough Council,http://www.sandwell.gov.uk/info/200202/performance_and_spending/1079/payments_over_500,17-May-2023,Adults Social Care Capital,HOME DESIGN,Adults Social Care Capital,5453.35,Deferred Charges/Grant Payments,2324P02_CR00033,141847
Sandwell Metropolitan Borough Council,http://www.sandwell.gov.uk/info/200202/performance_and_spending/1079/payments_over_500,01-May-2023,Adults Social Care Capital,TDF DESIGN LIMITED,Adults Social Care Capital,5923.86,Deferred Charges/Grant Payments,2324P02_CR00034,10320
Sandwell Metropolitan Borough Council,http://www.sandwell.gov.uk/info/200202/performance_and_spending/1079/payments_over_500,19-May-2023,Adults Social Care Capital,HOME DESIGN,Adults Social Care Capital,7000.00,Deferred Charges/Grant Payments,2324P02_CR00035,141847
Sandwell Metropolitan Borough Council,http://www.sandwell.gov.uk/info/200202/performance_and_spending/1079/payments_over_500,01-May-2023,Adults Social Care Capital,HOME DESIGN,Adults Social Care Capital,10000.00,Deferred Charges/Grant Payments,2324P02_CR00036,141847
Sandwell Metropolitan Borough Council,http://www.sandwell.gov.uk/info/200202/performance_and_spending/1079/payments_over_500,11-May-2023,Adults Social Care Capital,TDF DESIGN LIMITED,Adults Social Care Capital,13000.00,Deferred Charges/Grant Payments,2324P02_CR00037,10320
Sandwell Metropolitan Borough Council,http://www.sandwell.gov.uk/info/200202/performance_and_spending/1079/payments_over_500,01-May-2023,Adults Social Care Capital,TDF DESIGN LIMITED,Adults Social Care Capital,14200.00,Deferred Charges/Grant Payments,2324P02_CR00038,10320
Sandwell Metropolitan Borough Council,http://www.sandwell.gov.uk/info/200202/performance_and_spending/1079/payments_over_500,11-May-2023,Adults Social Care Capital,TDF DESIGN LIMITED,Adults Social Care Capital,15500.00,Deferred Charges/Grant Payments,2324P02_CR00039,10320
Sandwell Metropolitan Borough Council,http://www.sandwell.gov.uk/info/200202/performance_and_spending/1079/payments_over_500,18-May-2023,Adults Social Care Capital,TDF DESIGN LIMITED,Adults Social Care Capital,17750.00,Deferred Charges/Grant Payments,2324P02_CR00040,10320
Sandwell Metropolitan Borough Council,http://www.sandwell.gov.uk/info/200202/performance_and_spending/1079/payments_over_500,19-May-2023,Adults Social Care Capital,R J WISHART,Adults Social Care Capital,15561.35,Deferred Charges/Grant Payments,2324P02_CR00041,08555927
Sandwell Metropolitan Borough Council,http://www.sandwell.gov.uk/info/200202/performance_and_spending/1079/payments_over_500,19-May-2023,Adults Social Care Capital,R J WISHART,Adults Social Care Capital,20000.00,Deferred Charges/Grant Payments,2324P02_CR00042,08555927
Sandwell Metropolitan Borough Council,http://www.sandwell.gov.uk/info/200202/performance_and_spending/1079/payments_over_500,01-May-2023,Childrens Services,W V HOWE LTD,Childrens Services,-815.40,Catering Equipment,2324P02_CR00043,01052548
Sandwell Metropolitan Borough Council,http://www.sandwell.gov.uk/info/200202/performance_and_spending/1079/payments_over_500,01-May-2023,Childrens Services,NEWAVE LTD,Childrens Services,516.75,Agency Staff,2324P02_CR00044,101666
Sandwell Metropolitan Borough Council,http://www.sandwell.gov.uk/info/200202/performance_and_spending/1079/payments_over_500,01-May-2023,Childrens Services,NEWAVE LTD,Childrens Services,1341.30,Agency Staff,2324P02_CR00045,101666
Sandwell Metropolitan Borough Council,http://www.sandwell.gov.uk/info/200202/performance_and_spending/1079/payments_over_500,01-May-2023,Childrens Services,NEWAVE LTD,Childrens Services,1500.00,Agency Staff,2324P02_CR00046,101666
Sandwell Metropolitan Borough Council,http://www.sandwell.gov.uk/info/200202/performance_and_spending/1079/payments_over_500,01-May-2023,Childrens Services,NEWAVE LTD,Childrens Services,1958.00,Agency Staff,2324P02_CR00047,101666
Sandwell Metropolitan Borough Council,http://www.sandwell.gov.uk/info/200202/performance_and_spending/1079/payments_over_500,01-May-2023,Childrens Services,NEWAVE LTD,Childrens Services,3549.14,Agency Staff,2324P02_CR00048,101666
Sandwell Metropolitan Borough Council,http://www.sandwell.gov.uk/info/200202/performance_and_spending/1079/payments_over_500,01-May-2023,Childrens Services,NEWAVE LTD,Childrens Services,5572.76,Agency Staff,2324P02_CR00049,101666
Sandwell Metropolitan Borough Council,http://www.sandwell.gov.uk/info/200202/performance_and_spending/1079/payments_over_500,01-May-2023,Childrens Services,THOMAS CHARLES FACILITIES & MAINTENANCE LTD,Childrens Services,1020.00,Security,2324P02_CR00050,114170
Sandwell Metropolitan Borough Council,http://www.sandwell.gov.uk/info/200202/performance_and_spending/1079/payments_over_500,01-May-2023,Childrens Services,CHUBB FIRE & SECURITY LIMITED t/a CHUBB ELECTRONIC SECURITY,Childrens Services,1671.29,Security,2324P02_CR00051,81343
Sandwell Metropolitan Borough Council,http://www.sandwell.gov.uk/info/200202/performance_and_spending/1079/payments_over_500,01-May-2023,Childrens Services,TOTALENERGIES GAS & POWER LTD,Childrens Services,545.82,Gas,2324P02_CR00052,107605
Sandwell Metropolitan Borough Council,http://www.sandwell.gov.uk/info/200202/performance_and_spending/1079/payments_over_500,22-May-2023,Childrens Services,TOTALENERGIES GAS & POWER LTD,Childrens Services,585.31,Gas,2324P02_CR00053,107605
Sandwell Metropolitan Borough Council,http://www.sandwell.gov.uk/info/200202/performance_and_spending/1079/payments_over_500,17-May-2023,Childrens Services,TOTALENERGIES GAS & POWER LTD,Childrens Services,725.36,Gas,2324P02_CR00054,107605
Sandwell Metropolitan Borough Council,http://www.sandwell.gov.uk/info/200202/performance_and_spending/1079/payments_over_500,01-May-2023,Childrens Services,CORONA ENERGY RETAIL 2 LIMITED,Childrens Services,1443.35,Gas,2324P02_CR00055,118395
Sandwell Metropolitan Borough Council,http://www.sandwell.gov.uk/info/200202/performance_and_spending/1079/payments_over_500,01-May-2023,Childrens Services,AVANTI GAS LIMITED,Childrens Services,2770.07,Gas,2324P02_CR00056,60069
Sandwell Metropolitan Borough Council,http://www.sandwell.gov.uk/info/200202/performance_and_spending/1079/payments_over_500,01-May-2023,Childrens Services,TOTALENERGIES GAS & POWER LTD,Childrens Services,564.57,Electricity,2324P02_CR00057,107605
Sandwell Metropolitan Borough Council,http://www.sandwell.gov.uk/info/200202/performance_and_spending/1079/payments_over_500,14-May-2023,Childrens Services,TOTALENERGIES GAS & POWER LTD,Childrens Services,569.18,Electricity,2324P02_CR00058,107605
Sandwell Metropolitan Borough Council,http://www.sandwell.gov.uk/info/200202/performance_and_spending/1079/payments_over_500,01-May-2023,Childrens Services,TOTALENERGIES GAS & POWER LTD,Childrens Services,639.80,Electricity,2324P02_CR00059,107605
Sandwell Metropolitan Borough Council,http://www.sandwell.gov.uk/info/200202/performance_and_spending/1079/payments_over_500,01-May-2023,Childrens Services,TOTALENERGIES GAS & POWER LTD,Childrens Services,665.94,Electricity,2324P02_CR00060,107605
Sandwell Metropolitan Borough Council,http://www.sandwell.gov.uk/info/200202/performance_and_spending/1079/payments_over_500,01-May-2023,Childrens Services,TOTALENERGIES GAS & POWER LTD,Childrens Services,668.68,Electricity,2324P02_CR00061,107605
Sandwell Metropolitan Borough Council,http://www.sandwell.gov.uk/info/200202/performance_and_spending/1079/payments_over_500,01-May-2023,Childrens Services,EON NEXT ENERGY LTD,Childrens Services,700.49,Electricity,2324P02_CR00062,149566
Sandwell Metropolitan Borough Council,http://www.sandwell.gov.uk/info/200202/performance_and_spending/1079/payments_over_500,14-May-2023,Childrens Services,TOTALENERGIES GAS & POWER LTD,Childrens Services,737.89,Electricity,2324P02_CR00063,107605
Sandwell Metropolitan Borough Council,http://www.sandwell.gov.uk/info/200202/performance_and_spending/1079/payments_over_500,01-May-2023,Childrens Services,TOTALENERGIES GAS & POWER LTD,Childrens Services,739.55,Electricity,2324P02_CR00064,107605
Sandwell Metropolitan Borough Council,http://www.sandwell.gov.uk/info/200202/performance_and_spending/1079/payments_over_500,01-May-2023,Childrens Services,TOTALENERGIES GAS & POWER LTD,Childrens Services,1192.50,Electricity,2324P02_CR00065,107605
Sandwell Metropolitan Borough Council,http://www.sandwell.gov.uk/info/200202/performance_and_spending/1079/payments_over_500,01-May-2023,Childrens Services,TOTALENERGIES GAS & POWER LTD,Childrens Services,1266.33,Electricity,2324P02_CR00066,107605
Sandwell Metropolitan Borough Council,http://www.sandwell.gov.uk/info/200202/performance_and_spending/1079/payments_over_500,14-May-2023,Childrens Services,TOTALENERGIES GAS & POWER LTD,Childrens Services,1461.76,Electricity,2324P02_CR00067,107605
Sandwell Metropolitan Borough Council,http://www.sandwell.gov.uk/info/200202/performance_and_spending/1079/payments_over_500,01-May-2023,Childrens Services,TOTALENERGIES GAS & POWER LTD,Childrens Services,1504.76,Electricity,2324P02_CR00068,107605
Sandwell Metropolitan Borough Council,http://www.sandwell.gov.uk/info/200202/performance_and_spending/1079/payments_over_500,01-May-2023,Childrens Services,TOTALENERGIES GAS & POWER LTD,Childrens Services,2035.74,Electricity,2324P02_CR00069,107605
Sandwell Metropolitan Borough Council,http://www.sandwell.gov.uk/info/200202/performance_and_spending/1079/payments_over_500,01-May-2023,Childrens Services,TOTALENERGIES GAS & POWER LTD,Childrens Services,2182.01,Electricity,2324P02_CR00070,107605
Sandwell Metropolitan Borough Council,http://www.sandwell.gov.uk/info/200202/performance_and_spending/1079/payments_over_500,14-May-2023,Childrens Services,TOTALENERGIES GAS & POWER LTD,Childrens Services,2541.89,Electricity,2324P02_CR00071,107605
Sandwell Metropolitan Borough Council,http://www.sandwell.gov.uk/info/200202/performance_and_spending/1079/payments_over_500,14-May-2023,Childrens Services,TOTALENERGIES GAS & POWER LTD,Childrens Services,2584.95,Electricity,2324P02_CR00072,107605
Sandwell Metropolitan Borough Council,http://www.sandwell.gov.uk/info/200202/performance_and_spending/1079/payments_over_500,01-May-2023,Childrens Services,PENNYHILL PRIMARY SCHOOL,Childrens Services,6573.33,Electricity,2324P02_CR00073,73032
Sandwell Metropolitan Borough Council,http://www.sandwell.gov.uk/info/200202/performance_and_spending/1079/payments_over_500,01-May-2023,Childrens Services,CERTAS ENERGY LIMITED,Childrens Services,646.19,Oil,2324P02_CR00074,80421
Sandwell Metropolitan Borough Council,http://www.sandwell.gov.uk/info/200202/performance_and_spending/1079/payments_over_500,12-May-2023,Childrens Services,AMP BIOMASS FUEL LTD T/A AMP CLEAN ENERGY,Childrens Services,3006.15,Ingestre Hall Arts Centre.Energy Costs-Bio Energy Costs.Bio Mass Fuel.0.0.Sandwell MBC,2324P02_CR00075,128761
Sandwell Metropolitan Borough Council,http://www.sandwell.gov.uk/info/200202/performance_and_spending/1079/payments_over_500,01-May-2023,Childrens Services,GILANI ENTERPRISES LIMITED,Childrens Services,533.33,Rents,2324P02_CR00076,2696
Sandwell Metropolitan Borough Council,http://www.sandwell.gov.uk/info/200202/performance_and_spending/1079/payments_over_500,01-May-2023,Childrens Services,CUSTODIAN GROUP LTD,Childrens Services,630.00,Rents,2324P02_CR00077,151637
Sandwell Metropolitan Borough Council,http://www.sandwell.gov.uk/info/200202/performance_and_spending/1079/payments_over_500,02-May-2023,Childrens Services,CUSTODIAN GROUP LTD,Childrens Services,630.00,Rents,2324P02_CR00078,151637
Sandwell Metropolitan Borough Council,http://www.sandwell.gov.uk/info/200202/performance_and_spending/1079/payments_over_500,08-May-2023,Childrens Services,CUSTODIAN GROUP LTD,Childrens Services,630.00,Rents,2324P02_CR00079,151637
Sandwell Metropolitan Borough Council,http://www.sandwell.gov.uk/info/200202/performance_and_spending/1079/payments_over_500,08-May-2023,Childrens Services,CUSTODIAN GROUP LTD,Childrens Services,630.00,Rents,2324P02_CR00080,151637
Sandwell Metropolitan Borough Council,http://www.sandwell.gov.uk/info/200202/performance_and_spending/1079/payments_over_500,08-May-2023,Childrens Services,CUSTODIAN GROUP LTD,Childrens Services,630.00,Rents,2324P02_CR00081,151637
Sandwell Metropolitan Borough Council,http://www.sandwell.gov.uk/info/200202/performance_and_spending/1079/payments_over_500,08-May-2023,Childrens Services,CUSTODIAN GROUP LTD,Childrens Services,630.00,Rents,2324P02_CR00082,151637
Sandwell Metropolitan Borough Council,http://www.sandwell.gov.uk/info/200202/performance_and_spending/1079/payments_over_500,08-May-2023,Childrens Services,CUSTODIAN GROUP LTD,Childrens Services,630.00,Rents,2324P02_CR00083,151637
Sandwell Metropolitan Borough Council,http://www.sandwell.gov.uk/info/200202/performance_and_spending/1079/payments_over_500,03-May-2023,Childrens Services,CUSTODIAN GROUP LTD,Childrens Services,630.00,Rents,2324P02_CR00084,151637
Sandwell Metropolitan Borough Council,http://www.sandwell.gov.uk/info/200202/performance_and_spending/1079/payments_over_500,03-May-2023,Childrens Services,CUSTODIAN GROUP LTD,Childrens Services,630.00,Rents,2324P02_CR00085,151637
Sandwell Metropolitan Borough Council,http://www.sandwell.gov.uk/info/200202/performance_and_spending/1079/payments_over_500,03-May-2023,Childrens Services,CUSTODIAN GROUP LTD,Childrens Services,630.00,Rents,2324P02_CR00086,151637
Sandwell Metropolitan Borough Council,http://www.sandwell.gov.uk/info/200202/performance_and_spending/1079/payments_over_500,03-May-2023,Childrens Services,CUSTODIAN GROUP LTD,Childrens Services,630.00,Rents,2324P02_CR00087,151637
Sandwell Metropolitan Borough Council,http://www.sandwell.gov.uk/info/200202/performance_and_spending/1079/payments_over_500,03-May-2023,Childrens Services,CUSTODIAN GROUP LTD,Childrens Services,630.00,Rents,2324P02_CR00088,151637
Sandwell Metropolitan Borough Council,http://www.sandwell.gov.uk/info/200202/performance_and_spending/1079/payments_over_500,03-May-2023,Childrens Services,CUSTODIAN GROUP LTD,Childrens Services,630.00,Rents,2324P02_CR00089,151637
Sandwell Metropolitan Borough Council,http://www.sandwell.gov.uk/info/200202/performance_and_spending/1079/payments_over_500,03-May-2023,Childrens Services,CUSTODIAN GROUP LTD,Childrens Services,630.00,Rents,2324P02_CR00090,151637
Sandwell Metropolitan Borough Council,http://www.sandwell.gov.uk/info/200202/performance_and_spending/1079/payments_over_500,03-May-2023,Childrens Services,CUSTODIAN GROUP LTD,Childrens Services,630.00,Rents,2324P02_CR00091,151637
Sandwell Metropolitan Borough Council,http://www.sandwell.gov.uk/info/200202/performance_and_spending/1079/payments_over_500,03-May-2023,Childrens Services,CUSTODIAN GROUP LTD,Childrens Services,630.00,Rents,2324P02_CR00092,151637
Sandwell Metropolitan Borough Council,http://www.sandwell.gov.uk/info/200202/performance_and_spending/1079/payments_over_500,03-May-2023,Childrens Services,CUSTODIAN GROUP LTD,Childrens Services,630.00,Rents,2324P02_CR00093,151637
Sandwell Metropolitan Borough Council,http://www.sandwell.gov.uk/info/200202/performance_and_spending/1079/payments_over_500,01-May-2023,Childrens Services,GILANI ENTERPRISES LIMITED,Childrens Services,700.00,Rents,2324P02_CR00094,2696
Sandwell Metropolitan Borough Council,http://www.sandwell.gov.uk/info/200202/performance_and_spending/1079/payments_over_500,01-May-2023,Childrens Services,TRH WALSALL LTD,Childrens Services,1000.08,Rents,2324P02_CR00095,85648
Sandwell Metropolitan Borough Council,http://www.sandwell.gov.uk/info/200202/performance_and_spending/1079/payments_over_500,01-May-2023,Childrens Services,GILANI ENTERPRISES LIMITED,Childrens Services,1066.67,Rents,2324P02_CR00096,2696
Sandwell Metropolitan Borough Council,http://www.sandwell.gov.uk/info/200202/performance_and_spending/1079/payments_over_500,01-May-2023,Childrens Services,TRH WALSALL LTD,Childrens Services,1166.76,Rents,2324P02_CR00097,85648
Sandwell Metropolitan Borough Council,http://www.sandwell.gov.uk/info/200202/performance_and_spending/1079/payments_over_500,01-May-2023,Childrens Services,GILANI ENTERPRISES LIMITED,Childrens Services,1200.00,Rents,2324P02_CR00098,2696
Sandwell Metropolitan Borough Council,http://www.sandwell.gov.uk/info/200202/performance_and_spending/1079/payments_over_500,01-May-2023,Childrens Services,GILANI ENTERPRISES LIMITED,Childrens Services,1200.00,Rents,2324P02_CR00099,2696
Sandwell Metropolitan Borough Council,http://www.sandwell.gov.uk/info/200202/performance_and_spending/1079/payments_over_500,01-May-2023,Childrens Services,GILANI ENTERPRISES LIMITED,Childrens Services,1266.67,Rents,2324P02_CR00100,2696
Sandwell Metropolitan Borough Council,http://www.sandwell.gov.uk/info/200202/performance_and_spending/1079/payments_over_500,01-May-2023,Childrens Services,GILANI ENTERPRISES LIMITED,Childrens Services,1375.00,Rents,2324P02_CR00101,2696
Sandwell Metropolitan Borough Council,http://www.sandwell.gov.uk/info/200202/performance_and_spending/1079/payments_over_500,01-May-2023,Childrens Services,GILANI ENTERPRISES LIMITED,Childrens Services,1800.00,Rents,2324P02_CR00102,2696
Sandwell Metropolitan Borough Council,http://www.sandwell.gov.uk/info/200202/performance_and_spending/1079/payments_over_500,01-May-2023,Childrens Services,GILANI ENTERPRISES LIMITED,Childrens Services,2200.00,Rents,2324P02_CR00103,2696
Sandwell Metropolitan Borough Council,http://www.sandwell.gov.uk/info/200202/performance_and_spending/1079/payments_over_500,01-May-2023,Childrens Services,GILANI ENTERPRISES LIMITED,Childrens Services,2200.00,Rents,2324P02_CR00104,2696
Sandwell Metropolitan Borough Council,http://www.sandwell.gov.uk/info/200202/performance_and_spending/1079/payments_over_500,01-May-2023,Childrens Services,GILANI ENTERPRISES LIMITED,Childrens Services,2200.00,Rents,2324P02_CR00105,2696
Sandwell Metropolitan Borough Council,http://www.sandwell.gov.uk/info/200202/performance_and_spending/1079/payments_over_500,01-May-2023,Childrens Services,GILANI ENTERPRISES LIMITED,Childrens Services,2200.00,Rents,2324P02_CR00106,2696
Sandwell Metropolitan Borough Council,http://www.sandwell.gov.uk/info/200202/performance_and_spending/1079/payments_over_500,01-May-2023,Childrens Services,GILANI ENTERPRISES LIMITED,Childrens Services,2200.00,Rents,2324P02_CR00107,2696
Sandwell Metropolitan Borough Council,http://www.sandwell.gov.uk/info/200202/performance_and_spending/1079/payments_over_500,01-May-2023,Childrens Services,GILANI ENTERPRISES LIMITED,Childrens Services,2200.00,Rents,2324P02_CR00108,2696
Sandwell Metropolitan Borough Council,http://www.sandwell.gov.uk/info/200202/performance_and_spending/1079/payments_over_500,01-May-2023,Childrens Services,GILANI ENTERPRISES LIMITED,Childrens Services,2600.00,Rents,2324P02_CR00109,2696
Sandwell Metropolitan Borough Council,http://www.sandwell.gov.uk/info/200202/performance_and_spending/1079/payments_over_500,01-May-2023,Childrens Services,GILANI ENTERPRISES LIMITED,Childrens Services,3300.00,Rents,2324P02_CR00110,2696
Sandwell Metropolitan Borough Council,http://www.sandwell.gov.uk/info/200202/performance_and_spending/1079/payments_over_500,01-May-2023,Childrens Services,GWYNEDD COUNCIL,Childrens Services,6027.09,Business Rates,2324P02_CR00111,01513572
Sandwell Metropolitan Borough Council,http://www.sandwell.gov.uk/info/200202/performance_and_spending/1079/payments_over_500,01-May-2023,Childrens Services,STAFFORD BOROUGH COUNCIL,Childrens Services,18793.59,Business Rates,2324P02_CR00112,01571536
Sandwell Metropolitan Borough Council,http://www.sandwell.gov.uk/info/200202/performance_and_spending/1079/payments_over_500,01-May-2023,Childrens Services,WYRE FOREST DISTRICT COUNCIL,Childrens Services,20708.50,Business Rates,2324P02_CR00113,5163
Sandwell Metropolitan Borough Council,http://www.sandwell.gov.uk/info/200202/performance_and_spending/1079/payments_over_500,01-May-2023,Childrens Services,WATER PLUS SELECT LIMITED,Childrens Services,529.98,Water Services,2324P02_CR00114,129644
Sandwell Metropolitan Borough Council,http://www.sandwell.gov.uk/info/200202/performance_and_spending/1079/payments_over_500,01-May-2023,Childrens Services,THOMAS CHARLES FACILITIES & MAINTENANCE LTD,Childrens Services,1170.00,Contract Cleaning,2324P02_CR00115,114170
Sandwell Metropolitan Borough Council,http://www.sandwell.gov.uk/info/200202/performance_and_spending/1079/payments_over_500,01-May-2023,Childrens Services,THOMAS CHARLES FACILITIES & MAINTENANCE LTD,Childrens Services,1560.00,Contract Cleaning,2324P02_CR00116,114170
Sandwell Metropolitan Borough Council,http://www.sandwell.gov.uk/info/200202/performance_and_spending/1079/payments_over_500,01-May-2023,Childrens Services,THOMAS CHARLES FACILITIES & MAINTENANCE LTD,Childrens Services,1920.00,Contract Cleaning,2324P02_CR00117,114170
Sandwell Metropolitan Borough Council,http://www.sandwell.gov.uk/info/200202/performance_and_spending/1079/payments_over_500,01-May-2023,Childrens Services,THOMAS CHARLES FACILITIES & MAINTENANCE LTD,Childrens Services,1920.00,Contract Cleaning,2324P02_CR00118,114170
Sandwell Metropolitan Borough Council,http://www.sandwell.gov.uk/info/200202/performance_and_spending/1079/payments_over_500,01-May-2023,Childrens Services,THOMAS CHARLES FACILITIES & MAINTENANCE LTD,Childrens Services,1920.00,Contract Cleaning,2324P02_CR00119,114170
Sandwell Metropolitan Borough Council,http://www.sandwell.gov.uk/info/200202/performance_and_spending/1079/payments_over_500,01-May-2023,Childrens Services,THOMAS CHARLES FACILITIES & MAINTENANCE LTD,Childrens Services,2880.00,Contract Cleaning,2324P02_CR00120,114170
Sandwell Metropolitan Borough Council,http://www.sandwell.gov.uk/info/200202/performance_and_spending/1079/payments_over_500,01-May-2023,Childrens Services,SHROPSHIRE COUNCIL,Childrens Services,2497.44,External Contract Hire,2324P02_CR00121,01030303
Sandwell Metropolitan Borough Council,http://www.sandwell.gov.uk/info/200202/performance_and_spending/1079/payments_over_500,01-May-2023,Childrens Services,SHROPSHIRE COUNCIL,Childrens Services,4616.48,External Contract Hire,2324P02_CR00122,01030303
Sandwell Metropolitan Borough Council,http://www.sandwell.gov.uk/info/200202/performance_and_spending/1079/payments_over_500,01-May-2023,Childrens Services,SHROPSHIRE COUNCIL,Childrens Services,8731.80,External Contract Hire,2324P02_CR00123,01030303
Sandwell Metropolitan Borough Council,http://www.sandwell.gov.uk/info/200202/performance_and_spending/1079/payments_over_500,01-May-2023,Childrens Services,DROACH TRAVEL LTD,Childrens Services,62044.48,Public Transport,2324P02_CR00124,06002707
Sandwell Metropolitan Borough Council,http://www.sandwell.gov.uk/info/200202/performance_and_spending/1079/payments_over_500,01-May-2023,Childrens Services,COUNTY CARS (2003) LIMITED,Childrens Services,517850.01,Public Transport,2324P02_CR00125,06002387
Sandwell Metropolitan Borough Council,http://www.sandwell.gov.uk/info/200202/performance_and_spending/1079/payments_over_500,01-May-2023,Childrens Services,FORWARD EDUCATION TRUST,Childrens Services,500.00,Equipment & Furniture ,2324P02_CR00126,162985
Sandwell Metropolitan Borough Council,http://www.sandwell.gov.uk/info/200202/performance_and_spending/1079/payments_over_500,01-May-2023,Childrens Services,GRESHAM OFFICE FURNITURE LTD,Childrens Services,606.60,Equipment & Furniture ,2324P02_CR00127,93465
Sandwell Metropolitan Borough Council,http://www.sandwell.gov.uk/info/200202/performance_and_spending/1079/payments_over_500,01-May-2023,Childrens Services,INGESTRE ORANGERY AND GARDENS,Childrens Services,650.00,Materials & Consumables,2324P02_CR00128,127331
Sandwell Metropolitan Borough Council,http://www.sandwell.gov.uk/info/200202/performance_and_spending/1079/payments_over_500,01-May-2023,Childrens Services,INGESTRE ORANGERY AND GARDENS,Childrens Services,650.00,Materials & Consumables,2324P02_CR00129,127331
Sandwell Metropolitan Borough Council,http://www.sandwell.gov.uk/info/200202/performance_and_spending/1079/payments_over_500,01-May-2023,Childrens Services,CITRON HYGIENE UK LTD,Childrens Services,1078.44,Materials & Consumables,2324P02_CR00130,140849
Sandwell Metropolitan Borough Council,http://www.sandwell.gov.uk/info/200202/performance_and_spending/1079/payments_over_500,01-May-2023,Childrens Services,CITRON HYGIENE UK LTD,Childrens Services,1229.40,Materials & Consumables,2324P02_CR00131,140849
Sandwell Metropolitan Borough Council,http://www.sandwell.gov.uk/info/200202/performance_and_spending/1079/payments_over_500,16-May-2023,Childrens Services,CASTELL HOWELL FOODS LTD,Childrens Services,510.27,Catering Provisions,2324P02_CR00132,163660
Sandwell Metropolitan Borough Council,http://www.sandwell.gov.uk/info/200202/performance_and_spending/1079/payments_over_500,01-May-2023,Childrens Services,BIDFOOD,Childrens Services,690.59,Catering Provisions,2324P02_CR00133,164984
Sandwell Metropolitan Borough Council,http://www.sandwell.gov.uk/info/200202/performance_and_spending/1079/payments_over_500,01-May-2023,Childrens Services,BIDFOOD,Childrens Services,796.41,Catering Provisions,2324P02_CR00134,164984
Sandwell Metropolitan Borough Council,http://www.sandwell.gov.uk/info/200202/performance_and_spending/1079/payments_over_500,15-May-2023,Childrens Services,BIDFOOD,Childrens Services,1065.20,Catering Provisions,2324P02_CR00135,164984
Sandwell Metropolitan Borough Council,http://www.sandwell.gov.uk/info/200202/performance_and_spending/1079/payments_over_500,01-May-2023,Childrens Services,W V HOWE LTD,Childrens Services,3912.44,Catering Equipment,2324P02_CR00136,01052548
Sandwell Metropolitan Borough Council,http://www.sandwell.gov.uk/info/200202/performance_and_spending/1079/payments_over_500,04-May-2023,Childrens Services,SHOE ZONE LTD                ,Childrens Services,908.74,Protective Clothing & Uniforms,2324P02_CR00137,01699491
Sandwell Metropolitan Borough Council,http://www.sandwell.gov.uk/info/200202/performance_and_spending/1079/payments_over_500,01-May-2023,Childrens Services,SHOE ZONE LTD         ,Childrens Services,2052.49,Protective Clothing & Uniforms,2324P02_CR00138,01699491
Sandwell Metropolitan Borough Council,http://www.sandwell.gov.uk/info/200202/performance_and_spending/1079/payments_over_500,01-May-2023,Childrens Services,IRON MAIDENS COMMERCIAL LAUNDRY LIMITED,Childrens Services,500.57,Laundry,2324P02_CR00139,124628
Sandwell Metropolitan Borough Council,http://www.sandwell.gov.uk/info/200202/performance_and_spending/1079/payments_over_500,01-May-2023,Childrens Services,PRINT DIRECT LIMITED,Childrens Services,588.50,"Printing, Stationery & General Office Expenses",2324P02_CR00140,118575
Sandwell Metropolitan Borough Council,http://www.sandwell.gov.uk/info/200202/performance_and_spending/1079/payments_over_500,01-May-2023,Childrens Services,THE GIFT VOUCHER SHOP LIMITED,Childrens Services,582.12,Operational Services ,2324P02_CR00141,111545
Sandwell Metropolitan Borough Council,http://www.sandwell.gov.uk/info/200202/performance_and_spending/1079/payments_over_500,01-May-2023,Childrens Services,THE GIFT VOUCHER SHOP LIMITED,Childrens Services,735.00,Operational Services ,2324P02_CR00142,111545
Sandwell Metropolitan Borough Council,http://www.sandwell.gov.uk/info/200202/performance_and_spending/1079/payments_over_500,01-May-2023,Childrens Services,OCR,Childrens Services,527.50,Externally Purchased Professional Services ,2324P02_CR00143,01620492
Sandwell Metropolitan Borough Council,http://www.sandwell.gov.uk/info/200202/performance_and_spending/1079/payments_over_500,01-May-2023,Childrens Services,GATEWAY QUALIFICATIONS,Childrens Services,532.00,Externally Purchased Professional Services ,2324P02_CR00144,151038
Sandwell Metropolitan Borough Council,http://www.sandwell.gov.uk/info/200202/performance_and_spending/1079/payments_over_500,01-May-2023,Childrens Services,LEARNPLAY FOUNDATION LTD,Childrens Services,575.00,Externally Purchased Professional Services ,2324P02_CR00145,86525
Sandwell Metropolitan Borough Council,http://www.sandwell.gov.uk/info/200202/performance_and_spending/1079/payments_over_500,01-May-2023,Childrens Services,NET BUILDER LIMITED,Childrens Services,612.12,Externally Purchased Professional Services ,2324P02_CR00146,139019
Sandwell Metropolitan Borough Council,http://www.sandwell.gov.uk/info/200202/performance_and_spending/1079/payments_over_500,01-May-2023,Childrens Services,NCFE,Childrens Services,728.00,Externally Purchased Professional Services ,2324P02_CR00147,6230
Sandwell Metropolitan Borough Council,http://www.sandwell.gov.uk/info/200202/performance_and_spending/1079/payments_over_500,01-May-2023,Childrens Services,ELLA SAVELL-BOSS LTD,Childrens Services,775.00,Externally Purchased Professional Services ,2324P02_CR00148,165503
Sandwell Metropolitan Borough Council,http://www.sandwell.gov.uk/info/200202/performance_and_spending/1079/payments_over_500,01-May-2023,Childrens Services,LEARNPLAY FOUNDATION LTD,Childrens Services,775.00,Externally Purchased Professional Services ,2324P02_CR00149,86525
Sandwell Metropolitan Borough Council,http://www.sandwell.gov.uk/info/200202/performance_and_spending/1079/payments_over_500,01-May-2023,Childrens Services,SERENITY TANNING & BEAUTY,Childrens Services,800.00,Externally Purchased Professional Services ,2324P02_CR00150,115682
Sandwell Metropolitan Borough Council,http://www.sandwell.gov.uk/info/200202/performance_and_spending/1079/payments_over_500,01-May-2023,Childrens Services,FIRST RESPONSE (FIRST AID) LTD,Childrens Services,875.00,Externally Purchased Professional Services ,2324P02_CR00151,57372
Sandwell Metropolitan Borough Council,http://www.sandwell.gov.uk/info/200202/performance_and_spending/1079/payments_over_500,01-May-2023,Childrens Services,FIRST RESPONSE (FIRST AID) LTD,Childrens Services,875.00,Externally Purchased Professional Services ,2324P02_CR00152,57372
Sandwell Metropolitan Borough Council,http://www.sandwell.gov.uk/info/200202/performance_and_spending/1079/payments_over_500,01-May-2023,Childrens Services,EURO SHAF TRAINING SERVICES LIMITED,Childrens Services,901.00,Externally Purchased Professional Services ,2324P02_CR00153,76260
Sandwell Metropolitan Borough Council,http://www.sandwell.gov.uk/info/200202/performance_and_spending/1079/payments_over_500,01-May-2023,Childrens Services,EURO SHAF TRAINING SERVICES LIMITED,Childrens Services,901.00,Externally Purchased Professional Services ,2324P02_CR00154,76260
Sandwell Metropolitan Borough Council,http://www.sandwell.gov.uk/info/200202/performance_and_spending/1079/payments_over_500,01-May-2023,Childrens Services,EURO SHAF TRAINING SERVICES LIMITED,Childrens Services,901.00,Externally Purchased Professional Services ,2324P02_CR00155,76260
Sandwell Metropolitan Borough Council,http://www.sandwell.gov.uk/info/200202/performance_and_spending/1079/payments_over_500,22-May-2023,Childrens Services,EURO SHAF TRAINING SERVICES LIMITED,Childrens Services,901.00,Externally Purchased Professional Services ,2324P02_CR00156,76260
Sandwell Metropolitan Borough Council,http://www.sandwell.gov.uk/info/200202/performance_and_spending/1079/payments_over_500,05-May-2023,Childrens Services,TOPPS MANAGEMENT & SUPPORT SERVICES LTD,Childrens Services,996.94,Externally Purchased Professional Services ,2324P02_CR00157,68846
Sandwell Metropolitan Borough Council,http://www.sandwell.gov.uk/info/200202/performance_and_spending/1079/payments_over_500,05-May-2023,Childrens Services,TOPPS MANAGEMENT & SUPPORT SERVICES LTD,Childrens Services,996.94,Externally Purchased Professional Services ,2324P02_CR00158,68846
Sandwell Metropolitan Borough Council,http://www.sandwell.gov.uk/info/200202/performance_and_spending/1079/payments_over_500,05-May-2023,Childrens Services,TOPPS MANAGEMENT & SUPPORT SERVICES LTD,Childrens Services,996.94,Externally Purchased Professional Services ,2324P02_CR00159,68846
Sandwell Metropolitan Borough Council,http://www.sandwell.gov.uk/info/200202/performance_and_spending/1079/payments_over_500,05-May-2023,Childrens Services,TOPPS MANAGEMENT & SUPPORT SERVICES LTD,Childrens Services,996.94,Externally Purchased Professional Services ,2324P02_CR00160,68846
Sandwell Metropolitan Borough Council,http://www.sandwell.gov.uk/info/200202/performance_and_spending/1079/payments_over_500,05-May-2023,Childrens Services,TOPPS MANAGEMENT & SUPPORT SERVICES LTD,Childrens Services,996.94,Externally Purchased Professional Services ,2324P02_CR00161,68846
Sandwell Metropolitan Borough Council,http://www.sandwell.gov.uk/info/200202/performance_and_spending/1079/payments_over_500,05-May-2023,Childrens Services,TOPPS MANAGEMENT & SUPPORT SERVICES LTD,Childrens Services,996.94,Externally Purchased Professional Services ,2324P02_CR00162,68846
Sandwell Metropolitan Borough Council,http://www.sandwell.gov.uk/info/200202/performance_and_spending/1079/payments_over_500,01-May-2023,Childrens Services,TOPPS MANAGEMENT & SUPPORT SERVICES LTD,Childrens Services,996.94,Externally Purchased Professional Services ,2324P02_CR00163,68846
Sandwell Metropolitan Borough Council,http://www.sandwell.gov.uk/info/200202/performance_and_spending/1079/payments_over_500,01-May-2023,Childrens Services,TOPPS MANAGEMENT & SUPPORT SERVICES LTD,Childrens Services,996.94,Externally Purchased Professional Services ,2324P02_CR00164,68846
Sandwell Metropolitan Borough Council,http://www.sandwell.gov.uk/info/200202/performance_and_spending/1079/payments_over_500,01-May-2023,Childrens Services,TOPPS MANAGEMENT & SUPPORT SERVICES LTD,Childrens Services,996.94,Externally Purchased Professional Services ,2324P02_CR00165,68846
Sandwell Metropolitan Borough Council,http://www.sandwell.gov.uk/info/200202/performance_and_spending/1079/payments_over_500,22-May-2023,Childrens Services,HEART & SOUL COMMUNITY CIC LTD,Childrens Services,1248.16,Externally Purchased Professional Services ,2324P02_CR00166,133378
Sandwell Metropolitan Borough Council,http://www.sandwell.gov.uk/info/200202/performance_and_spending/1079/payments_over_500,22-May-2023,Childrens Services,HEART & SOUL COMMUNITY CIC LTD,Childrens Services,1248.16,Externally Purchased Professional Services ,2324P02_CR00167,133378
Sandwell Metropolitan Borough Council,http://www.sandwell.gov.uk/info/200202/performance_and_spending/1079/payments_over_500,22-May-2023,Childrens Services,HEART & SOUL COMMUNITY CIC LTD,Childrens Services,1248.16,Externally Purchased Professional Services ,2324P02_CR00168,133378
Sandwell Metropolitan Borough Council,http://www.sandwell.gov.uk/info/200202/performance_and_spending/1079/payments_over_500,22-May-2023,Childrens Services,HEART & SOUL COMMUNITY CIC LTD,Childrens Services,1248.16,Externally Purchased Professional Services ,2324P02_CR00169,133378
Sandwell Metropolitan Borough Council,http://www.sandwell.gov.uk/info/200202/performance_and_spending/1079/payments_over_500,01-May-2023,Childrens Services,DMR SERVICES LTD,Childrens Services,1268.00,Externally Purchased Professional Services ,2324P02_CR00170,7974
Sandwell Metropolitan Borough Council,http://www.sandwell.gov.uk/info/200202/performance_and_spending/1079/payments_over_500,01-May-2023,Childrens Services,MOAT FARM INFANTS SCHOOL             ,Childrens Services,1500.00,Externally Purchased Professional Services ,2324P02_CR00171,13623
Sandwell Metropolitan Borough Council,http://www.sandwell.gov.uk/info/200202/performance_and_spending/1079/payments_over_500,16-May-2023,Childrens Services,TRIPLE P UK LTD,Childrens Services,2398.83,Externally Purchased Professional Services ,2324P02_CR00172,83730
Sandwell Metropolitan Borough Council,http://www.sandwell.gov.uk/info/200202/performance_and_spending/1079/payments_over_500,01-May-2023,Childrens Services,DIGBETH DINING CLUB CIC,Childrens Services,2880.00,Externally Purchased Professional Services ,2324P02_CR00173,153646
Sandwell Metropolitan Borough Council,http://www.sandwell.gov.uk/info/200202/performance_and_spending/1079/payments_over_500,16-May-2023,Childrens Services,WONDE LTD,Childrens Services,9965.50,Externally Purchased Professional Services ,2324P02_CR00174,149233
Sandwell Metropolitan Borough Council,http://www.sandwell.gov.uk/info/200202/performance_and_spending/1079/payments_over_500,22-May-2023,Childrens Services,SIPS EDUCATION LTD,Childrens Services,25500.00,Contract Payments,2324P02_CR00175,110784
Sandwell Metropolitan Borough Council,http://www.sandwell.gov.uk/info/200202/performance_and_spending/1079/payments_over_500,15-May-2023,Childrens Services,NATIONAL CONSORTIUM FOR EXAMINATION RESULTS CIC,Childrens Services,14316.46,ICT ,2324P02_CR00176,107509
Sandwell Metropolitan Borough Council,http://www.sandwell.gov.uk/info/200202/performance_and_spending/1079/payments_over_500,01-May-2023,Childrens Services,GROUP ACCOMMODATION LTD,Childrens Services,510.00,Advertising & Publicity,2324P02_CR00177,109445
Sandwell Metropolitan Borough Council,http://www.sandwell.gov.uk/info/200202/performance_and_spending/1079/payments_over_500,01-May-2023,Childrens Services,GROUP ACCOMMODATION LTD,Childrens Services,510.00,Advertising & Publicity,2324P02_CR00178,109445
Sandwell Metropolitan Borough Council,http://www.sandwell.gov.uk/info/200202/performance_and_spending/1079/payments_over_500,01-May-2023,Childrens Services,SPOTON.NET LIMITED,Childrens Services,540.00,Advertising & Publicity,2324P02_CR00179,128844
Sandwell Metropolitan Borough Council,http://www.sandwell.gov.uk/info/200202/performance_and_spending/1079/payments_over_500,18-May-2023,Childrens Services,ADCS LTD,Childrens Services,893.00,Conference Expenses,2324P02_CR00180,3146
Sandwell Metropolitan Borough Council,http://www.sandwell.gov.uk/info/200202/performance_and_spending/1079/payments_over_500,10-May-2023,Childrens Services,PROSPECTS SERVICES LIMITED,Childrens Services,4089.92,Grant Payments,2324P02_CR00181,01721288
Sandwell Metropolitan Borough Council,http://www.sandwell.gov.uk/info/200202/performance_and_spending/1079/payments_over_500,01-May-2023,Childrens Services,ADVIZA,Childrens Services,2112.00,Subscriptions,2324P02_CR00182,124119
Sandwell Metropolitan Borough Council,http://www.sandwell.gov.uk/info/200202/performance_and_spending/1079/payments_over_500,01-May-2023,Childrens Services,HANBURY PRIMARY SCHOOL,Childrens Services,500.00,Grants,2324P02_CR00183,01734408
Sandwell Metropolitan Borough Council,http://www.sandwell.gov.uk/info/200202/performance_and_spending/1079/payments_over_500,01-May-2023,Childrens Services,HANBURY PRIMARY SCHOOL,Childrens Services,500.00,Grants,2324P02_CR00184,01734408
Sandwell Metropolitan Borough Council,http://www.sandwell.gov.uk/info/200202/performance_and_spending/1079/payments_over_500,01-May-2023,Childrens Services,HANBURY PRIMARY SCHOOL,Childrens Services,500.00,Grants,2324P02_CR00185,01734408
Sandwell Metropolitan Borough Council,http://www.sandwell.gov.uk/info/200202/performance_and_spending/1079/payments_over_500,01-May-2023,Childrens Services,MOAT FARM INFANTS SCHOOL             ,Childrens Services,500.00,Grants,2324P02_CR00186,13623
Sandwell Metropolitan Borough Council,http://www.sandwell.gov.uk/info/200202/performance_and_spending/1079/payments_over_500,01-May-2023,Childrens Services,MOAT FARM INFANTS SCHOOL             ,Childrens Services,500.00,Grants,2324P02_CR00187,13623
Sandwell Metropolitan Borough Council,http://www.sandwell.gov.uk/info/200202/performance_and_spending/1079/payments_over_500,01-May-2023,Childrens Services,LYNG PRIMARY SCHOOL       ,Childrens Services,1000.00,Grants,2324P02_CR00188,21030682
Sandwell Metropolitan Borough Council,http://www.sandwell.gov.uk/info/200202/performance_and_spending/1079/payments_over_500,01-May-2023,Childrens Services,LYNG PRIMARY SCHOOL         ,Childrens Services,1000.00,Grants,2324P02_CR00189,21030682
Sandwell Metropolitan Borough Council,http://www.sandwell.gov.uk/info/200202/performance_and_spending/1079/payments_over_500,01-May-2023,Childrens Services,CHRIST CHURCH C OF E PRIMARY SCHOOL,Childrens Services,1500.00,Grants,2324P02_CR00190,1705
Sandwell Metropolitan Borough Council,http://www.sandwell.gov.uk/info/200202/performance_and_spending/1079/payments_over_500,01-May-2023,Childrens Services,HANBURY PRIMARY SCHOOL,Childrens Services,1500.00,Grants,2324P02_CR00191,01734408
Sandwell Metropolitan Borough Council,http://www.sandwell.gov.uk/info/200202/performance_and_spending/1079/payments_over_500,01-May-2023,Childrens Services,HANBURY PRIMARY SCHOOL,Childrens Services,1500.00,Grants,2324P02_CR00192,01734408
Sandwell Metropolitan Borough Council,http://www.sandwell.gov.uk/info/200202/performance_and_spending/1079/payments_over_500,01-May-2023,Childrens Services,HANBURY PRIMARY SCHOOL,Childrens Services,1500.00,Grants,2324P02_CR00193,01734408
Sandwell Metropolitan Borough Council,http://www.sandwell.gov.uk/info/200202/performance_and_spending/1079/payments_over_500,01-May-2023,Childrens Services,MOAT FARM INFANTS SCHOOL             ,Childrens Services,1500.00,Grants,2324P02_CR00194,13623
Sandwell Metropolitan Borough Council,http://www.sandwell.gov.uk/info/200202/performance_and_spending/1079/payments_over_500,01-May-2023,Childrens Services,MOAT FARM INFANTS SCHOOL             ,Childrens Services,1500.00,Grants,2324P02_CR00195,13623
Sandwell Metropolitan Borough Council,http://www.sandwell.gov.uk/info/200202/performance_and_spending/1079/payments_over_500,01-May-2023,Childrens Services,THE PRIORY PRIMARY,Childrens Services,1500.00,Grants,2324P02_CR00196,01746051
Sandwell Metropolitan Borough Council,http://www.sandwell.gov.uk/info/200202/performance_and_spending/1079/payments_over_500,01-May-2023,Childrens Services,ILEYS COMMUNITY ASSOCIATION,Childrens Services,1893.21,Grants,2324P02_CR00197,88247
Sandwell Metropolitan Borough Council,http://www.sandwell.gov.uk/info/200202/performance_and_spending/1079/payments_over_500,01-May-2023,Childrens Services,HM PRISON AND PROBATION SERVICE,Childrens Services,2763.00,Other Establishments,2324P02_CR00198,134815
Sandwell Metropolitan Borough Council,http://www.sandwell.gov.uk/info/200202/performance_and_spending/1079/payments_over_500,01-May-2023,Childrens Services,HM PRISON AND PROBATION SERVICE,Childrens Services,9517.00,Other Establishments,2324P02_CR00199,134815
Sandwell Metropolitan Borough Council,http://www.sandwell.gov.uk/info/200202/performance_and_spending/1079/payments_over_500,01-May-2023,Childrens Services,HM PRISON AND PROBATION SERVICE,Childrens Services,9517.00,Other Establishments,2324P02_CR00200,134815
Sandwell Metropolitan Borough Council,http://www.sandwell.gov.uk/info/200202/performance_and_spending/1079/payments_over_500,01-May-2023,Childrens Services,HM PRISON AND PROBATION SERVICE,Childrens Services,23870.00,Other Establishments,2324P02_CR00201,134815
Sandwell Metropolitan Borough Council,http://www.sandwell.gov.uk/info/200202/performance_and_spending/1079/payments_over_500,01-May-2023,Childrens Services,SANDWELL CHILDREN'S TRUST,Childrens Services,5705769.23,Other Establishments,2324P02_CR00202,133302
Sandwell Metropolitan Borough Council,http://www.sandwell.gov.uk/info/200202/performance_and_spending/1079/payments_over_500,01-May-2023,Childrens Services,LOCAL EDUCATION AND DEVELOPMENT,Childrens Services,1036.75,Discretionary Awards,2324P02_CR00203,148259
Sandwell Metropolitan Borough Council,http://www.sandwell.gov.uk/info/200202/performance_and_spending/1079/payments_over_500,01-May-2023,Childrens Services,LOCAL EDUCATION AND DEVELOPMENT,Childrens Services,4241.25,Discretionary Awards,2324P02_CR00204,148259
Sandwell Metropolitan Borough Council,http://www.sandwell.gov.uk/info/200202/performance_and_spending/1079/payments_over_500,01-May-2023,Childrens Services,TOPPS MANAGEMENT & SUPPORT SERVICES LTD,Childrens Services,6071.98,Discretionary Awards,2324P02_CR00205,68846
Sandwell Metropolitan Borough Council,http://www.sandwell.gov.uk/info/200202/performance_and_spending/1079/payments_over_500,03-May-2023,Childrens Services,FRANCESCA RICHARDS,Childrens Services,2590.00,Externally Purchased Professional Services ,2324P02_CR00206,159458
Sandwell Metropolitan Borough Council,http://www.sandwell.gov.uk/info/200202/performance_and_spending/1079/payments_over_500,11-May-2023,Childrens Services,REDACTED PERSONAL DATA,Childrens Services,545.45,External Contract Hire,2324P02_CR00207,REDACTED PERSONAL DATA
Sandwell Metropolitan Borough Council,http://www.sandwell.gov.uk/info/200202/performance_and_spending/1079/payments_over_500,11-May-2023,Childrens Services,REDACTED PERSONAL DATA,Childrens Services,727.27,External Contract Hire,2324P02_CR00208,REDACTED PERSONAL DATA
Sandwell Metropolitan Borough Council,http://www.sandwell.gov.uk/info/200202/performance_and_spending/1079/payments_over_500,11-May-2023,Childrens Services,REDACTED PERSONAL DATA,Childrens Services,545.45,External Contract Hire,2324P02_CR00209,REDACTED PERSONAL DATA
Sandwell Metropolitan Borough Council,http://www.sandwell.gov.uk/info/200202/performance_and_spending/1079/payments_over_500,11-May-2023,Childrens Services,REDACTED PERSONAL DATA,Childrens Services,727.27,External Contract Hire,2324P02_CR00210,REDACTED PERSONAL DATA
Sandwell Metropolitan Borough Council,http://www.sandwell.gov.uk/info/200202/performance_and_spending/1079/payments_over_500,11-May-2023,Childrens Services,REDACTED PERSONAL DATA,Childrens Services,545.45,External Contract Hire,2324P02_CR00211,REDACTED PERSONAL DATA
Sandwell Metropolitan Borough Council,http://www.sandwell.gov.uk/info/200202/performance_and_spending/1079/payments_over_500,11-May-2023,Childrens Services,REDACTED PERSONAL DATA,Childrens Services,545.45,External Contract Hire,2324P02_CR00212,REDACTED PERSONAL DATA
Sandwell Metropolitan Borough Council,http://www.sandwell.gov.uk/info/200202/performance_and_spending/1079/payments_over_500,11-May-2023,Childrens Services,REDACTED PERSONAL DATA,Childrens Services,545.45,External Contract Hire,2324P02_CR00213,REDACTED PERSONAL DATA
Sandwell Metropolitan Borough Council,http://www.sandwell.gov.uk/info/200202/performance_and_spending/1079/payments_over_500,11-May-2023,Childrens Services,REDACTED PERSONAL DATA,Childrens Services,545.45,External Contract Hire,2324P02_CR00214,REDACTED PERSONAL DATA
Sandwell Metropolitan Borough Council,http://www.sandwell.gov.uk/info/200202/performance_and_spending/1079/payments_over_500,11-May-2023,Childrens Services,REDACTED PERSONAL DATA,Childrens Services,545.45,External Contract Hire,2324P02_CR00215,REDACTED PERSONAL DATA
Sandwell Metropolitan Borough Council,http://www.sandwell.gov.uk/info/200202/performance_and_spending/1079/payments_over_500,11-May-2023,Childrens Services,REDACTED PERSONAL DATA,Childrens Services,545.45,External Contract Hire,2324P02_CR00216,REDACTED PERSONAL DATA
Sandwell Metropolitan Borough Council,http://www.sandwell.gov.uk/info/200202/performance_and_spending/1079/payments_over_500,11-May-2023,Childrens Services,REDACTED PERSONAL DATA,Childrens Services,545.45,External Contract Hire,2324P02_CR00217,REDACTED PERSONAL DATA
Sandwell Metropolitan Borough Council,http://www.sandwell.gov.uk/info/200202/performance_and_spending/1079/payments_over_500,11-May-2023,Childrens Services,REDACTED PERSONAL DATA,Childrens Services,545.45,External Contract Hire,2324P02_CR00218,REDACTED PERSONAL DATA
Sandwell Metropolitan Borough Council,http://www.sandwell.gov.uk/info/200202/performance_and_spending/1079/payments_over_500,11-May-2023,Childrens Services,REDACTED PERSONAL DATA,Childrens Services,545.45,External Contract Hire,2324P02_CR00219,REDACTED PERSONAL DATA
Sandwell Metropolitan Borough Council,http://www.sandwell.gov.uk/info/200202/performance_and_spending/1079/payments_over_500,11-May-2023,Childrens Services,REDACTED PERSONAL DATA,Childrens Services,545.45,External Contract Hire,2324P02_CR00220,REDACTED PERSONAL DATA
Sandwell Metropolitan Borough Council,http://www.sandwell.gov.uk/info/200202/performance_and_spending/1079/payments_over_500,11-May-2023,Childrens Services,REDACTED PERSONAL DATA,Childrens Services,727.27,External Contract Hire,2324P02_CR00221,REDACTED PERSONAL DATA
Sandwell Metropolitan Borough Council,http://www.sandwell.gov.uk/info/200202/performance_and_spending/1079/payments_over_500,11-May-2023,Childrens Services,REDACTED PERSONAL DATA,Childrens Services,727.28,External Contract Hire,2324P02_CR00222,REDACTED PERSONAL DATA
Sandwell Metropolitan Borough Council,http://www.sandwell.gov.uk/info/200202/performance_and_spending/1079/payments_over_500,11-May-2023,Childrens Services,REDACTED PERSONAL DATA,Childrens Services,800.00,External Contract Hire,2324P02_CR00223,REDACTED PERSONAL DATA
Sandwell Metropolitan Borough Council,http://www.sandwell.gov.uk/info/200202/performance_and_spending/1079/payments_over_500,11-May-2023,Childrens Services,REDACTED PERSONAL DATA,Childrens Services,909.09,External Contract Hire,2324P02_CR00224,REDACTED PERSONAL DATA
Sandwell Metropolitan Borough Council,http://www.sandwell.gov.uk/info/200202/performance_and_spending/1079/payments_over_500,11-May-2023,Childrens Services,REDACTED PERSONAL DATA,Childrens Services,1090.90,External Contract Hire,2324P02_CR00225,REDACTED PERSONAL DATA
Sandwell Metropolitan Borough Council,http://www.sandwell.gov.uk/info/200202/performance_and_spending/1079/payments_over_500,09-May-2023,Childrens Services,REDACTED PERSONAL DATA,Childrens Services,724.30,External Contract Hire,2324P02_CR00226,REDACTED PERSONAL DATA
Sandwell Metropolitan Borough Council,http://www.sandwell.gov.uk/info/200202/performance_and_spending/1079/payments_over_500,11-May-2023,Childrens Services,REDACTED PERSONAL DATA,Childrens Services,545.45,External Contract Hire,2324P02_CR00227,REDACTED PERSONAL DATA
Sandwell Metropolitan Borough Council,http://www.sandwell.gov.uk/info/200202/performance_and_spending/1079/payments_over_500,11-May-2023,Childrens Services,REDACTED PERSONAL DATA,Childrens Services,545.45,External Contract Hire,2324P02_CR00228,REDACTED PERSONAL DATA
Sandwell Metropolitan Borough Council,http://www.sandwell.gov.uk/info/200202/performance_and_spending/1079/payments_over_500,11-May-2023,Childrens Services,REDACTED PERSONAL DATA,Childrens Services,545.45,External Contract Hire,2324P02_CR00229,REDACTED PERSONAL DATA
Sandwell Metropolitan Borough Council,http://www.sandwell.gov.uk/info/200202/performance_and_spending/1079/payments_over_500,11-May-2023,Childrens Services,REDACTED PERSONAL DATA,Childrens Services,545.45,External Contract Hire,2324P02_CR00230,REDACTED PERSONAL DATA
Sandwell Metropolitan Borough Council,http://www.sandwell.gov.uk/info/200202/performance_and_spending/1079/payments_over_500,11-May-2023,Childrens Services,REDACTED PERSONAL DATA,Childrens Services,545.45,External Contract Hire,2324P02_CR00231,REDACTED PERSONAL DATA
Sandwell Metropolitan Borough Council,http://www.sandwell.gov.uk/info/200202/performance_and_spending/1079/payments_over_500,11-May-2023,Childrens Services,REDACTED PERSONAL DATA,Childrens Services,545.45,External Contract Hire,2324P02_CR00232,REDACTED PERSONAL DATA
Sandwell Metropolitan Borough Council,http://www.sandwell.gov.uk/info/200202/performance_and_spending/1079/payments_over_500,11-May-2023,Childrens Services,REDACTED PERSONAL DATA,Childrens Services,545.45,External Contract Hire,2324P02_CR00233,REDACTED PERSONAL DATA
Sandwell Metropolitan Borough Council,http://www.sandwell.gov.uk/info/200202/performance_and_spending/1079/payments_over_500,11-May-2023,Childrens Services,REDACTED PERSONAL DATA,Childrens Services,727.27,External Contract Hire,2324P02_CR00234,REDACTED PERSONAL DATA
Sandwell Metropolitan Borough Council,http://www.sandwell.gov.uk/info/200202/performance_and_spending/1079/payments_over_500,11-May-2023,Childrens Services,REDACTED PERSONAL DATA,Childrens Services,727.27,External Contract Hire,2324P02_CR00235,REDACTED PERSONAL DATA
Sandwell Metropolitan Borough Council,http://www.sandwell.gov.uk/info/200202/performance_and_spending/1079/payments_over_500,11-May-2023,Childrens Services,REDACTED PERSONAL DATA,Childrens Services,727.27,External Contract Hire,2324P02_CR00236,REDACTED PERSONAL DATA
Sandwell Metropolitan Borough Council,http://www.sandwell.gov.uk/info/200202/performance_and_spending/1079/payments_over_500,11-May-2023,Childrens Services,REDACTED PERSONAL DATA,Childrens Services,727.27,External Contract Hire,2324P02_CR00237,REDACTED PERSONAL DATA
Sandwell Metropolitan Borough Council,http://www.sandwell.gov.uk/info/200202/performance_and_spending/1079/payments_over_500,11-May-2023,Childrens Services,REDACTED PERSONAL DATA,Childrens Services,727.27,External Contract Hire,2324P02_CR00238,REDACTED PERSONAL DATA
Sandwell Metropolitan Borough Council,http://www.sandwell.gov.uk/info/200202/performance_and_spending/1079/payments_over_500,11-May-2023,Childrens Services,REDACTED PERSONAL DATA,Childrens Services,727.27,External Contract Hire,2324P02_CR00239,REDACTED PERSONAL DATA
Sandwell Metropolitan Borough Council,http://www.sandwell.gov.uk/info/200202/performance_and_spending/1079/payments_over_500,09-May-2023,Childrens Services,REDACTED PERSONAL DATA,Childrens Services,1083.24,External Contract Hire,2324P02_CR00240,REDACTED PERSONAL DATA
Sandwell Metropolitan Borough Council,http://www.sandwell.gov.uk/info/200202/performance_and_spending/1079/payments_over_500,16-May-2023,Childrens Services,THE BRANCH,Childrens Services,753.00,Grant Payments,2324P02_CR00241,08588514
Sandwell Metropolitan Borough Council,http://www.sandwell.gov.uk/info/200202/performance_and_spending/1079/payments_over_500,19-May-2023,Childrens Services,WEST SMETHWICK ENTERPRISE AND STEPPING STONES PRE-SCHOOL,Childrens Services,2240.00,Grant Payments,2324P02_CR00242,01722169
Sandwell Metropolitan Borough Council,http://www.sandwell.gov.uk/info/200202/performance_and_spending/1079/payments_over_500,22-May-2023,Childrens Services,CAPE COMMUNITY CARE DAY CENTRE,Childrens Services,3000.00,Grant Payments,2324P02_CR00243,01693179
Sandwell Metropolitan Borough Council,http://www.sandwell.gov.uk/info/200202/performance_and_spending/1079/payments_over_500,22-May-2023,Childrens Services,COMMUNITY CONNECT FOUNDATION,Childrens Services,3000.00,Grant Payments,2324P02_CR00244,01685391
Sandwell Metropolitan Borough Council,http://www.sandwell.gov.uk/info/200202/performance_and_spending/1079/payments_over_500,19-May-2023,Childrens Services,FRIAR PARK MILLENNIUM CENTRE,Childrens Services,3000.00,Grant Payments,2324P02_CR00245,28476
Sandwell Metropolitan Borough Council,http://www.sandwell.gov.uk/info/200202/performance_and_spending/1079/payments_over_500,19-May-2023,Childrens Services,GREAT BRIDGE COMMUNITY FORUM,Childrens Services,3000.00,Grant Payments,2324P02_CR00246,21026008
Sandwell Metropolitan Borough Council,http://www.sandwell.gov.uk/info/200202/performance_and_spending/1079/payments_over_500,12-May-2023,Childrens Services Capital,MIDLAND FORESTRY LIMITED,Childrens Services Capital,7790.00,Grounds Maintenance & Improvements,2324P02_CR00247,45812
Sandwell Metropolitan Borough Council,http://www.sandwell.gov.uk/info/200202/performance_and_spending/1079/payments_over_500,15-May-2023,Childrens Services Capital,SAFELANE GLOBAL LTD,Childrens Services Capital,950.00,"CIP - New Construction,Conversion, Enhancement & Reno",2324P02_CR00248,139621
Sandwell Metropolitan Borough Council,http://www.sandwell.gov.uk/info/200202/performance_and_spending/1079/payments_over_500,16-May-2023,Childrens Services Capital,EVARIS SOLUTIONS LTD,Childrens Services Capital,6132.00,"CIP - New Construction,Conversion, Enhancement & Reno",2324P02_CR00249,161598
Sandwell Metropolitan Borough Council,http://www.sandwell.gov.uk/info/200202/performance_and_spending/1079/payments_over_500,10-May-2023,Childrens Services Capital,SEDDON CONSTRUCTION LIMITED,Childrens Services Capital,16123.78,"CIP - New Construction,Conversion, Enhancement & Reno",2324P02_CR00250,132999
Sandwell Metropolitan Borough Council,http://www.sandwell.gov.uk/info/200202/performance_and_spending/1079/payments_over_500,01-May-2023,Childrens Services Capital,SEDDON CONSTRUCTION LIMITED,Childrens Services Capital,168288.99,"CIP - New Construction,Conversion, Enhancement & Reno",2324P02_CR00251,132999
Sandwell Metropolitan Borough Council,http://www.sandwell.gov.uk/info/200202/performance_and_spending/1079/payments_over_500,01-May-2023,Corporate Management,PENNA PLC,Corporate Management,4166.66,Advertising & Publicity,2324P02_CR00252,20829
Sandwell Metropolitan Borough Council,http://www.sandwell.gov.uk/info/200202/performance_and_spending/1079/payments_over_500,03-May-2023,FINANCE (Inc SIU),BROWNE JACOBSON LLP,Assistant Chief Executive (Excl SIU),715.70,Externally Purchased Professional Services ,2324P02_CR00253,109574
Sandwell Metropolitan Borough Council,http://www.sandwell.gov.uk/info/200202/performance_and_spending/1079/payments_over_500,26-May-2023,FINANCE (Inc SIU),SEDGWICK INTERNATIONAL UK,Assistant Chief Executive (Excl SIU),725.00,Externally Purchased Professional Services ,2324P02_CR00254,136510
Sandwell Metropolitan Borough Council,http://www.sandwell.gov.uk/info/200202/performance_and_spending/1079/payments_over_500,03-May-2023,FINANCE (Inc SIU),BROWNE JACOBSON LLP,Assistant Chief Executive (Excl SIU),785.80,Externally Purchased Professional Services ,2324P02_CR00255,109574
Sandwell Metropolitan Borough Council,http://www.sandwell.gov.uk/info/200202/performance_and_spending/1079/payments_over_500,23-May-2023,FINANCE (Inc SIU),SEDGWICK INTERNATIONAL UK,Assistant Chief Executive (Excl SIU),850.00,Externally Purchased Professional Services ,2324P02_CR00256,136510
Sandwell Metropolitan Borough Council,http://www.sandwell.gov.uk/info/200202/performance_and_spending/1079/payments_over_500,05-May-2023,FINANCE (Inc SIU),BROWNE JACOBSON LLP,Assistant Chief Executive (Excl SIU),1249.50,Externally Purchased Professional Services ,2324P02_CR00257,109574
Sandwell Metropolitan Borough Council,http://www.sandwell.gov.uk/info/200202/performance_and_spending/1079/payments_over_500,03-May-2023,FINANCE (Inc SIU),BROWNE JACOBSON LLP,Assistant Chief Executive (Excl SIU),1337.10,Externally Purchased Professional Services ,2324P02_CR00258,109574
Sandwell Metropolitan Borough Council,http://www.sandwell.gov.uk/info/200202/performance_and_spending/1079/payments_over_500,02-May-2023,FINANCE (Inc SIU),SEDGWICK INTERNATIONAL UK,Assistant Chief Executive (Excl SIU),1375.00,Externally Purchased Professional Services ,2324P02_CR00259,136510
Sandwell Metropolitan Borough Council,http://www.sandwell.gov.uk/info/200202/performance_and_spending/1079/payments_over_500,03-May-2023,FINANCE (Inc SIU),BROWNE JACOBSON LLP,Assistant Chief Executive (Excl SIU),1481.00,Externally Purchased Professional Services ,2324P02_CR00260,109574
Sandwell Metropolitan Borough Council,http://www.sandwell.gov.uk/info/200202/performance_and_spending/1079/payments_over_500,05-May-2023,FINANCE (Inc SIU),BROWNE JACOBSON LLP,Assistant Chief Executive (Excl SIU),1909.70,Externally Purchased Professional Services ,2324P02_CR00261,109574
Sandwell Metropolitan Borough Council,http://www.sandwell.gov.uk/info/200202/performance_and_spending/1079/payments_over_500,05-May-2023,FINANCE (Inc SIU),BROWNE JACOBSON LLP,Assistant Chief Executive (Excl SIU),3153.30,Externally Purchased Professional Services ,2324P02_CR00262,109574
Sandwell Metropolitan Borough Council,http://www.sandwell.gov.uk/info/200202/performance_and_spending/1079/payments_over_500,09-May-2023,FINANCE (Inc SIU),GOWING LAW SOLICITORS,Assistant Chief Executive (Excl SIU),500.00,Insurance,2324P02_CR00263,163069
Sandwell Metropolitan Borough Council,http://www.sandwell.gov.uk/info/200202/performance_and_spending/1079/payments_over_500,09-May-2023,FINANCE (Inc SIU),DWP,Assistant Chief Executive (Excl SIU),725.00,Insurance,2324P02_CR00264,01753867
Sandwell Metropolitan Borough Council,http://www.sandwell.gov.uk/info/200202/performance_and_spending/1079/payments_over_500,02-May-2023,FINANCE (Inc SIU),DWP,Assistant Chief Executive (Excl SIU),744.00,Insurance,2324P02_CR00265,01753867
Sandwell Metropolitan Borough Council,http://www.sandwell.gov.uk/info/200202/performance_and_spending/1079/payments_over_500,22-May-2023,FINANCE (Inc SIU),GOWING LAW SOLICITORS,Assistant Chief Executive (Excl SIU),750.00,Insurance,2324P02_CR00266,163069
Sandwell Metropolitan Borough Council,http://www.sandwell.gov.uk/info/200202/performance_and_spending/1079/payments_over_500,09-May-2023,FINANCE (Inc SIU),DWP,Assistant Chief Executive (Excl SIU),766.00,Insurance,2324P02_CR00267,01753867
Sandwell Metropolitan Borough Council,http://www.sandwell.gov.uk/info/200202/performance_and_spending/1079/payments_over_500,12-May-2023,FINANCE (Inc SIU),WESTMINSTER SCHOOL,Assistant Chief Executive (Excl SIU),791.66,Insurance,2324P02_CR00268,38481
Sandwell Metropolitan Borough Council,http://www.sandwell.gov.uk/info/200202/performance_and_spending/1079/payments_over_500,18-May-2023,FINANCE (Inc SIU),GOWING LAW SOLICITORS,Assistant Chief Executive (Excl SIU),1000.00,Insurance,2324P02_CR00269,163069
Sandwell Metropolitan Borough Council,http://www.sandwell.gov.uk/info/200202/performance_and_spending/1079/payments_over_500,17-May-2023,FINANCE (Inc SIU),GOWING LAW SOLICITORS,Assistant Chief Executive (Excl SIU),1000.00,Insurance,2324P02_CR00270,163069
Sandwell Metropolitan Borough Council,http://www.sandwell.gov.uk/info/200202/performance_and_spending/1079/payments_over_500,23-May-2023,FINANCE (Inc SIU),MATRIX SOLICITORS,Assistant Chief Executive (Excl SIU),1000.00,Insurance,2324P02_CR00271,150465
Sandwell Metropolitan Borough Council,http://www.sandwell.gov.uk/info/200202/performance_and_spending/1079/payments_over_500,26-May-2023,FINANCE (Inc SIU),ROBERT BINGHAM LTD,Assistant Chief Executive (Excl SIU),1000.00,Insurance,2324P02_CR00272,164179
Sandwell Metropolitan Borough Council,http://www.sandwell.gov.uk/info/200202/performance_and_spending/1079/payments_over_500,05-May-2023,FINANCE (Inc SIU),WESTMINSTER SCHOOL,Assistant Chief Executive (Excl SIU),1033.34,Insurance,2324P02_CR00273,38481
Sandwell Metropolitan Borough Council,http://www.sandwell.gov.uk/info/200202/performance_and_spending/1079/payments_over_500,22-May-2023,FINANCE (Inc SIU),GOWING LAW SOLICITORS,Assistant Chief Executive (Excl SIU),1062.00,Insurance,2324P02_CR00274,163069
Sandwell Metropolitan Borough Council,http://www.sandwell.gov.uk/info/200202/performance_and_spending/1079/payments_over_500,09-May-2023,FINANCE (Inc SIU),GOWING LAW SOLICITORS,Assistant Chief Executive (Excl SIU),1062.00,Insurance,2324P02_CR00275,163069
Sandwell Metropolitan Borough Council,http://www.sandwell.gov.uk/info/200202/performance_and_spending/1079/payments_over_500,15-May-2023,FINANCE (Inc SIU),MATRIX SOLICITORS,Assistant Chief Executive (Excl SIU),1245.49,Insurance,2324P02_CR00276,150465
Sandwell Metropolitan Borough Council,http://www.sandwell.gov.uk/info/200202/performance_and_spending/1079/payments_over_500,18-May-2023,FINANCE (Inc SIU),BOND TURNER,Assistant Chief Executive (Excl SIU),1300.00,Insurance,2324P02_CR00277,152400
Sandwell Metropolitan Borough Council,http://www.sandwell.gov.uk/info/200202/performance_and_spending/1079/payments_over_500,11-May-2023,FINANCE (Inc SIU),MATRIX SOLICITORS,Assistant Chief Executive (Excl SIU),1500.00,Insurance,2324P02_CR00278,150465
Sandwell Metropolitan Borough Council,http://www.sandwell.gov.uk/info/200202/performance_and_spending/1079/payments_over_500,09-May-2023,FINANCE (Inc SIU),LAW TOGETHER,Assistant Chief Executive (Excl SIU),1716.00,Insurance,2324P02_CR00279,161203
Sandwell Metropolitan Borough Council,http://www.sandwell.gov.uk/info/200202/performance_and_spending/1079/payments_over_500,09-May-2023,FINANCE (Inc SIU),GOWING LAW SOLICITORS,Assistant Chief Executive (Excl SIU),2500.00,Insurance,2324P02_CR00280,163069
Sandwell Metropolitan Borough Council,http://www.sandwell.gov.uk/info/200202/performance_and_spending/1079/payments_over_500,09-May-2023,FINANCE (Inc SIU),LAW TOGETHER,Assistant Chief Executive (Excl SIU),2750.00,Insurance,2324P02_CR00281,161203
Sandwell Metropolitan Borough Council,http://www.sandwell.gov.uk/info/200202/performance_and_spending/1079/payments_over_500,26-May-2023,FINANCE (Inc SIU),BEACON LAW,Assistant Chief Executive (Excl SIU),4000.00,Insurance,2324P02_CR00282,110877
Sandwell Metropolitan Borough Council,http://www.sandwell.gov.uk/info/200202/performance_and_spending/1079/payments_over_500,17-May-2023,FINANCE (Inc SIU),GOWING LAW SOLICITORS,Assistant Chief Executive (Excl SIU),4000.00,Insurance,2324P02_CR00283,163069
Sandwell Metropolitan Borough Council,http://www.sandwell.gov.uk/info/200202/performance_and_spending/1079/payments_over_500,23-May-2023,FINANCE (Inc SIU),MATRIX SOLICITORS,Assistant Chief Executive (Excl SIU),4000.00,Insurance,2324P02_CR00284,150465
Sandwell Metropolitan Borough Council,http://www.sandwell.gov.uk/info/200202/performance_and_spending/1079/payments_over_500,09-May-2023,FINANCE (Inc SIU),EXPRESS SOLICITORS,Assistant Chief Executive (Excl SIU),5000.00,Insurance,2324P02_CR00285,81937
Sandwell Metropolitan Borough Council,http://www.sandwell.gov.uk/info/200202/performance_and_spending/1079/payments_over_500,11-May-2023,FINANCE (Inc SIU),MATRIX SOLICITORS,Assistant Chief Executive (Excl SIU),5000.00,Insurance,2324P02_CR00286,150465
Sandwell Metropolitan Borough Council,http://www.sandwell.gov.uk/info/200202/performance_and_spending/1079/payments_over_500,04-May-2023,FINANCE (Inc SIU),CAUSEWAY GREEN PRIMARY SCHOOL ,Assistant Chief Executive (Excl SIU),5193.76,Insurance,2324P02_CR00287,04015724
Sandwell Metropolitan Borough Council,http://www.sandwell.gov.uk/info/200202/performance_and_spending/1079/payments_over_500,26-May-2023,FINANCE (Inc SIU),ROBERT BINGHAM LTD,Assistant Chief Executive (Excl SIU),5500.00,Insurance,2324P02_CR00288,164179
Sandwell Metropolitan Borough Council,http://www.sandwell.gov.uk/info/200202/performance_and_spending/1079/payments_over_500,15-May-2023,FINANCE (Inc SIU),MATRIX SOLICITORS,Assistant Chief Executive (Excl SIU),6500.00,Insurance,2324P02_CR00289,150465
Sandwell Metropolitan Borough Council,http://www.sandwell.gov.uk/info/200202/performance_and_spending/1079/payments_over_500,26-May-2023,FINANCE (Inc SIU),BEACON LAW,Assistant Chief Executive (Excl SIU),6828.00,Insurance,2324P02_CR00290,110877
Sandwell Metropolitan Borough Council,http://www.sandwell.gov.uk/info/200202/performance_and_spending/1079/payments_over_500,09-May-2023,FINANCE (Inc SIU),SATCHELL MORAN SOLICITORS,Assistant Chief Executive (Excl SIU),7500.00,Insurance,2324P02_CR00291,154265
Sandwell Metropolitan Borough Council,http://www.sandwell.gov.uk/info/200202/performance_and_spending/1079/payments_over_500,24-May-2023,FINANCE (Inc SIU),INAAYA SOLICITORS,Assistant Chief Executive (Excl SIU),8500.00,Insurance,2324P02_CR00292,165648
Sandwell Metropolitan Borough Council,http://www.sandwell.gov.uk/info/200202/performance_and_spending/1079/payments_over_500,09-May-2023,FINANCE (Inc SIU),EXPRESS SOLICITORS,Assistant Chief Executive (Excl SIU),8533.00,Insurance,2324P02_CR00293,81937
Sandwell Metropolitan Borough Council,http://www.sandwell.gov.uk/info/200202/performance_and_spending/1079/payments_over_500,22-May-2023,FINANCE (Inc SIU),CHESHIRE ESTATE & LEGAL,Assistant Chief Executive (Excl SIU),9500.00,Insurance,2324P02_CR00294,139926
Sandwell Metropolitan Borough Council,http://www.sandwell.gov.uk/info/200202/performance_and_spending/1079/payments_over_500,02-May-2023,FINANCE (Inc SIU),FARLEYS SOLICITORS LLP,Assistant Chief Executive (Excl SIU),10000.00,Insurance,2324P02_CR00295,131584
Sandwell Metropolitan Borough Council,http://www.sandwell.gov.uk/info/200202/performance_and_spending/1079/payments_over_500,15-May-2023,FINANCE (Inc SIU),GOWING LAW SOLICITORS,Assistant Chief Executive (Excl SIU),10000.00,Insurance,2324P02_CR00296,163069
Sandwell Metropolitan Borough Council,http://www.sandwell.gov.uk/info/200202/performance_and_spending/1079/payments_over_500,26-May-2023,FINANCE (Inc SIU),HIGH STREET SOLICITORS,Assistant Chief Executive (Excl SIU),11500.00,Insurance,2324P02_CR00297,137303
Sandwell Metropolitan Borough Council,http://www.sandwell.gov.uk/info/200202/performance_and_spending/1079/payments_over_500,02-May-2023,FINANCE (Inc SIU),IRWIN MITCHELL LLP,Assistant Chief Executive (Excl SIU),19500.00,Insurance,2324P02_CR00298,103991
Sandwell Metropolitan Borough Council,http://www.sandwell.gov.uk/info/200202/performance_and_spending/1079/payments_over_500,01-May-2023,FINANCE (Inc SIU),POLYGON DAMAGE CONTROL LTD,Assistant Chief Executive (Excl SIU),28650.49,Insurance,2324P02_CR00299,13903
Sandwell Metropolitan Borough Council,http://www.sandwell.gov.uk/info/200202/performance_and_spending/1079/payments_over_500,02-May-2023,FINANCE (Inc SIU),REDACTED PERSONAL DATA,Assistant Chief Executive (Excl SIU),4500.00,Insurance,2324P02_CR00300,REDACTED PERSONAL DATA
Sandwell Metropolitan Borough Council,http://www.sandwell.gov.uk/info/200202/performance_and_spending/1079/payments_over_500,05-May-2023,FINANCE (Inc SIU),WOLVERHAMPTON CITY COUNCIL,Assistant Chief Executive (Excl SIU),25960.00,Pensions,2324P02_CR00301,120965
Sandwell Metropolitan Borough Council,http://www.sandwell.gov.uk/info/200202/performance_and_spending/1079/payments_over_500,16-May-2023,FINANCE (Inc SIU),HAWK INCENTIVES LTD,Assistant Chief Executive (Excl SIU),4800.00,Catering Provisions,2324P02_CR00302,148982
Sandwell Metropolitan Borough Council,http://www.sandwell.gov.uk/info/200202/performance_and_spending/1079/payments_over_500,01-May-2023,FINANCE (Inc SIU),RENAISSANCE CREATIVE DESIGN & PRINT LTD,Assistant Chief Executive (Excl SIU),595.00,"Printing, Stationery & General Office Expenses",2324P02_CR00303,97376
Sandwell Metropolitan Borough Council,http://www.sandwell.gov.uk/info/200202/performance_and_spending/1079/payments_over_500,11-May-2023,FINANCE (Inc SIU),DSI BILLING SERVICES LIMITED,Assistant Chief Executive (Excl SIU),18851.75,"Printing, Stationery & General Office Expenses",2324P02_CR00304,161962
Sandwell Metropolitan Borough Council,http://www.sandwell.gov.uk/info/200202/performance_and_spending/1079/payments_over_500,01-May-2023,FINANCE (Inc SIU),ORACLE CORPORATION UK LTD,Assistant Chief Executive (Excl SIU),703.27,Externally Purchased Professional Services ,2324P02_CR00305,01539742
Sandwell Metropolitan Borough Council,http://www.sandwell.gov.uk/info/200202/performance_and_spending/1079/payments_over_500,01-May-2023,FINANCE (Inc SIU),ORACLE CORPORATION UK LTD,Assistant Chief Executive (Excl SIU),830.90,Externally Purchased Professional Services ,2324P02_CR00306,01539742
Sandwell Metropolitan Borough Council,http://www.sandwell.gov.uk/info/200202/performance_and_spending/1079/payments_over_500,03-May-2023,FINANCE (Inc SIU),GBS PROCURE LIMITED,Assistant Chief Executive (Excl SIU),1139.35,Externally Purchased Professional Services ,2324P02_CR00307,165756
Sandwell Metropolitan Borough Council,http://www.sandwell.gov.uk/info/200202/performance_and_spending/1079/payments_over_500,01-May-2023,FINANCE (Inc SIU),ORACLE CORPORATION UK LTD,Assistant Chief Executive (Excl SIU),2361.00,Externally Purchased Professional Services ,2324P02_CR00308,01539742
Sandwell Metropolitan Borough Council,http://www.sandwell.gov.uk/info/200202/performance_and_spending/1079/payments_over_500,01-May-2023,FINANCE (Inc SIU),GREENHALGH KERR SOLICITORS LIMITED,Assistant Chief Executive (Excl SIU),2932.00,Externally Purchased Professional Services ,2324P02_CR00309,127273
Sandwell Metropolitan Borough Council,http://www.sandwell.gov.uk/info/200202/performance_and_spending/1079/payments_over_500,01-May-2023,FINANCE (Inc SIU),GREENHALGH KERR SOLICITORS LIMITED,Assistant Chief Executive (Excl SIU),4040.56,Externally Purchased Professional Services ,2324P02_CR00310,127273
Sandwell Metropolitan Borough Council,http://www.sandwell.gov.uk/info/200202/performance_and_spending/1079/payments_over_500,01-May-2023,FINANCE (Inc SIU),ORACLE CORPORATION UK LTD,Assistant Chief Executive (Excl SIU),4456.13,Externally Purchased Professional Services ,2324P02_CR00311,01539742
Sandwell Metropolitan Borough Council,http://www.sandwell.gov.uk/info/200202/performance_and_spending/1079/payments_over_500,16-May-2023,FINANCE (Inc SIU),SOLACE IN BUSINESS LTD,Assistant Chief Executive (Excl SIU),5600.00,Externally Purchased Professional Services ,2324P02_CR00312,129445
Sandwell Metropolitan Borough Council,http://www.sandwell.gov.uk/info/200202/performance_and_spending/1079/payments_over_500,03-May-2023,FINANCE (Inc SIU),GBS PROCURE LIMITED,Assistant Chief Executive (Excl SIU),7487.70,Externally Purchased Professional Services ,2324P02_CR00313,165756
Sandwell Metropolitan Borough Council,http://www.sandwell.gov.uk/info/200202/performance_and_spending/1079/payments_over_500,01-May-2023,FINANCE (Inc SIU),INOAPPS LIMITED,Assistant Chief Executive (Excl SIU),7700.00,Externally Purchased Professional Services ,2324P02_CR00314,122364
Sandwell Metropolitan Borough Council,http://www.sandwell.gov.uk/info/200202/performance_and_spending/1079/payments_over_500,01-May-2023,FINANCE (Inc SIU),MARSH LIMITED,Assistant Chief Executive (Excl SIU),8000.00,Externally Purchased Professional Services ,2324P02_CR00315,01165486
Sandwell Metropolitan Borough Council,http://www.sandwell.gov.uk/info/200202/performance_and_spending/1079/payments_over_500,01-May-2023,FINANCE (Inc SIU),ORACLE CORPORATION UK LTD,Assistant Chief Executive (Excl SIU),15553.05,Externally Purchased Professional Services ,2324P02_CR00316,01539742
Sandwell Metropolitan Borough Council,http://www.sandwell.gov.uk/info/200202/performance_and_spending/1079/payments_over_500,01-May-2023,FINANCE (Inc SIU),ORACLE CORPORATION UK LTD,Assistant Chief Executive (Excl SIU),27644.58,Externally Purchased Professional Services ,2324P02_CR00317,01539742
Sandwell Metropolitan Borough Council,http://www.sandwell.gov.uk/info/200202/performance_and_spending/1079/payments_over_500,01-May-2023,FINANCE (Inc SIU),CIPFA C.CO,Assistant Chief Executive (Excl SIU),50000.00,Externally Purchased Professional Services ,2324P02_CR00318,134304
Sandwell Metropolitan Borough Council,http://www.sandwell.gov.uk/info/200202/performance_and_spending/1079/payments_over_500,01-May-2023,FINANCE (Inc SIU),ORACLE CORPORATION UK LTD,Assistant Chief Executive (Excl SIU),297454.83,Externally Purchased Professional Services ,2324P02_CR00319,01539742
Sandwell Metropolitan Borough Council,http://www.sandwell.gov.uk/info/200202/performance_and_spending/1079/payments_over_500,02-May-2023,FINANCE (Inc SIU),IRON MOUNTAIN (UK) LTD,Assistant Chief Executive (Excl SIU),6347.82,ICT ,2324P02_CR00320,01719704
Sandwell Metropolitan Borough Council,http://www.sandwell.gov.uk/info/200202/performance_and_spending/1079/payments_over_500,01-May-2023,FINANCE (Inc SIU),IRON MOUNTAIN (UK) LTD,Assistant Chief Executive (Excl SIU),7877.97,ICT ,2324P02_CR00321,01719704
Sandwell Metropolitan Borough Council,http://www.sandwell.gov.uk/info/200202/performance_and_spending/1079/payments_over_500,01-May-2023,FINANCE (Inc SIU),ORACLE CORPORATION UK LTD,Assistant Chief Executive (Excl SIU),20205.98,ICT ,2324P02_CR00322,01539742
Sandwell Metropolitan Borough Council,http://www.sandwell.gov.uk/info/200202/performance_and_spending/1079/payments_over_500,01-May-2023,FINANCE (Inc SIU),RESTORE SCAN LIMITED,Total Adult Social Care,914.20,ICT ,2324P02_CR00323,13549
Sandwell Metropolitan Borough Council,http://www.sandwell.gov.uk/info/200202/performance_and_spending/1079/payments_over_500,01-May-2023,FINANCE (Inc SIU),RESTORE SCAN LIMITED,Total Adult Social Care,953.32,ICT ,2324P02_CR00324,13549
Sandwell Metropolitan Borough Council,http://www.sandwell.gov.uk/info/200202/performance_and_spending/1079/payments_over_500,12-May-2023,FINANCE (Inc SIU),HQN LTD,Assistant Chief Executive (Excl SIU),573.33,Subscriptions,2324P02_CR00325,38107
Sandwell Metropolitan Borough Council,http://www.sandwell.gov.uk/info/200202/performance_and_spending/1079/payments_over_500,01-May-2023,FINANCE (Inc SIU),LOCAL INFORMATION UNIT LIMITED,Assistant Chief Executive (Excl SIU),15515.00,Subscriptions,2324P02_CR00326,01646635
Sandwell Metropolitan Borough Council,http://www.sandwell.gov.uk/info/200202/performance_and_spending/1079/payments_over_500,01-May-2023,FINANCE (Inc SIU),WEST MIDLANDS EMPLOYERS,Assistant Chief Executive (Excl SIU),25931.00,Subscriptions,2324P02_CR00327,01587505
Sandwell Metropolitan Borough Council,http://www.sandwell.gov.uk/info/200202/performance_and_spending/1079/payments_over_500,09-May-2023,FINANCE (Inc SIU),AIREY CONSULTANCY SERVICES LTD,Assistant Chief Executive (Excl SIU),1345.00,Consultancy,2324P02_CR00328,01746505
Sandwell Metropolitan Borough Council,http://www.sandwell.gov.uk/info/200202/performance_and_spending/1079/payments_over_500,03-May-2023,FINANCE (Inc SIU),NEC SOFTWARE SOLUTIONS UK LTD,Assistant Chief Executive (Excl SIU),550.00,Private Contractors,2324P02_CR00329,56043
Sandwell Metropolitan Borough Council,http://www.sandwell.gov.uk/info/200202/performance_and_spending/1079/payments_over_500,01-May-2023,FINANCE (Inc SIU),NEC SOFTWARE SOLUTIONS UK LTD,Assistant Chief Executive (Excl SIU),955.01,Private Contractors,2324P02_CR00330,56043
Sandwell Metropolitan Borough Council,http://www.sandwell.gov.uk/info/200202/performance_and_spending/1079/payments_over_500,16-May-2023,FINANCE (Inc SIU),PAYPOINT NETWORK LIMITED,Assistant Chief Executive (Excl SIU),6352.56,SH Payments,2324P02_CR00331,112439
Sandwell Metropolitan Borough Council,http://www.sandwell.gov.uk/info/200202/performance_and_spending/1079/payments_over_500,15-May-2023,FINANCE (Inc SIU),REDACTED PERSONAL DATA,Assistant Chief Executive (Excl SIU),990.00,Tenants Expenses,2324P02_CR00332,REDACTED PERSONAL DATA
Sandwell Metropolitan Borough Council,http://www.sandwell.gov.uk/info/200202/performance_and_spending/1079/payments_over_500,19-May-2023,FINANCE (Inc SIU),ST MARYS RC PRIMARY SCHOOL                  ,Assistant Chief Executive (Excl SIU),630.00,Grant Payments,2324P02_CR00333,61060
Sandwell Metropolitan Borough Council,http://www.sandwell.gov.uk/info/200202/performance_and_spending/1079/payments_over_500,19-May-2023,FINANCE (Inc SIU),ST FRANCIS XAVIER CATHOLIC PRIMARY,Assistant Chief Executive (Excl SIU),675.00,Grant Payments,2324P02_CR00334,61051
Sandwell Metropolitan Borough Council,http://www.sandwell.gov.uk/info/200202/performance_and_spending/1079/payments_over_500,19-May-2023,FINANCE (Inc SIU),ST CATHERINE OF SIENA MULTI ACADEMY COMPANY   ,Assistant Chief Executive (Excl SIU),690.00,Grant Payments,2324P02_CR00335,61052
Sandwell Metropolitan Borough Council,http://www.sandwell.gov.uk/info/200202/performance_and_spending/1079/payments_over_500,19-May-2023,FINANCE (Inc SIU),ST JOHN BOSCO RC PRIMARY SCHOOL         ,Assistant Chief Executive (Excl SIU),690.00,Grant Payments,2324P02_CR00336,61055
Sandwell Metropolitan Borough Council,http://www.sandwell.gov.uk/info/200202/performance_and_spending/1079/payments_over_500,19-May-2023,FINANCE (Inc SIU),CORNGREAVES ACADEMY,Assistant Chief Executive (Excl SIU),855.00,Grant Payments,2324P02_CR00337,112862
Sandwell Metropolitan Borough Council,http://www.sandwell.gov.uk/info/200202/performance_and_spending/1079/payments_over_500,19-May-2023,FINANCE (Inc SIU),LIGHTWOODS PRIMARY ACADEMY .,Assistant Chief Executive (Excl SIU),855.00,Grant Payments,2324P02_CR00338,61012
Sandwell Metropolitan Borough Council,http://www.sandwell.gov.uk/info/200202/performance_and_spending/1079/payments_over_500,19-May-2023,FINANCE (Inc SIU),ST PAULS C OF E ACADEMY,Assistant Chief Executive (Excl SIU),990.00,Grant Payments,2324P02_CR00339,118126
Sandwell Metropolitan Borough Council,http://www.sandwell.gov.uk/info/200202/performance_and_spending/1079/payments_over_500,19-May-2023,FINANCE (Inc SIU),DEVONSHIRE INFANTS ACADEMY,Assistant Chief Executive (Excl SIU),1005.00,Grant Payments,2324P02_CR00340,118366
Sandwell Metropolitan Borough Council,http://www.sandwell.gov.uk/info/200202/performance_and_spending/1079/payments_over_500,19-May-2023,FINANCE (Inc SIU),OUR LADY AND ST HUBERTS CATHOLIC PRIMARY SCHOOL,Assistant Chief Executive (Excl SIU),1140.00,Grant Payments,2324P02_CR00341,61053
Sandwell Metropolitan Borough Council,http://www.sandwell.gov.uk/info/200202/performance_and_spending/1079/payments_over_500,19-May-2023,FINANCE (Inc SIU),SHENSTONE LODGE SCHOOL        ,Assistant Chief Executive (Excl SIU),1170.00,Grant Payments,2324P02_CR00342,22995
Sandwell Metropolitan Borough Council,http://www.sandwell.gov.uk/info/200202/performance_and_spending/1079/payments_over_500,19-May-2023,FINANCE (Inc SIU),SHIRELAND TECHNOLOGY PRIMARY SCHOOL,Assistant Chief Executive (Excl SIU),1215.00,Grant Payments,2324P02_CR00343,148598
Sandwell Metropolitan Borough Council,http://www.sandwell.gov.uk/info/200202/performance_and_spending/1079/payments_over_500,19-May-2023,FINANCE (Inc SIU),SHIRELAND BIOMEDICAL UTC,Assistant Chief Executive (Excl SIU),1230.00,Grant Payments,2324P02_CR00344,128174
Sandwell Metropolitan Borough Council,http://www.sandwell.gov.uk/info/200202/performance_and_spending/1079/payments_over_500,19-May-2023,FINANCE (Inc SIU),ST JOHNS C OF E PRIMARY ACADEMY,Assistant Chief Executive (Excl SIU),1260.00,Grant Payments,2324P02_CR00345,61056
Sandwell Metropolitan Borough Council,http://www.sandwell.gov.uk/info/200202/performance_and_spending/1079/payments_over_500,19-May-2023,FINANCE (Inc SIU),ST PHILIPS CATHOLIC PRIMARY     ,Assistant Chief Executive (Excl SIU),1260.00,Grant Payments,2324P02_CR00346,61063
Sandwell Metropolitan Borough Council,http://www.sandwell.gov.uk/info/200202/performance_and_spending/1079/payments_over_500,19-May-2023,FINANCE (Inc SIU),TIMBERTREE (ACADEMY) PRIMARY SCHOOL,Assistant Chief Executive (Excl SIU),1275.00,Grant Payments,2324P02_CR00347,112804
Sandwell Metropolitan Borough Council,http://www.sandwell.gov.uk/info/200202/performance_and_spending/1079/payments_over_500,19-May-2023,FINANCE (Inc SIU),HOLYHEAD PRIMARY ACADEMY    ,Assistant Chief Executive (Excl SIU),1290.00,Grant Payments,2324P02_CR00348,61005
Sandwell Metropolitan Borough Council,http://www.sandwell.gov.uk/info/200202/performance_and_spending/1079/payments_over_500,19-May-2023,FINANCE (Inc SIU),SILVERTREES ACADEMY TRUST,Assistant Chief Executive (Excl SIU),1365.00,Grant Payments,2324P02_CR00349,113719
Sandwell Metropolitan Borough Council,http://www.sandwell.gov.uk/info/200202/performance_and_spending/1079/payments_over_500,19-May-2023,FINANCE (Inc SIU),OCKER HILL ACADEMY,Assistant Chief Executive (Excl SIU),1425.00,Grant Payments,2324P02_CR00350,113691
Sandwell Metropolitan Borough Council,http://www.sandwell.gov.uk/info/200202/performance_and_spending/1079/payments_over_500,19-May-2023,FINANCE (Inc SIU),DEVONSHIRE JUNIOR ACADEMY,Assistant Chief Executive (Excl SIU),1545.00,Grant Payments,2324P02_CR00351,118367
Sandwell Metropolitan Borough Council,http://www.sandwell.gov.uk/info/200202/performance_and_spending/1079/payments_over_500,19-May-2023,FINANCE (Inc SIU),JUBILEE PARK ACADEMY TRUST,Assistant Chief Executive (Excl SIU),1650.00,Grant Payments,2324P02_CR00352,113377
Sandwell Metropolitan Borough Council,http://www.sandwell.gov.uk/info/200202/performance_and_spending/1079/payments_over_500,19-May-2023,FINANCE (Inc SIU),NEWTOWN PRIMARY ACADEMY          ,Assistant Chief Executive (Excl SIU),1875.00,Grant Payments,2324P02_CR00353,61034
Sandwell Metropolitan Borough Council,http://www.sandwell.gov.uk/info/200202/performance_and_spending/1079/payments_over_500,19-May-2023,FINANCE (Inc SIU),ROUNDS GREEN PRIMARY ACADEMY         ,Assistant Chief Executive (Excl SIU),2010.00,Grant Payments,2324P02_CR00354,61045
Sandwell Metropolitan Borough Council,http://www.sandwell.gov.uk/info/200202/performance_and_spending/1079/payments_over_500,19-May-2023,FINANCE (Inc SIU),GEORGE BETTS PRIMARY ACADEMY,Assistant Chief Executive (Excl SIU),2160.00,Grant Payments,2324P02_CR00355,113420
Sandwell Metropolitan Borough Council,http://www.sandwell.gov.uk/info/200202/performance_and_spending/1079/payments_over_500,19-May-2023,FINANCE (Inc SIU),MOAT FARM JUNIOR SCHOOL                ,Assistant Chief Executive (Excl SIU),2235.00,Grant Payments,2324P02_CR00356,61032
Sandwell Metropolitan Borough Council,http://www.sandwell.gov.uk/info/200202/performance_and_spending/1079/payments_over_500,19-May-2023,FINANCE (Inc SIU),MESTY CROFT ACADEMY,Assistant Chief Executive (Excl SIU),2310.00,Grant Payments,2324P02_CR00357,106208
Sandwell Metropolitan Borough Council,http://www.sandwell.gov.uk/info/200202/performance_and_spending/1079/payments_over_500,19-May-2023,FINANCE (Inc SIU),TIPTON GREEN JUNIOR SCHOOL,Assistant Chief Executive (Excl SIU),2310.00,Grant Payments,2324P02_CR00358,61068
Sandwell Metropolitan Borough Council,http://www.sandwell.gov.uk/info/200202/performance_and_spending/1079/payments_over_500,19-May-2023,FINANCE (Inc SIU),HATELEY HEATH PRIMARY ACADEMY   ,Assistant Chief Executive (Excl SIU),2475.00,Grant Payments,2324P02_CR00359,61000
Sandwell Metropolitan Borough Council,http://www.sandwell.gov.uk/info/200202/performance_and_spending/1079/payments_over_500,19-May-2023,FINANCE (Inc SIU),SHIRELAND HALL PRIMARY ACADEMY,Assistant Chief Executive (Excl SIU),2835.00,Grant Payments,2324P02_CR00360,15209
Sandwell Metropolitan Borough Council,http://www.sandwell.gov.uk/info/200202/performance_and_spending/1079/payments_over_500,19-May-2023,FINANCE (Inc SIU),WEDNESBURY OAK ACADEMY,Assistant Chief Executive (Excl SIU),2925.00,Grant Payments,2324P02_CR00361,116882
Sandwell Metropolitan Borough Council,http://www.sandwell.gov.uk/info/200202/performance_and_spending/1079/payments_over_500,19-May-2023,FINANCE (Inc SIU),WEST BROMWICH COLLEGIATE ACADEMY,Assistant Chief Executive (Excl SIU),3270.00,Grant Payments,2324P02_CR00362,137780
Sandwell Metropolitan Borough Council,http://www.sandwell.gov.uk/info/200202/performance_and_spending/1079/payments_over_500,19-May-2023,FINANCE (Inc SIU),QUAERERE ACADEMY TRUST                 ,Assistant Chief Executive (Excl SIU),3450.00,Grant Payments,2324P02_CR00363,60939
Sandwell Metropolitan Borough Council,http://www.sandwell.gov.uk/info/200202/performance_and_spending/1079/payments_over_500,19-May-2023,FINANCE (Inc SIU),SHIRELAND COLLEGIATE ACADEMY TRUST T/A TAMESIDE,Assistant Chief Executive (Excl SIU),3570.00,Grant Payments,2324P02_CR00364,61064
Sandwell Metropolitan Borough Council,http://www.sandwell.gov.uk/info/200202/performance_and_spending/1079/payments_over_500,19-May-2023,FINANCE (Inc SIU),VICTORIA PARK PRIMARY ACADEMY,Assistant Chief Executive (Excl SIU),3660.00,Grant Payments,2324P02_CR00365,106209
Sandwell Metropolitan Borough Council,http://www.sandwell.gov.uk/info/200202/performance_and_spending/1079/payments_over_500,19-May-2023,FINANCE (Inc SIU),PERRYFIELDS HIGH SCHOOL  ,Assistant Chief Executive (Excl SIU),3960.00,Grant Payments,2324P02_CR00366,60946
Sandwell Metropolitan Borough Council,http://www.sandwell.gov.uk/info/200202/performance_and_spending/1079/payments_over_500,19-May-2023,FINANCE (Inc SIU),SANDWELL ACADEMY TRUST LTD.,Assistant Chief Executive (Excl SIU),4140.00,Grant Payments,2324P02_CR00367,126137
Sandwell Metropolitan Borough Council,http://www.sandwell.gov.uk/info/200202/performance_and_spending/1079/payments_over_500,19-May-2023,FINANCE (Inc SIU),STUART BATHURST CATHOLIC HIGH SCHOOL          ,Assistant Chief Executive (Excl SIU),4560.00,Grant Payments,2324P02_CR00368,60949
Sandwell Metropolitan Borough Council,http://www.sandwell.gov.uk/info/200202/performance_and_spending/1079/payments_over_500,19-May-2023,FINANCE (Inc SIU),ORMISTON SANDWELL COMMUNITY ACADEMY     ,Assistant Chief Executive (Excl SIU),5250.00,Grant Payments,2324P02_CR00369,60950
Sandwell Metropolitan Borough Council,http://www.sandwell.gov.uk/info/200202/performance_and_spending/1079/payments_over_500,19-May-2023,FINANCE (Inc SIU),Q3 ACADEMY LANGLEY,Assistant Chief Executive (Excl SIU),5325.00,Grant Payments,2324P02_CR00370,128009
Sandwell Metropolitan Borough Council,http://www.sandwell.gov.uk/info/200202/performance_and_spending/1079/payments_over_500,19-May-2023,FINANCE (Inc SIU),BRISTNALL HALL ACADEMY,Assistant Chief Executive (Excl SIU),5475.00,Grant Payments,2324P02_CR00371,107471
Sandwell Metropolitan Borough Council,http://www.sandwell.gov.uk/info/200202/performance_and_spending/1079/payments_over_500,19-May-2023,FINANCE (Inc SIU),WOOD GREEN ACADEMY     ,Assistant Chief Executive (Excl SIU),5550.00,Grant Payments,2324P02_CR00372,100125
Sandwell Metropolitan Borough Council,http://www.sandwell.gov.uk/info/200202/performance_and_spending/1079/payments_over_500,19-May-2023,FINANCE (Inc SIU),THE RIVERS MULTI ACADEMY TRUST,Assistant Chief Executive (Excl SIU),5835.00,Grant Payments,2324P02_CR00373,61014
Sandwell Metropolitan Borough Council,http://www.sandwell.gov.uk/info/200202/performance_and_spending/1079/payments_over_500,19-May-2023,FINANCE (Inc SIU),GEORGE SALTER COLLEGIATE ACADEMY ORMISTON ACADEMIES TRUST,Assistant Chief Executive (Excl SIU),6720.00,Grant Payments,2324P02_CR00374,01217798
Sandwell Metropolitan Borough Council,http://www.sandwell.gov.uk/info/200202/performance_and_spending/1079/payments_over_500,19-May-2023,FINANCE (Inc SIU),GOSPEL OAK SCHOOL,Assistant Chief Executive (Excl SIU),7035.00,Grant Payments,2324P02_CR00375,60952
Sandwell Metropolitan Borough Council,http://www.sandwell.gov.uk/info/200202/performance_and_spending/1079/payments_over_500,19-May-2023,FINANCE (Inc SIU),WODENSBOROUGH ORMISTON ACADEMY,Assistant Chief Executive (Excl SIU),7845.00,Grant Payments,2324P02_CR00376,115040
Sandwell Metropolitan Borough Council,http://www.sandwell.gov.uk/info/200202/performance_and_spending/1079/payments_over_500,19-May-2023,FINANCE (Inc SIU),ORMISTON FORGE ACADEMY,Assistant Chief Executive (Excl SIU),8115.00,Grant Payments,2324P02_CR00377,60941
Sandwell Metropolitan Borough Council,http://www.sandwell.gov.uk/info/200202/performance_and_spending/1079/payments_over_500,19-May-2023,FINANCE (Inc SIU),SHIRELAND COLLEGIATE ACADEMY         ,Assistant Chief Executive (Excl SIU),8865.00,Grant Payments,2324P02_CR00378,60947
Sandwell Metropolitan Borough Council,http://www.sandwell.gov.uk/info/200202/performance_and_spending/1079/payments_over_500,19-May-2023,FINANCE (Inc SIU),Q3 ACADEMY TIPTON - THE MERCIAN TRUST,Assistant Chief Executive (Excl SIU),9195.00,Grant Payments,2324P02_CR00379,112047
Sandwell Metropolitan Borough Council,http://www.sandwell.gov.uk/info/200202/performance_and_spending/1079/payments_over_500,19-May-2023,FINANCE (Inc SIU),OLDBURY ACADEMY,Assistant Chief Executive (Excl SIU),9255.00,Grant Payments,2324P02_CR00380,69241
Sandwell Metropolitan Borough Council,http://www.sandwell.gov.uk/info/200202/performance_and_spending/1079/payments_over_500,19-May-2023,FINANCE (Inc SIU),HOLY NAME CATHOLIC PRIMARY,Assistant Chief Executive (Excl SIU),630.00,Schools Support Services,2324P02_CR00381,92683
Sandwell Metropolitan Borough Council,http://www.sandwell.gov.uk/info/200202/performance_and_spending/1079/payments_over_500,19-May-2023,FINANCE (Inc SIU),HAMSTEAD INFANT SCHOOL  ,Assistant Chief Executive (Excl SIU),645.00,Schools Support Services,2324P02_CR00382,60997
Sandwell Metropolitan Borough Council,http://www.sandwell.gov.uk/info/200202/performance_and_spending/1079/payments_over_500,19-May-2023,FINANCE (Inc SIU),ABBEY INFANT SCHOOL                ,Assistant Chief Executive (Excl SIU),720.00,Schools Support Services,2324P02_CR00383,60959
Sandwell Metropolitan Borough Council,http://www.sandwell.gov.uk/info/200202/performance_and_spending/1079/payments_over_500,19-May-2023,FINANCE (Inc SIU),ST MARTINS CE PRIMARY SCHOOL,Assistant Chief Executive (Excl SIU),765.00,Schools Support Services,2324P02_CR00384,61058
Sandwell Metropolitan Borough Council,http://www.sandwell.gov.uk/info/200202/performance_and_spending/1079/payments_over_500,19-May-2023,FINANCE (Inc SIU),GROVE VALE PRIMARY SCHOOL,Assistant Chief Executive (Excl SIU),780.00,Schools Support Services,2324P02_CR00385,60993
Sandwell Metropolitan Borough Council,http://www.sandwell.gov.uk/info/200202/performance_and_spending/1079/payments_over_500,19-May-2023,FINANCE (Inc SIU),ST MARY MAGDALENE CE PRIMARY SCHOOL        ,Assistant Chief Executive (Excl SIU),825.00,Schools Support Services,2324P02_CR00386,61059
Sandwell Metropolitan Borough Council,http://www.sandwell.gov.uk/info/200202/performance_and_spending/1079/payments_over_500,19-May-2023,FINANCE (Inc SIU),OCKER HILL INFANT SCHOOL     ,Assistant Chief Executive (Excl SIU),870.00,Schools Support Services,2324P02_CR00387,61036
Sandwell Metropolitan Borough Council,http://www.sandwell.gov.uk/info/200202/performance_and_spending/1079/payments_over_500,19-May-2023,FINANCE (Inc SIU),PARK HILL PRIMARY SCHOOL                 ,Assistant Chief Executive (Excl SIU),945.00,Schools Support Services,2324P02_CR00388,61040
Sandwell Metropolitan Borough Council,http://www.sandwell.gov.uk/info/200202/performance_and_spending/1079/payments_over_500,19-May-2023,FINANCE (Inc SIU),TIVIDALE COMMUNITY PRIMARY           ,Assistant Chief Executive (Excl SIU),1050.00,Schools Support Services,2324P02_CR00389,61069
Sandwell Metropolitan Borough Council,http://www.sandwell.gov.uk/info/200202/performance_and_spending/1079/payments_over_500,19-May-2023,FINANCE (Inc SIU),ORCHARD SCHOOL             ,Assistant Chief Executive (Excl SIU),1095.00,Schools Support Services,2324P02_CR00390,60956
Sandwell Metropolitan Borough Council,http://www.sandwell.gov.uk/info/200202/performance_and_spending/1079/payments_over_500,19-May-2023,FINANCE (Inc SIU),ALBERT PRITCHARD INFANT SCHOOL ,Assistant Chief Executive (Excl SIU),1110.00,Schools Support Services,2324P02_CR00391,60962
Sandwell Metropolitan Borough Council,http://www.sandwell.gov.uk/info/200202/performance_and_spending/1079/payments_over_500,19-May-2023,FINANCE (Inc SIU),HAMSTEAD JUNIOR SCHOOL              ,Assistant Chief Executive (Excl SIU),1140.00,Schools Support Services,2324P02_CR00392,60998
Sandwell Metropolitan Borough Council,http://www.sandwell.gov.uk/info/200202/performance_and_spending/1079/payments_over_500,19-May-2023,FINANCE (Inc SIU),ANNIE LENNARD INFANT SCHOOL,Assistant Chief Executive (Excl SIU),1155.00,Schools Support Services,2324P02_CR00393,60966
Sandwell Metropolitan Borough Council,http://www.sandwell.gov.uk/info/200202/performance_and_spending/1079/payments_over_500,19-May-2023,FINANCE (Inc SIU),MOORLANDS PRIMARY SCHOOL        ,Assistant Chief Executive (Excl SIU),1200.00,Schools Support Services,2324P02_CR00394,04036544
Sandwell Metropolitan Borough Council,http://www.sandwell.gov.uk/info/200202/performance_and_spending/1079/payments_over_500,19-May-2023,FINANCE (Inc SIU),GRACE MARY PRIMARY SCHOOL     ,Assistant Chief Executive (Excl SIU),1245.00,Schools Support Services,2324P02_CR00395,60991
Sandwell Metropolitan Borough Council,http://www.sandwell.gov.uk/info/200202/performance_and_spending/1079/payments_over_500,19-May-2023,FINANCE (Inc SIU),KING GEORGE V PRIMARY SCHOOL         ,Assistant Chief Executive (Excl SIU),1305.00,Schools Support Services,2324P02_CR00396,61009
Sandwell Metropolitan Borough Council,http://www.sandwell.gov.uk/info/200202/performance_and_spending/1079/payments_over_500,19-May-2023,FINANCE (Inc SIU),BRICKHOUSE PRIMARY SCHOOL     ,Assistant Chief Executive (Excl SIU),1335.00,Schools Support Services,2324P02_CR00397,60973
Sandwell Metropolitan Borough Council,http://www.sandwell.gov.uk/info/200202/performance_and_spending/1079/payments_over_500,19-May-2023,FINANCE (Inc SIU),ABBEY JUNIOR SCHOOL    ,Assistant Chief Executive (Excl SIU),1350.00,Schools Support Services,2324P02_CR00398,60961
Sandwell Metropolitan Borough Council,http://www.sandwell.gov.uk/info/200202/performance_and_spending/1079/payments_over_500,19-May-2023,FINANCE (Inc SIU),OLD HILL PRIMARY SCHOOL            ,Assistant Chief Executive (Excl SIU),1365.00,Schools Support Services,2324P02_CR00399,61038
Sandwell Metropolitan Borough Council,http://www.sandwell.gov.uk/info/200202/performance_and_spending/1079/payments_over_500,19-May-2023,FINANCE (Inc SIU),PERRYFIELDS PRIMARY SCHOOL      ,Assistant Chief Executive (Excl SIU),1365.00,Schools Support Services,2324P02_CR00400,61042
Sandwell Metropolitan Borough Council,http://www.sandwell.gov.uk/info/200202/performance_and_spending/1079/payments_over_500,19-May-2023,FINANCE (Inc SIU),OAKHAM PRIMARY SCHOOL       ,Assistant Chief Executive (Excl SIU),1440.00,Schools Support Services,2324P02_CR00401,61035
Sandwell Metropolitan Borough Council,http://www.sandwell.gov.uk/info/200202/performance_and_spending/1079/payments_over_500,19-May-2023,FINANCE (Inc SIU),TIVIDALE HALL PRIMARY SCHOOL       ,Assistant Chief Executive (Excl SIU),1440.00,Schools Support Services,2324P02_CR00402,61070
Sandwell Metropolitan Borough Council,http://www.sandwell.gov.uk/info/200202/performance_and_spending/1079/payments_over_500,19-May-2023,FINANCE (Inc SIU),ALL SAINTS CE PRIMARY SCHOOL  ,Assistant Chief Executive (Excl SIU),1560.00,Schools Support Services,2324P02_CR00403,60964
Sandwell Metropolitan Borough Council,http://www.sandwell.gov.uk/info/200202/performance_and_spending/1079/payments_over_500,19-May-2023,FINANCE (Inc SIU),BLEAKHOUSE PRIMARY SCHOOL.,Assistant Chief Executive (Excl SIU),1620.00,Schools Support Services,2324P02_CR00404,60969
Sandwell Metropolitan Borough Council,http://www.sandwell.gov.uk/info/200202/performance_and_spending/1079/payments_over_500,19-May-2023,FINANCE (Inc SIU),OLD PARK PRIMARY SCHOOL            ,Assistant Chief Executive (Excl SIU),1635.00,Schools Support Services,2324P02_CR00405,61039
Sandwell Metropolitan Borough Council,http://www.sandwell.gov.uk/info/200202/performance_and_spending/1079/payments_over_500,19-May-2023,FINANCE (Inc SIU),MEADOWS SCHOOL,Assistant Chief Executive (Excl SIU),1650.00,Schools Support Services,2324P02_CR00406,60955
Sandwell Metropolitan Borough Council,http://www.sandwell.gov.uk/info/200202/performance_and_spending/1079/payments_over_500,19-May-2023,FINANCE (Inc SIU),CHRIST CHURCH CE PRIMARY      ,Assistant Chief Executive (Excl SIU),1710.00,Schools Support Services,2324P02_CR00407,60978
Sandwell Metropolitan Borough Council,http://www.sandwell.gov.uk/info/200202/performance_and_spending/1079/payments_over_500,19-May-2023,FINANCE (Inc SIU),RYDERS GREEN PRIMARY SCHOOL          ,Assistant Chief Executive (Excl SIU),1770.00,Schools Support Services,2324P02_CR00408,61047
Sandwell Metropolitan Borough Council,http://www.sandwell.gov.uk/info/200202/performance_and_spending/1079/payments_over_500,19-May-2023,FINANCE (Inc SIU),MOAT FARM INFANTS SCHOOL   ,Assistant Chief Executive (Excl SIU),1830.00,Schools Support Services,2324P02_CR00409,61031
Sandwell Metropolitan Borough Council,http://www.sandwell.gov.uk/info/200202/performance_and_spending/1079/payments_over_500,19-May-2023,FINANCE (Inc SIU),HARVILLS HAWTHORN PRIMARY SCHOOL  ,Assistant Chief Executive (Excl SIU),1875.00,Schools Support Services,2324P02_CR00410,01782074
Sandwell Metropolitan Borough Council,http://www.sandwell.gov.uk/info/200202/performance_and_spending/1079/payments_over_500,19-May-2023,FINANCE (Inc SIU),WESTMINSTER SCHOOL    ,Assistant Chief Executive (Excl SIU),1875.00,Schools Support Services,2324P02_CR00411,60957
Sandwell Metropolitan Borough Council,http://www.sandwell.gov.uk/info/200202/performance_and_spending/1079/payments_over_500,19-May-2023,FINANCE (Inc SIU),CAUSEWAY GREEN PRIMARY SCHOOL  ,Assistant Chief Executive (Excl SIU),1890.00,Schools Support Services,2324P02_CR00412,60976
Sandwell Metropolitan Borough Council,http://www.sandwell.gov.uk/info/200202/performance_and_spending/1079/payments_over_500,19-May-2023,FINANCE (Inc SIU),LYNG PRIMARY SCHOOL   ,Assistant Chief Executive (Excl SIU),1995.00,Schools Support Services,2324P02_CR00413,61026
Sandwell Metropolitan Borough Council,http://www.sandwell.gov.uk/info/200202/performance_and_spending/1079/payments_over_500,19-May-2023,FINANCE (Inc SIU),EATON VALLEY PRIMARY SCHOOL,Assistant Chief Executive (Excl SIU),2010.00,Schools Support Services,2324P02_CR00414,60981
Sandwell Metropolitan Borough Council,http://www.sandwell.gov.uk/info/200202/performance_and_spending/1079/payments_over_500,19-May-2023,FINANCE (Inc SIU),HIGHFIELDS PRIMARY SCHOOL         ,Assistant Chief Executive (Excl SIU),2025.00,Schools Support Services,2324P02_CR00415,01782118
Sandwell Metropolitan Borough Council,http://www.sandwell.gov.uk/info/200202/performance_and_spending/1079/payments_over_500,19-May-2023,FINANCE (Inc SIU),WOOD GREEN JUNIOR SCHOOL    ,Assistant Chief Executive (Excl SIU),2070.00,Schools Support Services,2324P02_CR00416,61076
Sandwell Metropolitan Borough Council,http://www.sandwell.gov.uk/info/200202/performance_and_spending/1079/payments_over_500,19-May-2023,FINANCE (Inc SIU),HARGATE PRIMARY SCHOOL          ,Assistant Chief Executive (Excl SIU),2100.00,Schools Support Services,2324P02_CR00417,60999
Sandwell Metropolitan Borough Council,http://www.sandwell.gov.uk/info/200202/performance_and_spending/1079/payments_over_500,19-May-2023,FINANCE (Inc SIU),GALTON VALLEY PRIMARY SCHOOL     ,Assistant Chief Executive (Excl SIU),2130.00,Schools Support Services,2324P02_CR00418,73124
Sandwell Metropolitan Borough Council,http://www.sandwell.gov.uk/info/200202/performance_and_spending/1079/payments_over_500,19-May-2023,FINANCE (Inc SIU),TEMPLE MEADOW PRIMARY SCHOOL       ,Assistant Chief Executive (Excl SIU),2130.00,Schools Support Services,2324P02_CR00419,61065
Sandwell Metropolitan Borough Council,http://www.sandwell.gov.uk/info/200202/performance_and_spending/1079/payments_over_500,19-May-2023,FINANCE (Inc SIU),HANBURY PRIMARY SCHOOL    ,Assistant Chief Executive (Excl SIU),2175.00,Schools Support Services,2324P02_CR00420,60995
Sandwell Metropolitan Borough Council,http://www.sandwell.gov.uk/info/200202/performance_and_spending/1079/payments_over_500,19-May-2023,FINANCE (Inc SIU),LODGE PRIMARY SCHOOL    ,Assistant Chief Executive (Excl SIU),2190.00,Schools Support Services,2324P02_CR00421,61015
Sandwell Metropolitan Borough Council,http://www.sandwell.gov.uk/info/200202/performance_and_spending/1079/payments_over_500,19-May-2023,FINANCE (Inc SIU),BURNT TREE PRIMARY SCHOOL    ,Assistant Chief Executive (Excl SIU),2220.00,Schools Support Services,2324P02_CR00422,60974
Sandwell Metropolitan Borough Council,http://www.sandwell.gov.uk/info/200202/performance_and_spending/1079/payments_over_500,19-May-2023,FINANCE (Inc SIU),CROCKETTS LANE COMMUNITY PRIMARY SCHOOL    ,Assistant Chief Executive (Excl SIU),2220.00,Schools Support Services,2324P02_CR00423,60980
Sandwell Metropolitan Borough Council,http://www.sandwell.gov.uk/info/200202/performance_and_spending/1079/payments_over_500,19-May-2023,FINANCE (Inc SIU),GREAT BRIDGE PRIMARY SCHOOL  ,Assistant Chief Executive (Excl SIU),2250.00,Schools Support Services,2324P02_CR00424,42484
Sandwell Metropolitan Borough Council,http://www.sandwell.gov.uk/info/200202/performance_and_spending/1079/payments_over_500,19-May-2023,FINANCE (Inc SIU),SPRINGFIELD PRIMARY SCHOOL        ,Assistant Chief Executive (Excl SIU),2295.00,Schools Support Services,2324P02_CR00425,61050
Sandwell Metropolitan Borough Council,http://www.sandwell.gov.uk/info/200202/performance_and_spending/1079/payments_over_500,19-May-2023,FINANCE (Inc SIU),BEARWOOD PRIMARY SCHOOL    ,Assistant Chief Executive (Excl SIU),2340.00,Schools Support Services,2324P02_CR00426,60967
Sandwell Metropolitan Borough Council,http://www.sandwell.gov.uk/info/200202/performance_and_spending/1079/payments_over_500,19-May-2023,FINANCE (Inc SIU),REDDAL HILL PRIMARY SCHOOL    ,Assistant Chief Executive (Excl SIU),2355.00,Schools Support Services,2324P02_CR00427,61043
Sandwell Metropolitan Borough Council,http://www.sandwell.gov.uk/info/200202/performance_and_spending/1079/payments_over_500,19-May-2023,FINANCE (Inc SIU),HOLY TRINITY CE PRIMARY         ,Assistant Chief Executive (Excl SIU),2370.00,Schools Support Services,2324P02_CR00428,61004
Sandwell Metropolitan Borough Council,http://www.sandwell.gov.uk/info/200202/performance_and_spending/1079/payments_over_500,19-May-2023,FINANCE (Inc SIU),HALL GREEN PRIMARY SCHOOL            ,Assistant Chief Executive (Excl SIU),2400.00,Schools Support Services,2324P02_CR00429,60996
Sandwell Metropolitan Borough Council,http://www.sandwell.gov.uk/info/200202/performance_and_spending/1079/payments_over_500,19-May-2023,FINANCE (Inc SIU),FERNDALE PRIMARY SCHOOL    ,Assistant Chief Executive (Excl SIU),2415.00,Schools Support Services,2324P02_CR00430,60987
Sandwell Metropolitan Borough Council,http://www.sandwell.gov.uk/info/200202/performance_and_spending/1079/payments_over_500,19-May-2023,FINANCE (Inc SIU),LANGLEY PRIMARY SCHOOL     ,Assistant Chief Executive (Excl SIU),2460.00,Schools Support Services,2324P02_CR00431,61011
Sandwell Metropolitan Borough Council,http://www.sandwell.gov.uk/info/200202/performance_and_spending/1079/payments_over_500,19-May-2023,FINANCE (Inc SIU),ST MATTHEWS CE PRIMARY SCHOOL            ,Assistant Chief Executive (Excl SIU),2505.00,Schools Support Services,2324P02_CR00432,61061
Sandwell Metropolitan Borough Council,http://www.sandwell.gov.uk/info/200202/performance_and_spending/1079/payments_over_500,19-May-2023,FINANCE (Inc SIU),BRANDHALL PRIMARY SCHOOL  ,Assistant Chief Executive (Excl SIU),2565.00,Schools Support Services,2324P02_CR00433,60971
Sandwell Metropolitan Borough Council,http://www.sandwell.gov.uk/info/200202/performance_and_spending/1079/payments_over_500,19-May-2023,FINANCE (Inc SIU),BLACKHEATH PRIMARY SCHOOL   ,Assistant Chief Executive (Excl SIU),2625.00,Schools Support Services,2324P02_CR00434,60968
Sandwell Metropolitan Borough Council,http://www.sandwell.gov.uk/info/200202/performance_and_spending/1079/payments_over_500,19-May-2023,FINANCE (Inc SIU),SACRED HEART PRIMARY SCHOOL   ,Assistant Chief Executive (Excl SIU),2670.00,Schools Support Services,2324P02_CR00435,61048
Sandwell Metropolitan Borough Council,http://www.sandwell.gov.uk/info/200202/performance_and_spending/1079/payments_over_500,19-May-2023,FINANCE (Inc SIU),GLEBEFIELDS PRIMARY SCHOOL    ,Assistant Chief Executive (Excl SIU),2925.00,Schools Support Services,2324P02_CR00436,60989
Sandwell Metropolitan Borough Council,http://www.sandwell.gov.uk/info/200202/performance_and_spending/1079/payments_over_500,19-May-2023,FINANCE (Inc SIU),JOSEPH TURNER PRIMARY SCHOOL     ,Assistant Chief Executive (Excl SIU),2925.00,Schools Support Services,2324P02_CR00437,61006
Sandwell Metropolitan Borough Council,http://www.sandwell.gov.uk/info/200202/performance_and_spending/1079/payments_over_500,19-May-2023,FINANCE (Inc SIU),ST JAMES C OF E PRIMARY SCHOOL,Assistant Chief Executive (Excl SIU),2985.00,Schools Support Services,2324P02_CR00438,61054
Sandwell Metropolitan Borough Council,http://www.sandwell.gov.uk/info/200202/performance_and_spending/1079/payments_over_500,19-May-2023,FINANCE (Inc SIU),ROOD END PRIMARY SCHOOL      ,Assistant Chief Executive (Excl SIU),3000.00,Schools Support Services,2324P02_CR00439,61044
Sandwell Metropolitan Borough Council,http://www.sandwell.gov.uk/info/200202/performance_and_spending/1079/payments_over_500,19-May-2023,FINANCE (Inc SIU),THE PRIORY PRIMARY    ,Assistant Chief Executive (Excl SIU),3135.00,Schools Support Services,2324P02_CR00440,61066
Sandwell Metropolitan Borough Council,http://www.sandwell.gov.uk/info/200202/performance_and_spending/1079/payments_over_500,19-May-2023,FINANCE (Inc SIU),CAPE PRIMARY SCHOOL,Assistant Chief Executive (Excl SIU),3420.00,Schools Support Services,2324P02_CR00441,01672537
Sandwell Metropolitan Borough Council,http://www.sandwell.gov.uk/info/200202/performance_and_spending/1079/payments_over_500,19-May-2023,FINANCE (Inc SIU),ROWLEY HALL PRIMARY SCHOOL       ,Assistant Chief Executive (Excl SIU),3705.00,Schools Support Services,2324P02_CR00442,61046
Sandwell Metropolitan Borough Council,http://www.sandwell.gov.uk/info/200202/performance_and_spending/1079/payments_over_500,19-May-2023,FINANCE (Inc SIU),YEW TREE PRIMARY SCHOOL ,Assistant Chief Executive (Excl SIU),3840.00,Schools Support Services,2324P02_CR00443,61078
Sandwell Metropolitan Borough Council,http://www.sandwell.gov.uk/info/200202/performance_and_spending/1079/payments_over_500,19-May-2023,FINANCE (Inc SIU),PENNYHILL PRIMARY,Assistant Chief Executive (Excl SIU),4155.00,Schools Support Services,2324P02_CR00444,73125
Sandwell Metropolitan Borough Council,http://www.sandwell.gov.uk/info/200202/performance_and_spending/1079/payments_over_500,19-May-2023,FINANCE (Inc SIU),UPLANDS MANOR PRIMARY     ,Assistant Chief Executive (Excl SIU),5190.00,Schools Support Services,2324P02_CR00445,61071
Sandwell Metropolitan Borough Council,http://www.sandwell.gov.uk/info/200202/performance_and_spending/1079/payments_over_500,19-May-2023,FINANCE (Inc SIU),ST MICHAELS CE HIGH SCHOOL,Assistant Chief Executive (Excl SIU),6165.00,Schools Support Services,2324P02_CR00446,60948
Sandwell Metropolitan Borough Council,http://www.sandwell.gov.uk/info/200202/performance_and_spending/1079/payments_over_500,19-May-2023,FINANCE (Inc SIU),HOLLY LODGE FOUNDATION HIGH SCHOOL,Assistant Chief Executive (Excl SIU),8625.00,Schools Support Services,2324P02_CR00447,60942
Sandwell Metropolitan Borough Council,http://www.sandwell.gov.uk/info/200202/performance_and_spending/1079/payments_over_500,19-May-2023,FINANCE (Inc SIU),PHOENIX COLLEGIATE COLLEGE,Assistant Chief Executive (Excl SIU),10380.00,Schools Support Services,2324P02_CR00448,95444
Sandwell Metropolitan Borough Council,http://www.sandwell.gov.uk/info/200202/performance_and_spending/1079/payments_over_500,10-May-2023,FINANCE (Inc SIU),BRUSHSTROKES,Assistant Chief Executive (Excl SIU),12000.00,Grant Payments,2324P02_CR00449,21029374
Sandwell Metropolitan Borough Council,http://www.sandwell.gov.uk/info/200202/performance_and_spending/1079/payments_over_500,05-May-2023,FINANCE (Inc SIU),MAKING A DIFFERENCE,Assistant Chief Executive (Excl SIU),12000.00,Grant Payments,2324P02_CR00450,112007
Sandwell Metropolitan Borough Council,http://www.sandwell.gov.uk/info/200202/performance_and_spending/1079/payments_over_500,15-May-2023,FINANCE (Inc SIU),BLACK COUNTRY FOODBANK LTD,Assistant Chief Executive (Excl SIU),15500.00,Grant Payments,2324P02_CR00451,164845
Sandwell Metropolitan Borough Council,http://www.sandwell.gov.uk/info/200202/performance_and_spending/1079/payments_over_500,05-May-2023,FINANCE (Inc SIU),SMETHWICK CHURCH ACTION NETWORK,Assistant Chief Executive (Excl SIU),17500.00,Grant Payments,2324P02_CR00452,118380
Sandwell Metropolitan Borough Council,http://www.sandwell.gov.uk/info/200202/performance_and_spending/1079/payments_over_500,01-May-2023,Housing & Assets Total,PROFILE SECURITY SERVICES LTD,Corporate Management,10118.40,Security,2324P02_CR00453,131253
Sandwell Metropolitan Borough Council,http://www.sandwell.gov.uk/info/200202/performance_and_spending/1079/payments_over_500,01-May-2023,Housing & Assets Total,PROFILE SECURITY SERVICES LTD,Corporate Management,10118.40,Security,2324P02_CR00454,131253
Sandwell Metropolitan Borough Council,http://www.sandwell.gov.uk/info/200202/performance_and_spending/1079/payments_over_500,01-May-2023,Housing & Assets Total,PROFILE SECURITY SERVICES LTD,Corporate Management,11167.75,Security,2324P02_CR00455,131253
Sandwell Metropolitan Borough Council,http://www.sandwell.gov.uk/info/200202/performance_and_spending/1079/payments_over_500,01-May-2023,Housing & Assets Total,PROFILE SECURITY SERVICES LTD,Corporate Management,11167.75,Security,2324P02_CR00456,131253
Sandwell Metropolitan Borough Council,http://www.sandwell.gov.uk/info/200202/performance_and_spending/1079/payments_over_500,01-May-2023,Housing & Assets Total,TOTALENERGIES GAS & POWER LTD,Corporate Management,539.51,Gas,2324P02_CR00457,107605
Sandwell Metropolitan Borough Council,http://www.sandwell.gov.uk/info/200202/performance_and_spending/1079/payments_over_500,01-May-2023,Housing & Assets Total,TOTALENERGIES GAS & POWER LTD,Corporate Management,866.04,Electricity,2324P02_CR00458,107605
Sandwell Metropolitan Borough Council,http://www.sandwell.gov.uk/info/200202/performance_and_spending/1079/payments_over_500,02-May-2023,Housing & Assets Total,GILANI ENTERPRISES LIMITED,Corporate Management,500.00,Rents,2324P02_CR00459,2696
Sandwell Metropolitan Borough Council,http://www.sandwell.gov.uk/info/200202/performance_and_spending/1079/payments_over_500,01-May-2023,Housing & Assets Total,"HIGHFIELD HOUSE HOTEL,",Corporate Management,540.00,Rents,2324P02_CR00460,162756
Sandwell Metropolitan Borough Council,http://www.sandwell.gov.uk/info/200202/performance_and_spending/1079/payments_over_500,17-May-2023,Housing & Assets Total,CONTRACT LETTINGS LTD,Corporate Management,541.80,Rents,2324P02_CR00461,76625
Sandwell Metropolitan Borough Council,http://www.sandwell.gov.uk/info/200202/performance_and_spending/1079/payments_over_500,17-May-2023,Housing & Assets Total,CONTRACT LETTINGS LTD,Corporate Management,541.80,Rents,2324P02_CR00462,76625
Sandwell Metropolitan Borough Council,http://www.sandwell.gov.uk/info/200202/performance_and_spending/1079/payments_over_500,01-May-2023,Housing & Assets Total,CONTRACT LETTINGS LTD,Corporate Management,559.86,Rents,2324P02_CR00463,76625
Sandwell Metropolitan Borough Council,http://www.sandwell.gov.uk/info/200202/performance_and_spending/1079/payments_over_500,01-May-2023,Housing & Assets Total,CONTRACT LETTINGS LTD,Corporate Management,559.86,Rents,2324P02_CR00464,76625
Sandwell Metropolitan Borough Council,http://www.sandwell.gov.uk/info/200202/performance_and_spending/1079/payments_over_500,01-May-2023,Housing & Assets Total,"HIGHFIELD HOUSE HOTEL,",Corporate Management,600.00,Rents,2324P02_CR00465,162756
Sandwell Metropolitan Borough Council,http://www.sandwell.gov.uk/info/200202/performance_and_spending/1079/payments_over_500,01-May-2023,Housing & Assets Total,"HIGHFIELD HOUSE HOTEL,",Corporate Management,675.00,Rents,2324P02_CR00466,162756
Sandwell Metropolitan Borough Council,http://www.sandwell.gov.uk/info/200202/performance_and_spending/1079/payments_over_500,17-May-2023,Housing & Assets Total,CONTRACT LETTINGS LTD,Corporate Management,678.60,Rents,2324P02_CR00467,76625
Sandwell Metropolitan Borough Council,http://www.sandwell.gov.uk/info/200202/performance_and_spending/1079/payments_over_500,17-May-2023,Housing & Assets Total,CONTRACT LETTINGS LTD,Corporate Management,678.60,Rents,2324P02_CR00468,76625
Sandwell Metropolitan Borough Council,http://www.sandwell.gov.uk/info/200202/performance_and_spending/1079/payments_over_500,01-May-2023,Housing & Assets Total,CONTRACT LETTINGS LTD,Corporate Management,701.22,Rents,2324P02_CR00469,76625
Sandwell Metropolitan Borough Council,http://www.sandwell.gov.uk/info/200202/performance_and_spending/1079/payments_over_500,01-May-2023,Housing & Assets Total,CONTRACT LETTINGS LTD,Corporate Management,701.22,Rents,2324P02_CR00470,76625
Sandwell Metropolitan Borough Council,http://www.sandwell.gov.uk/info/200202/performance_and_spending/1079/payments_over_500,17-May-2023,Housing & Assets Total,CONTRACT LETTINGS LTD,Corporate Management,738.60,Rents,2324P02_CR00471,76625
Sandwell Metropolitan Borough Council,http://www.sandwell.gov.uk/info/200202/performance_and_spending/1079/payments_over_500,17-May-2023,Housing & Assets Total,CONTRACT LETTINGS LTD,Corporate Management,738.60,Rents,2324P02_CR00472,76625
Sandwell Metropolitan Borough Council,http://www.sandwell.gov.uk/info/200202/performance_and_spending/1079/payments_over_500,09-May-2023,Housing & Assets Total,COMPASS PROPERTIES,Corporate Management,750.00,Rents,2324P02_CR00473,166027
Sandwell Metropolitan Borough Council,http://www.sandwell.gov.uk/info/200202/performance_and_spending/1079/payments_over_500,01-May-2023,Housing & Assets Total,CONTRACT LETTINGS LTD,Corporate Management,763.22,Rents,2324P02_CR00474,76625
Sandwell Metropolitan Borough Council,http://www.sandwell.gov.uk/info/200202/performance_and_spending/1079/payments_over_500,01-May-2023,Housing & Assets Total,CONTRACT LETTINGS LTD,Corporate Management,763.22,Rents,2324P02_CR00475,76625
Sandwell Metropolitan Borough Council,http://www.sandwell.gov.uk/info/200202/performance_and_spending/1079/payments_over_500,08-May-2023,Housing & Assets Total,CKP LTD T/A HAGLEY HOTEL,Corporate Management,960.00,Rents,2324P02_CR00476,143677
Sandwell Metropolitan Borough Council,http://www.sandwell.gov.uk/info/200202/performance_and_spending/1079/payments_over_500,01-May-2023,Housing & Assets Total,GILANI ENTERPRISES LIMITED,Corporate Management,1000.00,Rents,2324P02_CR00477,2696
Sandwell Metropolitan Borough Council,http://www.sandwell.gov.uk/info/200202/performance_and_spending/1079/payments_over_500,01-May-2023,Housing & Assets Total,PEOPLE POTENTIAL POSSIBILITIES,Corporate Management,1020.00,Rents,2324P02_CR00478,76739
Sandwell Metropolitan Borough Council,http://www.sandwell.gov.uk/info/200202/performance_and_spending/1079/payments_over_500,08-May-2023,Housing & Assets Total,CKP LTD T/A HAGLEY HOTEL,Corporate Management,1080.00,Rents,2324P02_CR00479,143677
Sandwell Metropolitan Borough Council,http://www.sandwell.gov.uk/info/200202/performance_and_spending/1079/payments_over_500,08-May-2023,Housing & Assets Total,CKP LTD T/A HAGLEY HOTEL,Corporate Management,1080.00,Rents,2324P02_CR00480,143677
Sandwell Metropolitan Borough Council,http://www.sandwell.gov.uk/info/200202/performance_and_spending/1079/payments_over_500,01-May-2023,Housing & Assets Total,"HIGHFIELD HOUSE HOTEL,",Corporate Management,1125.00,Rents,2324P02_CR00481,162756
Sandwell Metropolitan Borough Council,http://www.sandwell.gov.uk/info/200202/performance_and_spending/1079/payments_over_500,01-May-2023,Housing & Assets Total,PEOPLE POTENTIAL POSSIBILITIES,Corporate Management,1140.00,Rents,2324P02_CR00482,76739
Sandwell Metropolitan Borough Council,http://www.sandwell.gov.uk/info/200202/performance_and_spending/1079/payments_over_500,02-May-2023,Housing & Assets Total,GILANI ENTERPRISES LIMITED,Corporate Management,1200.00,Rents,2324P02_CR00483,2696
Sandwell Metropolitan Borough Council,http://www.sandwell.gov.uk/info/200202/performance_and_spending/1079/payments_over_500,06-May-2023,Housing & Assets Total,"HIGHFIELD HOUSE HOTEL,",Corporate Management,1200.00,Rents,2324P02_CR00484,162756
Sandwell Metropolitan Borough Council,http://www.sandwell.gov.uk/info/200202/performance_and_spending/1079/payments_over_500,01-May-2023,Housing & Assets Total,RIGHT TO CARE LTD.,Corporate Management,1217.86,Rents,2324P02_CR00485,133426
Sandwell Metropolitan Borough Council,http://www.sandwell.gov.uk/info/200202/performance_and_spending/1079/payments_over_500,01-May-2023,Housing & Assets Total,RIGHT TO CARE LTD.,Corporate Management,1217.86,Rents,2324P02_CR00486,133426
Sandwell Metropolitan Borough Council,http://www.sandwell.gov.uk/info/200202/performance_and_spending/1079/payments_over_500,01-May-2023,Housing & Assets Total,RIGHT TO CARE LTD.,Corporate Management,1217.86,Rents,2324P02_CR00487,133426
Sandwell Metropolitan Borough Council,http://www.sandwell.gov.uk/info/200202/performance_and_spending/1079/payments_over_500,01-May-2023,Housing & Assets Total,GILANI ENTERPRISES LIMITED,Corporate Management,1250.00,Rents,2324P02_CR00488,2696
Sandwell Metropolitan Borough Council,http://www.sandwell.gov.uk/info/200202/performance_and_spending/1079/payments_over_500,01-May-2023,Housing & Assets Total,"HIGHFIELD HOUSE HOTEL,",Corporate Management,1320.00,Rents,2324P02_CR00489,162756
Sandwell Metropolitan Borough Council,http://www.sandwell.gov.uk/info/200202/performance_and_spending/1079/payments_over_500,04-May-2023,Housing & Assets Total,"HIGHFIELD HOUSE HOTEL,",Corporate Management,1395.00,Rents,2324P02_CR00490,162756
Sandwell Metropolitan Borough Council,http://www.sandwell.gov.uk/info/200202/performance_and_spending/1079/payments_over_500,01-May-2023,Housing & Assets Total,"HIGHFIELD HOUSE HOTEL,",Corporate Management,1440.00,Rents,2324P02_CR00491,162756
Sandwell Metropolitan Borough Council,http://www.sandwell.gov.uk/info/200202/performance_and_spending/1079/payments_over_500,02-May-2023,Housing & Assets Total,GILANI ENTERPRISES LIMITED,Corporate Management,1525.00,Rents,2324P02_CR00492,2696
Sandwell Metropolitan Borough Council,http://www.sandwell.gov.uk/info/200202/performance_and_spending/1079/payments_over_500,01-May-2023,Housing & Assets Total,RIGHT TO CARE LTD.,Corporate Management,1550.00,Rents,2324P02_CR00493,133426
Sandwell Metropolitan Borough Council,http://www.sandwell.gov.uk/info/200202/performance_and_spending/1079/payments_over_500,01-May-2023,Housing & Assets Total,RIGHT TO CARE LTD.,Corporate Management,1550.00,Rents,2324P02_CR00494,133426
Sandwell Metropolitan Borough Council,http://www.sandwell.gov.uk/info/200202/performance_and_spending/1079/payments_over_500,01-May-2023,Housing & Assets Total,RIGHT TO CARE LTD.,Corporate Management,1657.06,Rents,2324P02_CR00495,133426
Sandwell Metropolitan Borough Council,http://www.sandwell.gov.uk/info/200202/performance_and_spending/1079/payments_over_500,06-May-2023,Housing & Assets Total,"HIGHFIELD HOUSE HOTEL,",Corporate Management,1800.00,Rents,2324P02_CR00496,162756
Sandwell Metropolitan Borough Council,http://www.sandwell.gov.uk/info/200202/performance_and_spending/1079/payments_over_500,05-May-2023,Housing & Assets Total,"HIGHFIELD HOUSE HOTEL,",Corporate Management,1800.00,Rents,2324P02_CR00497,162756
Sandwell Metropolitan Borough Council,http://www.sandwell.gov.uk/info/200202/performance_and_spending/1079/payments_over_500,01-May-2023,Housing & Assets Total,"HIGHFIELD HOUSE HOTEL,",Corporate Management,1800.00,Rents,2324P02_CR00498,162756
Sandwell Metropolitan Borough Council,http://www.sandwell.gov.uk/info/200202/performance_and_spending/1079/payments_over_500,01-May-2023,Housing & Assets Total,"HIGHFIELD HOUSE HOTEL,",Corporate Management,1800.00,Rents,2324P02_CR00499,162756
Sandwell Metropolitan Borough Council,http://www.sandwell.gov.uk/info/200202/performance_and_spending/1079/payments_over_500,01-May-2023,Housing & Assets Total,GILANI ENTERPRISES LIMITED,Corporate Management,2000.00,Rents,2324P02_CR00500,2696
Sandwell Metropolitan Borough Council,http://www.sandwell.gov.uk/info/200202/performance_and_spending/1079/payments_over_500,01-May-2023,Housing & Assets Total,GILANI ENTERPRISES LIMITED,Corporate Management,2000.00,Rents,2324P02_CR00501,2696
Sandwell Metropolitan Borough Council,http://www.sandwell.gov.uk/info/200202/performance_and_spending/1079/payments_over_500,01-May-2023,Housing & Assets Total,GILANI ENTERPRISES LIMITED,Corporate Management,2000.00,Rents,2324P02_CR00502,2696
Sandwell Metropolitan Borough Council,http://www.sandwell.gov.uk/info/200202/performance_and_spending/1079/payments_over_500,01-May-2023,Housing & Assets Total,GILANI ENTERPRISES LIMITED,Corporate Management,2000.00,Rents,2324P02_CR00503,2696
Sandwell Metropolitan Borough Council,http://www.sandwell.gov.uk/info/200202/performance_and_spending/1079/payments_over_500,01-May-2023,Housing & Assets Total,"HIGHFIELD HOUSE HOTEL,",Corporate Management,2100.00,Rents,2324P02_CR00504,162756
Sandwell Metropolitan Borough Council,http://www.sandwell.gov.uk/info/200202/performance_and_spending/1079/payments_over_500,05-May-2023,Housing & Assets Total,"HIGHFIELD HOUSE HOTEL,",Corporate Management,2250.00,Rents,2324P02_CR00505,162756
Sandwell Metropolitan Borough Council,http://www.sandwell.gov.uk/info/200202/performance_and_spending/1079/payments_over_500,02-May-2023,Housing & Assets Total,GILANI ENTERPRISES LIMITED,Corporate Management,2500.00,Rents,2324P02_CR00506,2696
Sandwell Metropolitan Borough Council,http://www.sandwell.gov.uk/info/200202/performance_and_spending/1079/payments_over_500,01-May-2023,Housing & Assets Total,"HIGHFIELD HOUSE HOTEL,",Corporate Management,2520.00,Rents,2324P02_CR00507,162756
Sandwell Metropolitan Borough Council,http://www.sandwell.gov.uk/info/200202/performance_and_spending/1079/payments_over_500,01-May-2023,Housing & Assets Total,"HIGHFIELD HOUSE HOTEL,",Corporate Management,2820.00,Rents,2324P02_CR00508,162756
Sandwell Metropolitan Borough Council,http://www.sandwell.gov.uk/info/200202/performance_and_spending/1079/payments_over_500,01-May-2023,Housing & Assets Total,GILANI ENTERPRISES LIMITED,Corporate Management,3000.00,Rents,2324P02_CR00509,2696
Sandwell Metropolitan Borough Council,http://www.sandwell.gov.uk/info/200202/performance_and_spending/1079/payments_over_500,01-May-2023,Housing & Assets Total,GILANI ENTERPRISES LIMITED,Corporate Management,3000.00,Rents,2324P02_CR00510,2696
Sandwell Metropolitan Borough Council,http://www.sandwell.gov.uk/info/200202/performance_and_spending/1079/payments_over_500,01-May-2023,Housing & Assets Total,GILANI ENTERPRISES LIMITED,Corporate Management,3000.00,Rents,2324P02_CR00511,2696
Sandwell Metropolitan Borough Council,http://www.sandwell.gov.uk/info/200202/performance_and_spending/1079/payments_over_500,01-May-2023,Housing & Assets Total,GILANI ENTERPRISES LIMITED,Corporate Management,5000.00,Rents,2324P02_CR00512,2696
Sandwell Metropolitan Borough Council,http://www.sandwell.gov.uk/info/200202/performance_and_spending/1079/payments_over_500,01-May-2023,Housing & Assets Total,GILANI ENTERPRISES LIMITED,Corporate Management,5000.00,Rents,2324P02_CR00513,2696
Sandwell Metropolitan Borough Council,http://www.sandwell.gov.uk/info/200202/performance_and_spending/1079/payments_over_500,01-May-2023,Housing & Assets Total,CKP LTD T/A HAGLEY HOTEL,Corporate Management,7050.00,Rents,2324P02_CR00514,143677
Sandwell Metropolitan Borough Council,http://www.sandwell.gov.uk/info/200202/performance_and_spending/1079/payments_over_500,01-May-2023,Housing & Assets Total,SAFFRON HOTEL,Corporate Management,103550.00,Rents,2324P02_CR00515,164316
Sandwell Metropolitan Borough Council,http://www.sandwell.gov.uk/info/200202/performance_and_spending/1079/payments_over_500,01-May-2023,Housing & Assets Total,COOKE RUDLING LIMITED,Assistant Chief Executive (Excl SIU),562.50,Externally Purchased Professional Services ,2324P02_CR00516,01577073
Sandwell Metropolitan Borough Council,http://www.sandwell.gov.uk/info/200202/performance_and_spending/1079/payments_over_500,16-May-2023,Housing & Assets Total,WORD360 LTD,Corporate Management,531.94,Externally Purchased Professional Services ,2324P02_CR00517,01679409
Sandwell Metropolitan Borough Council,http://www.sandwell.gov.uk/info/200202/performance_and_spending/1079/payments_over_500,16-May-2023,Housing & Assets Total,WORD360 LTD,Corporate Management,875.69,Externally Purchased Professional Services ,2324P02_CR00518,01679409
Sandwell Metropolitan Borough Council,http://www.sandwell.gov.uk/info/200202/performance_and_spending/1079/payments_over_500,01-May-2023,Housing & Assets Total,BRUSHSTROKES,Corporate Management,2420.00,Externally Purchased Professional Services ,2324P02_CR00519,21029374
Sandwell Metropolitan Borough Council,http://www.sandwell.gov.uk/info/200202/performance_and_spending/1079/payments_over_500,01-May-2023,Housing & Assets Total,BRUSHSTROKES,Corporate Management,2500.00,Externally Purchased Professional Services ,2324P02_CR00520,21029374
Sandwell Metropolitan Borough Council,http://www.sandwell.gov.uk/info/200202/performance_and_spending/1079/payments_over_500,01-May-2023,Housing & Assets Total,BRUSHSTROKES,Corporate Management,7332.21,Externally Purchased Professional Services ,2324P02_CR00521,21029374
Sandwell Metropolitan Borough Council,http://www.sandwell.gov.uk/info/200202/performance_and_spending/1079/payments_over_500,01-May-2023,Housing & Assets Total,BRUSHSTROKES,Corporate Management,33169.48,Externally Purchased Professional Services ,2324P02_CR00522,21029374
Sandwell Metropolitan Borough Council,http://www.sandwell.gov.uk/info/200202/performance_and_spending/1079/payments_over_500,01-May-2023,Housing & Assets Total,BRUSHSTROKES,Corporate Management,35685.40,Externally Purchased Professional Services ,2324P02_CR00523,21029374
Sandwell Metropolitan Borough Council,http://www.sandwell.gov.uk/info/200202/performance_and_spending/1079/payments_over_500,01-May-2023,Housing & Assets Total,BRUSHSTROKES,Corporate Management,38201.32,Externally Purchased Professional Services ,2324P02_CR00524,21029374
Sandwell Metropolitan Borough Council,http://www.sandwell.gov.uk/info/200202/performance_and_spending/1079/payments_over_500,12-May-2023,Housing & Assets Total,KALWANT KUNOR,Corporate Management,3726.44,Rents,2324P02_CR00525,162183
Sandwell Metropolitan Borough Council,http://www.sandwell.gov.uk/info/200202/performance_and_spending/1079/payments_over_500,11-May-2023,Housing & Assets Total,REDACTED PERSONAL DATA,Housing & Assets Total,577.53,Rents,2324P02_CR00526,REDACTED PERSONAL DATA
Sandwell Metropolitan Borough Council,http://www.sandwell.gov.uk/info/200202/performance_and_spending/1079/payments_over_500,26-May-2023,Housing & Assets Total,A PRASHER,Corporate Management,500.00,Rents,2324P02_CR00527,112229
Sandwell Metropolitan Borough Council,http://www.sandwell.gov.uk/info/200202/performance_and_spending/1079/payments_over_500,26-May-2023,Housing & Assets Total,BALIJIT KAUR,Corporate Management,500.00,Rents,2324P02_CR00528,101860
Sandwell Metropolitan Borough Council,http://www.sandwell.gov.uk/info/200202/performance_and_spending/1079/payments_over_500,26-May-2023,Housing & Assets Total,BALWANT SINGH,Corporate Management,500.00,Rents,2324P02_CR00529,84433
Sandwell Metropolitan Borough Council,http://www.sandwell.gov.uk/info/200202/performance_and_spending/1079/payments_over_500,26-May-2023,Housing & Assets Total,NARINDER SINGH,Corporate Management,500.00,Rents,2324P02_CR00530,114091
Sandwell Metropolitan Borough Council,http://www.sandwell.gov.uk/info/200202/performance_and_spending/1079/payments_over_500,26-May-2023,Housing & Assets Total,ELEANOR MCGEE,Corporate Management,550.00,Rents,2324P02_CR00531,109162
Sandwell Metropolitan Borough Council,http://www.sandwell.gov.uk/info/200202/performance_and_spending/1079/payments_over_500,05-May-2023,Housing & Communities,ELLIS WILLIAMS ARCHITECTS,Housing & Communities,2500.00,Building Maintenance & Improvements,2324P02_CR00532,165149
Sandwell Metropolitan Borough Council,http://www.sandwell.gov.uk/info/200202/performance_and_spending/1079/payments_over_500,20-May-2023,Housing & Communities,COMMUNITY FIRST PARTNERSHIP LIMITED,Housing & Communities,3995.00,Externally Purchased Professional Services ,2324P02_CR00533,34777
Sandwell Metropolitan Borough Council,http://www.sandwell.gov.uk/info/200202/performance_and_spending/1079/payments_over_500,01-May-2023,Housing & Communities,4 GLOBAL CONSULTING LIMITED,Housing & Communities,4850.00,Externally Purchased Professional Services ,2324P02_CR00534,130998
Sandwell Metropolitan Borough Council,http://www.sandwell.gov.uk/info/200202/performance_and_spending/1079/payments_over_500,20-May-2023,Housing & Communities,COMMUNITY FIRST PARTNERSHIP LIMITED,Housing & Communities,5000.00,Externally Purchased Professional Services ,2324P02_CR00535,34777
Sandwell Metropolitan Borough Council,http://www.sandwell.gov.uk/info/200202/performance_and_spending/1079/payments_over_500,01-May-2023,Housing & Communities,HOARE LEA LLP,Housing & Communities,6000.00,"CIP - New Construction,Conversion, Enhancement & Reno",2324P02_CR00536,137607
Sandwell Metropolitan Borough Council,http://www.sandwell.gov.uk/info/200202/performance_and_spending/1079/payments_over_500,01-May-2023,Housing & Communities,HOARE LEA LLP,Housing & Communities,6000.00,"CIP - New Construction,Conversion, Enhancement & Reno",2324P02_CR00537,137607
Sandwell Metropolitan Borough Council,http://www.sandwell.gov.uk/info/200202/performance_and_spending/1079/payments_over_500,01-May-2023,Housing & Communities,WATES CONSTRUCTION LTD      ,Housing & Communities,361709.31,"CIP - New Construction,Conversion, Enhancement & Reno",2324P02_CR00538,77000882
Sandwell Metropolitan Borough Council,http://www.sandwell.gov.uk/info/200202/performance_and_spending/1079/payments_over_500,01-May-2023,Housing & Communities,WATES CONSTRUCTION LTD            ,Housing & Communities,433228.21,"CIP - New Construction,Conversion, Enhancement & Reno",2324P02_CR00539,77000882
Sandwell Metropolitan Borough Council,http://www.sandwell.gov.uk/info/200202/performance_and_spending/1079/payments_over_500,01-May-2023,Housing & Communities,WATES CONSTRUCTION LTD     ,Housing & Communities,802492.06,"CIP - New Construction,Conversion, Enhancement & Reno",2324P02_CR00540,77000882
Sandwell Metropolitan Borough Council,http://www.sandwell.gov.uk/info/200202/performance_and_spending/1079/payments_over_500,01-May-2023,Housing Revenue Account Capital,VINCI CONSTRUCTION LTD,Housing Revenue Account Capital,-4584.13,Deferred Charges/Grant Payments,2324P02_CR00541,36361
Sandwell Metropolitan Borough Council,http://www.sandwell.gov.uk/info/200202/performance_and_spending/1079/payments_over_500,05-May-2023,Housing Revenue Account Capital,WESSEX LIFT CO LTD,Housing Revenue Account Capital,9700.00,Building Maintenance & Improvements,2324P02_CR00542,01095737
Sandwell Metropolitan Borough Council,http://www.sandwell.gov.uk/info/200202/performance_and_spending/1079/payments_over_500,01-May-2023,Housing Revenue Account Capital,POWRED HEATING COMPONENTS LIMITED,Housing Revenue Account Capital,1996.83,Materials & Consumables,2324P02_CR00543,133978
Sandwell Metropolitan Borough Council,http://www.sandwell.gov.uk/info/200202/performance_and_spending/1079/payments_over_500,01-May-2023,Housing Revenue Account Capital,POWRED HEATING COMPONENTS LIMITED,Housing Revenue Account Capital,2368.07,Materials & Consumables,2324P02_CR00544,133978
Sandwell Metropolitan Borough Council,http://www.sandwell.gov.uk/info/200202/performance_and_spending/1079/payments_over_500,01-May-2023,Housing Revenue Account Capital,SELECT WINDOWS (HOME IMPROVEMENTS) LIMITED,Housing Revenue Account Capital,504.69,Contract Payments,2324P02_CR00545,42616
Sandwell Metropolitan Borough Council,http://www.sandwell.gov.uk/info/200202/performance_and_spending/1079/payments_over_500,01-May-2023,Housing Revenue Account Capital,SELECT WINDOWS (HOME IMPROVEMENTS) LIMITED,Housing Revenue Account Capital,504.70,Contract Payments,2324P02_CR00546,42616
Sandwell Metropolitan Borough Council,http://www.sandwell.gov.uk/info/200202/performance_and_spending/1079/payments_over_500,01-May-2023,Housing Revenue Account Capital,SELECT WINDOWS (HOME IMPROVEMENTS) LIMITED,Housing Revenue Account Capital,515.21,Contract Payments,2324P02_CR00547,42616
Sandwell Metropolitan Borough Council,http://www.sandwell.gov.uk/info/200202/performance_and_spending/1079/payments_over_500,01-May-2023,Housing Revenue Account Capital,SELECT WINDOWS (HOME IMPROVEMENTS) LIMITED,Housing Revenue Account Capital,519.42,Contract Payments,2324P02_CR00548,42616
Sandwell Metropolitan Borough Council,http://www.sandwell.gov.uk/info/200202/performance_and_spending/1079/payments_over_500,01-May-2023,Housing Revenue Account Capital,SELECT WINDOWS (HOME IMPROVEMENTS) LIMITED,Housing Revenue Account Capital,536.23,Contract Payments,2324P02_CR00549,42616
Sandwell Metropolitan Borough Council,http://www.sandwell.gov.uk/info/200202/performance_and_spending/1079/payments_over_500,01-May-2023,Housing Revenue Account Capital,SELECT WINDOWS (HOME IMPROVEMENTS) LIMITED,Housing Revenue Account Capital,540.75,Contract Payments,2324P02_CR00550,42616
Sandwell Metropolitan Borough Council,http://www.sandwell.gov.uk/info/200202/performance_and_spending/1079/payments_over_500,01-May-2023,Housing Revenue Account Capital,SELECT WINDOWS (HOME IMPROVEMENTS) LIMITED,Housing Revenue Account Capital,599.33,Contract Payments,2324P02_CR00551,42616
Sandwell Metropolitan Borough Council,http://www.sandwell.gov.uk/info/200202/performance_and_spending/1079/payments_over_500,01-May-2023,Housing Revenue Account Capital,SELECT WINDOWS (HOME IMPROVEMENTS) LIMITED,Housing Revenue Account Capital,708.97,Contract Payments,2324P02_CR00552,42616
Sandwell Metropolitan Borough Council,http://www.sandwell.gov.uk/info/200202/performance_and_spending/1079/payments_over_500,01-May-2023,Housing Revenue Account Capital,SELECT WINDOWS (HOME IMPROVEMENTS) LIMITED,Housing Revenue Account Capital,729.78,Contract Payments,2324P02_CR00553,42616
Sandwell Metropolitan Borough Council,http://www.sandwell.gov.uk/info/200202/performance_and_spending/1079/payments_over_500,01-May-2023,Housing Revenue Account Capital,SELECT WINDOWS (HOME IMPROVEMENTS) LIMITED,Housing Revenue Account Capital,936.08,Contract Payments,2324P02_CR00554,42616
Sandwell Metropolitan Borough Council,http://www.sandwell.gov.uk/info/200202/performance_and_spending/1079/payments_over_500,01-May-2023,Housing Revenue Account Capital,SELECT WINDOWS (HOME IMPROVEMENTS) LIMITED,Housing Revenue Account Capital,1079.99,Contract Payments,2324P02_CR00555,42616
Sandwell Metropolitan Borough Council,http://www.sandwell.gov.uk/info/200202/performance_and_spending/1079/payments_over_500,10-May-2023,Housing Revenue Account Capital,PHOENIX GAS SERVICES LIMITED,Housing Revenue Account Capital,4763.51,Contract Payments,2324P02_CR00556,126729
Sandwell Metropolitan Borough Council,http://www.sandwell.gov.uk/info/200202/performance_and_spending/1079/payments_over_500,01-May-2023,Housing Revenue Account Capital,PHOENIX GAS SERVICES LIMITED,Housing Revenue Account Capital,5757.99,Contract Payments,2324P02_CR00557,126729
Sandwell Metropolitan Borough Council,http://www.sandwell.gov.uk/info/200202/performance_and_spending/1079/payments_over_500,01-May-2023,Housing Revenue Account Capital,PHOENIX GAS SERVICES LIMITED,Housing Revenue Account Capital,5958.23,Contract Payments,2324P02_CR00558,126729
Sandwell Metropolitan Borough Council,http://www.sandwell.gov.uk/info/200202/performance_and_spending/1079/payments_over_500,01-May-2023,Housing Revenue Account Capital,RIDGE & PARTNERS LLP,Housing Revenue Account Capital,2080.00,Consultancy,2324P02_CR00559,134994
Sandwell Metropolitan Borough Council,http://www.sandwell.gov.uk/info/200202/performance_and_spending/1079/payments_over_500,01-May-2023,Housing Revenue Account Capital,RIDGE & PARTNERS LLP,Housing Revenue Account Capital,2251.67,Consultancy,2324P02_CR00560,134994
Sandwell Metropolitan Borough Council,http://www.sandwell.gov.uk/info/200202/performance_and_spending/1079/payments_over_500,18-May-2023,Housing Revenue Account Capital,LOVELL PARTNERSHIPS  LTD,Housing Revenue Account Capital,8985.85,"CIP - New Construction,Conversion, Enhancement & Reno",2324P02_CR00561,77007398
Sandwell Metropolitan Borough Council,http://www.sandwell.gov.uk/info/200202/performance_and_spending/1079/payments_over_500,01-May-2023,Housing Revenue Account Capital,STROMA SPECIALIST ACCESS LTD,Housing Revenue Account Capital,9587.27,"CIP - New Construction,Conversion, Enhancement & Reno",2324P02_CR00562,136243
Sandwell Metropolitan Borough Council,http://www.sandwell.gov.uk/info/200202/performance_and_spending/1079/payments_over_500,01-May-2023,Housing Revenue Account Capital,SEDDON CONSTRUCTION LIMITED,Housing Revenue Account Capital,17827.61,"CIP - New Construction,Conversion, Enhancement & Reno",2324P02_CR00563,132999
Sandwell Metropolitan Borough Council,http://www.sandwell.gov.uk/info/200202/performance_and_spending/1079/payments_over_500,10-May-2023,Housing Revenue Account Capital,LOVELL PARTNERSHIPS  LTD,Housing Revenue Account Capital,21367.98,"CIP - New Construction,Conversion, Enhancement & Reno",2324P02_CR00564,77007398
Sandwell Metropolitan Borough Council,http://www.sandwell.gov.uk/info/200202/performance_and_spending/1079/payments_over_500,01-May-2023,Housing Revenue Account Capital,J.HARPER & SONS (LEOMINSTER) LIMITED,Housing Revenue Account Capital,21996.93,"CIP - New Construction,Conversion, Enhancement & Reno",2324P02_CR00565,111814
Sandwell Metropolitan Borough Council,http://www.sandwell.gov.uk/info/200202/performance_and_spending/1079/payments_over_500,01-May-2023,Housing Revenue Account Capital,SEDDON CONSTRUCTION LIMITED,Housing Revenue Account Capital,67870.36,"CIP - New Construction,Conversion, Enhancement & Reno",2324P02_CR00566,132999
Sandwell Metropolitan Borough Council,http://www.sandwell.gov.uk/info/200202/performance_and_spending/1079/payments_over_500,01-May-2023,Housing Revenue Account Capital,LOVELL PARTNERSHIPS  LTD,Housing Revenue Account Capital,85276.86,"CIP - New Construction,Conversion, Enhancement & Reno",2324P02_CR00567,77007398
Sandwell Metropolitan Borough Council,http://www.sandwell.gov.uk/info/200202/performance_and_spending/1079/payments_over_500,16-May-2023,Housing Revenue Account Capital,TRICAS CONSTRUCTION LIMITED,Housing Revenue Account Capital,135113.24,"CIP - New Construction,Conversion, Enhancement & Reno",2324P02_CR00568,165600
Sandwell Metropolitan Borough Council,http://www.sandwell.gov.uk/info/200202/performance_and_spending/1079/payments_over_500,10-May-2023,Housing Revenue Account Capital,VINCI CONSTRUCTION LTD,Housing Revenue Account Capital,166419.15,"CIP - New Construction,Conversion, Enhancement & Reno",2324P02_CR00569,36361
Sandwell Metropolitan Borough Council,http://www.sandwell.gov.uk/info/200202/performance_and_spending/1079/payments_over_500,01-May-2023,Housing Revenue Account Capital,SYCAMORE WINDOWS & CONSERVATORIES LIMITED,Housing Revenue Account Capital,176079.69,"CIP - New Construction,Conversion, Enhancement & Reno",2324P02_CR00570,145272
Sandwell Metropolitan Borough Council,http://www.sandwell.gov.uk/info/200202/performance_and_spending/1079/payments_over_500,01-May-2023,Housing Revenue Account Capital,J.HARPER & SONS (LEOMINSTER) LIMITED,Housing Revenue Account Capital,232737.72,"CIP - New Construction,Conversion, Enhancement & Reno",2324P02_CR00571,111814
Sandwell Metropolitan Borough Council,http://www.sandwell.gov.uk/info/200202/performance_and_spending/1079/payments_over_500,17-May-2023,Housing Revenue Account Capital,J.HARPER & SONS (LEOMINSTER) LIMITED,Housing Revenue Account Capital,258323.98,"CIP - New Construction,Conversion, Enhancement & Reno",2324P02_CR00572,111814
Sandwell Metropolitan Borough Council,http://www.sandwell.gov.uk/info/200202/performance_and_spending/1079/payments_over_500,01-May-2023,Housing Revenue Account Capital,OPENVIEW SECURITY SOLUTIONS LIMITED,Housing Revenue Account Capital,260420.85,"CIP - New Construction,Conversion, Enhancement & Reno",2324P02_CR00573,77000151
Sandwell Metropolitan Borough Council,http://www.sandwell.gov.uk/info/200202/performance_and_spending/1079/payments_over_500,10-May-2023,Housing Revenue Account Capital,SEDDON CONSTRUCTION LIMITED,Housing Revenue Account Capital,274044.30,"CIP - New Construction,Conversion, Enhancement & Reno",2324P02_CR00574,132999
Sandwell Metropolitan Borough Council,http://www.sandwell.gov.uk/info/200202/performance_and_spending/1079/payments_over_500,09-May-2023,Housing Revenue Account Capital,SURE MAINTENANCE LIMITED,Housing Revenue Account Capital,346232.75,"CIP - New Construction,Conversion, Enhancement & Reno",2324P02_CR00575,93926
Sandwell Metropolitan Borough Council,http://www.sandwell.gov.uk/info/200202/performance_and_spending/1079/payments_over_500,01-May-2023,Housing Revenue Account Capital,LOVELL PARTNERSHIPS  LTD,Housing Revenue Account Capital,351026.85,"CIP - New Construction,Conversion, Enhancement & Reno",2324P02_CR00576,77007398
Sandwell Metropolitan Borough Council,http://www.sandwell.gov.uk/info/200202/performance_and_spending/1079/payments_over_500,01-May-2023,Housing Revenue Account Capital,J.HARPER & SONS (LEOMINSTER) LIMITED,Housing Revenue Account Capital,375884.64,"CIP - New Construction,Conversion, Enhancement & Reno",2324P02_CR00577,111814
Sandwell Metropolitan Borough Council,http://www.sandwell.gov.uk/info/200202/performance_and_spending/1079/payments_over_500,01-May-2023,Housing Revenue Account Capital,LIFT & ENGINEERING SERVICES LTD,Housing Revenue Account Capital,6473.55,CIP - Fixtures & Fittings,2324P02_CR00578,77003962
Sandwell Metropolitan Borough Council,http://www.sandwell.gov.uk/info/200202/performance_and_spending/1079/payments_over_500,15-May-2023,Housing Revenue Account Capital,LIFT & ENGINEERING SERVICES LTD,Housing Revenue Account Capital,7506.00,CIP - Fixtures & Fittings,2324P02_CR00579,77003962
Sandwell Metropolitan Borough Council,http://www.sandwell.gov.uk/info/200202/performance_and_spending/1079/payments_over_500,01-May-2023,Housing Revenue Account Capital,VINCI CONSTRUCTION LTD,Housing Revenue Account Capital,705.59,Deferred Charges/Grant Payments,2324P02_CR00580,36361
Sandwell Metropolitan Borough Council,http://www.sandwell.gov.uk/info/200202/performance_and_spending/1079/payments_over_500,01-May-2023,Housing Revenue Account Capital,VINCI CONSTRUCTION LTD,Housing Revenue Account Capital,1293.97,Deferred Charges/Grant Payments,2324P02_CR00581,36361
Sandwell Metropolitan Borough Council,http://www.sandwell.gov.uk/info/200202/performance_and_spending/1079/payments_over_500,01-May-2023,Housing Revenue Account Capital,DOLPHIN LIFTS MIDLANDS LTD,Housing Revenue Account Capital,1466.66,Deferred Charges/Grant Payments,2324P02_CR00582,123852
Sandwell Metropolitan Borough Council,http://www.sandwell.gov.uk/info/200202/performance_and_spending/1079/payments_over_500,01-May-2023,Housing Revenue Account Capital,VINCI CONSTRUCTION LTD,Housing Revenue Account Capital,1876.96,Deferred Charges/Grant Payments,2324P02_CR00583,36361
Sandwell Metropolitan Borough Council,http://www.sandwell.gov.uk/info/200202/performance_and_spending/1079/payments_over_500,01-May-2023,Housing Revenue Account Capital,DOLPHIN LIFTS MIDLANDS LTD,Housing Revenue Account Capital,4142.61,Deferred Charges/Grant Payments,2324P02_CR00584,123852
Sandwell Metropolitan Borough Council,http://www.sandwell.gov.uk/info/200202/performance_and_spending/1079/payments_over_500,01-May-2023,Housing Revenue Account Capital,VINCI CONSTRUCTION LTD,Housing Revenue Account Capital,4389.23,Deferred Charges/Grant Payments,2324P02_CR00585,36361
Sandwell Metropolitan Borough Council,http://www.sandwell.gov.uk/info/200202/performance_and_spending/1079/payments_over_500,01-May-2023,Housing Revenue Account Capital,VINCI CONSTRUCTION LTD,Housing Revenue Account Capital,4600.46,Deferred Charges/Grant Payments,2324P02_CR00586,36361
Sandwell Metropolitan Borough Council,http://www.sandwell.gov.uk/info/200202/performance_and_spending/1079/payments_over_500,01-May-2023,Housing Revenue Account Capital,AXIS EUROPE PLC  ,Housing Revenue Account Capital,4905.48,Deferred Charges/Grant Payments,2324P02_CR00587,64946
Sandwell Metropolitan Borough Council,http://www.sandwell.gov.uk/info/200202/performance_and_spending/1079/payments_over_500,11-May-2023,Housing Revenue Account Capital,VINCI CONSTRUCTION LTD,Housing Revenue Account Capital,5031.30,Deferred Charges/Grant Payments,2324P02_CR00588,36361
Sandwell Metropolitan Borough Council,http://www.sandwell.gov.uk/info/200202/performance_and_spending/1079/payments_over_500,11-May-2023,Housing Revenue Account Capital,VINCI CONSTRUCTION LTD,Housing Revenue Account Capital,5719.73,Deferred Charges/Grant Payments,2324P02_CR00589,36361
Sandwell Metropolitan Borough Council,http://www.sandwell.gov.uk/info/200202/performance_and_spending/1079/payments_over_500,01-May-2023,Housing Revenue Account Capital,VINCI CONSTRUCTION LTD,Housing Revenue Account Capital,5893.78,Deferred Charges/Grant Payments,2324P02_CR00590,36361
Sandwell Metropolitan Borough Council,http://www.sandwell.gov.uk/info/200202/performance_and_spending/1079/payments_over_500,03-May-2023,Housing Revenue Account Capital,VINCI CONSTRUCTION LTD,Housing Revenue Account Capital,6129.63,Deferred Charges/Grant Payments,2324P02_CR00591,36361
Sandwell Metropolitan Borough Council,http://www.sandwell.gov.uk/info/200202/performance_and_spending/1079/payments_over_500,01-May-2023,Housing Revenue Account Capital,VINCI CONSTRUCTION LTD,Housing Revenue Account Capital,6143.26,Deferred Charges/Grant Payments,2324P02_CR00592,36361
Sandwell Metropolitan Borough Council,http://www.sandwell.gov.uk/info/200202/performance_and_spending/1079/payments_over_500,11-May-2023,Housing Revenue Account Capital,AXIS EUROPE PLC  ,Housing Revenue Account Capital,6283.05,Deferred Charges/Grant Payments,2324P02_CR00593,64946
Sandwell Metropolitan Borough Council,http://www.sandwell.gov.uk/info/200202/performance_and_spending/1079/payments_over_500,11-May-2023,Housing Revenue Account Capital,VINCI CONSTRUCTION LTD,Housing Revenue Account Capital,6334.38,Deferred Charges/Grant Payments,2324P02_CR00594,36361
Sandwell Metropolitan Borough Council,http://www.sandwell.gov.uk/info/200202/performance_and_spending/1079/payments_over_500,11-May-2023,Housing Revenue Account Capital,VINCI CONSTRUCTION LTD,Housing Revenue Account Capital,6569.14,Deferred Charges/Grant Payments,2324P02_CR00595,36361
Sandwell Metropolitan Borough Council,http://www.sandwell.gov.uk/info/200202/performance_and_spending/1079/payments_over_500,01-May-2023,Housing Revenue Account Capital,VINCI CONSTRUCTION LTD,Housing Revenue Account Capital,6581.61,Deferred Charges/Grant Payments,2324P02_CR00596,36361
Sandwell Metropolitan Borough Council,http://www.sandwell.gov.uk/info/200202/performance_and_spending/1079/payments_over_500,01-May-2023,Housing Revenue Account Capital,VINCI CONSTRUCTION LTD,Housing Revenue Account Capital,6647.64,Deferred Charges/Grant Payments,2324P02_CR00597,36361
Sandwell Metropolitan Borough Council,http://www.sandwell.gov.uk/info/200202/performance_and_spending/1079/payments_over_500,11-May-2023,Housing Revenue Account Capital,VINCI CONSTRUCTION LTD,Housing Revenue Account Capital,6724.67,Deferred Charges/Grant Payments,2324P02_CR00598,36361
Sandwell Metropolitan Borough Council,http://www.sandwell.gov.uk/info/200202/performance_and_spending/1079/payments_over_500,03-May-2023,Housing Revenue Account Capital,VINCI CONSTRUCTION LTD,Housing Revenue Account Capital,6822.09,Deferred Charges/Grant Payments,2324P02_CR00599,36361
Sandwell Metropolitan Borough Council,http://www.sandwell.gov.uk/info/200202/performance_and_spending/1079/payments_over_500,01-May-2023,Housing Revenue Account Capital,VINCI CONSTRUCTION LTD,Housing Revenue Account Capital,6960.61,Deferred Charges/Grant Payments,2324P02_CR00600,36361
Sandwell Metropolitan Borough Council,http://www.sandwell.gov.uk/info/200202/performance_and_spending/1079/payments_over_500,15-May-2023,Housing Revenue Account Capital,VINCI CONSTRUCTION LTD,Housing Revenue Account Capital,7180.36,Deferred Charges/Grant Payments,2324P02_CR00601,36361
Sandwell Metropolitan Borough Council,http://www.sandwell.gov.uk/info/200202/performance_and_spending/1079/payments_over_500,01-May-2023,Housing Revenue Account Capital,VINCI CONSTRUCTION LTD,Housing Revenue Account Capital,7337.94,Deferred Charges/Grant Payments,2324P02_CR00602,36361
Sandwell Metropolitan Borough Council,http://www.sandwell.gov.uk/info/200202/performance_and_spending/1079/payments_over_500,01-May-2023,Housing Revenue Account Capital,AXIS EUROPE PLC  ,Housing Revenue Account Capital,7553.11,Deferred Charges/Grant Payments,2324P02_CR00603,64946
Sandwell Metropolitan Borough Council,http://www.sandwell.gov.uk/info/200202/performance_and_spending/1079/payments_over_500,01-May-2023,Housing Revenue Account Capital,VINCI CONSTRUCTION LTD,Housing Revenue Account Capital,7724.66,Deferred Charges/Grant Payments,2324P02_CR00604,36361
Sandwell Metropolitan Borough Council,http://www.sandwell.gov.uk/info/200202/performance_and_spending/1079/payments_over_500,01-May-2023,Housing Revenue Account Capital,AXIS EUROPE PLC  ,Housing Revenue Account Capital,7853.35,Deferred Charges/Grant Payments,2324P02_CR00605,64946
Sandwell Metropolitan Borough Council,http://www.sandwell.gov.uk/info/200202/performance_and_spending/1079/payments_over_500,01-May-2023,Housing Revenue Account Capital,VINCI CONSTRUCTION LTD,Housing Revenue Account Capital,7972.87,Deferred Charges/Grant Payments,2324P02_CR00606,36361
Sandwell Metropolitan Borough Council,http://www.sandwell.gov.uk/info/200202/performance_and_spending/1079/payments_over_500,03-May-2023,Housing Revenue Account Capital,VINCI CONSTRUCTION LTD,Housing Revenue Account Capital,8133.05,Deferred Charges/Grant Payments,2324P02_CR00607,36361
Sandwell Metropolitan Borough Council,http://www.sandwell.gov.uk/info/200202/performance_and_spending/1079/payments_over_500,11-May-2023,Housing Revenue Account Capital,VINCI CONSTRUCTION LTD,Housing Revenue Account Capital,8145.58,Deferred Charges/Grant Payments,2324P02_CR00608,36361
Sandwell Metropolitan Borough Council,http://www.sandwell.gov.uk/info/200202/performance_and_spending/1079/payments_over_500,01-May-2023,Housing Revenue Account Capital,AXIS EUROPE PLC  ,Housing Revenue Account Capital,8199.90,Deferred Charges/Grant Payments,2324P02_CR00609,64946
Sandwell Metropolitan Borough Council,http://www.sandwell.gov.uk/info/200202/performance_and_spending/1079/payments_over_500,01-May-2023,Housing Revenue Account Capital,AXIS EUROPE PLC  ,Housing Revenue Account Capital,8454.58,Deferred Charges/Grant Payments,2324P02_CR00610,64946
Sandwell Metropolitan Borough Council,http://www.sandwell.gov.uk/info/200202/performance_and_spending/1079/payments_over_500,01-May-2023,Housing Revenue Account Capital,AXIS EUROPE PLC  ,Housing Revenue Account Capital,8775.60,Deferred Charges/Grant Payments,2324P02_CR00611,64946
Sandwell Metropolitan Borough Council,http://www.sandwell.gov.uk/info/200202/performance_and_spending/1079/payments_over_500,01-May-2023,Housing Revenue Account Capital,AXIS EUROPE PLC  ,Housing Revenue Account Capital,8935.33,Deferred Charges/Grant Payments,2324P02_CR00612,64946
Sandwell Metropolitan Borough Council,http://www.sandwell.gov.uk/info/200202/performance_and_spending/1079/payments_over_500,01-May-2023,Housing Revenue Account Capital,VINCI CONSTRUCTION LTD,Housing Revenue Account Capital,9259.19,Deferred Charges/Grant Payments,2324P02_CR00613,36361
Sandwell Metropolitan Borough Council,http://www.sandwell.gov.uk/info/200202/performance_and_spending/1079/payments_over_500,01-May-2023,Housing Revenue Account Capital,VINCI CONSTRUCTION LTD,Housing Revenue Account Capital,9789.31,Deferred Charges/Grant Payments,2324P02_CR00614,36361
Sandwell Metropolitan Borough Council,http://www.sandwell.gov.uk/info/200202/performance_and_spending/1079/payments_over_500,01-May-2023,Housing Revenue Account Capital,AXIS EUROPE PLC  ,Housing Revenue Account Capital,11353.12,Deferred Charges/Grant Payments,2324P02_CR00615,64946
Sandwell Metropolitan Borough Council,http://www.sandwell.gov.uk/info/200202/performance_and_spending/1079/payments_over_500,01-May-2023,Housing Revenue Account Capital,AXIS EUROPE PLC  ,Housing Revenue Account Capital,12111.23,Deferred Charges/Grant Payments,2324P02_CR00616,64946
Sandwell Metropolitan Borough Council,http://www.sandwell.gov.uk/info/200202/performance_and_spending/1079/payments_over_500,01-May-2023,Housing Revenue Account Capital,VINCI CONSTRUCTION LTD,Housing Revenue Account Capital,13672.86,Deferred Charges/Grant Payments,2324P02_CR00617,36361
Sandwell Metropolitan Borough Council,http://www.sandwell.gov.uk/info/200202/performance_and_spending/1079/payments_over_500,01-May-2023,Housing Revenue Account Capital,VINCI CONSTRUCTION LTD,Housing Revenue Account Capital,16043.51,Deferred Charges/Grant Payments,2324P02_CR00618,36361
Sandwell Metropolitan Borough Council,http://www.sandwell.gov.uk/info/200202/performance_and_spending/1079/payments_over_500,01-May-2023,Housing Revenue Account Capital,VINCI CONSTRUCTION LTD,Housing Revenue Account Capital,16882.34,Deferred Charges/Grant Payments,2324P02_CR00619,36361
Sandwell Metropolitan Borough Council,http://www.sandwell.gov.uk/info/200202/performance_and_spending/1079/payments_over_500,01-May-2023,Housing Revenue Account Capital,AXIS EUROPE PLC  ,Housing Revenue Account Capital,20437.77,Deferred Charges/Grant Payments,2324P02_CR00620,64946
Sandwell Metropolitan Borough Council,http://www.sandwell.gov.uk/info/200202/performance_and_spending/1079/payments_over_500,17-May-2023,Housing Revenue Account Capital,VINCI CONSTRUCTION LTD,Housing Revenue Account Capital,21255.78,Deferred Charges/Grant Payments,2324P02_CR00621,36361
Sandwell Metropolitan Borough Council,http://www.sandwell.gov.uk/info/200202/performance_and_spending/1079/payments_over_500,11-May-2023,Housing Revenue Account Capital,AXIS EUROPE PLC  ,Housing Revenue Account Capital,24474.92,Deferred Charges/Grant Payments,2324P02_CR00622,64946
Sandwell Metropolitan Borough Council,http://www.sandwell.gov.uk/info/200202/performance_and_spending/1079/payments_over_500,01-May-2023,Housing Revenue Account Capital,PR PROPERTY MAINTENANCE,Housing Revenue Account Capital,32822.10,Deferred Charges/Grant Payments,2324P02_CR00623,33836
Sandwell Metropolitan Borough Council,http://www.sandwell.gov.uk/info/200202/performance_and_spending/1079/payments_over_500,01-May-2023,Housing Revenue Account Capital,VINCI CONSTRUCTION LTD,Housing Revenue Account Capital,66328.75,Deferred Charges/Grant Payments,2324P02_CR00624,36361
Sandwell Metropolitan Borough Council,http://www.sandwell.gov.uk/info/200202/performance_and_spending/1079/payments_over_500,01-May-2023,Housing Revenue Account Capital,REDACTED PERSONAL DATA,Housing Revenue Account Capital,7833.99,Deferred Charges/Grant Payments,2324P02_CR00625,REDACTED PERSONAL DATA
Sandwell Metropolitan Borough Council,http://www.sandwell.gov.uk/info/200202/performance_and_spending/1079/payments_over_500,23-May-2023,Individual School Budgets With Inclusion,BABY STEPS DAY CARE,Individual School Budgets With Inclusion,639.90,Grant Payments,2324P02_CR00626,165672
Sandwell Metropolitan Borough Council,http://www.sandwell.gov.uk/info/200202/performance_and_spending/1079/payments_over_500,23-May-2023,Individual School Budgets With Inclusion,BEEHIVE WB LTD,Individual School Budgets With Inclusion,639.90,Grant Payments,2324P02_CR00627,164780
Sandwell Metropolitan Borough Council,http://www.sandwell.gov.uk/info/200202/performance_and_spending/1079/payments_over_500,23-May-2023,Individual School Budgets With Inclusion,TENDER TROOPS DAY NURSERY AND CHILDREN HUB,Individual School Budgets With Inclusion,1347.30,Grant Payments,2324P02_CR00628,164824
Sandwell Metropolitan Borough Council,http://www.sandwell.gov.uk/info/200202/performance_and_spending/1079/payments_over_500,23-May-2023,Individual School Budgets With Inclusion,ST MICHAELS DAY NURSERY,Individual School Budgets With Inclusion,2223.00,Grant Payments,2324P02_CR00629,01698538
Sandwell Metropolitan Borough Council,http://www.sandwell.gov.uk/info/200202/performance_and_spending/1079/payments_over_500,23-May-2023,Individual School Budgets With Inclusion,CONFEDERATION OF BANGLADESHI ORGANISATIONS (CBO) LIMITED,Individual School Budgets With Inclusion,2445.30,Grant Payments,2324P02_CR00630,10034
Sandwell Metropolitan Borough Council,http://www.sandwell.gov.uk/info/200202/performance_and_spending/1079/payments_over_500,23-May-2023,Individual School Budgets With Inclusion,AL KAHIR SCHOOL,Individual School Budgets With Inclusion,3017.70,Grant Payments,2324P02_CR00631,128728
Sandwell Metropolitan Borough Council,http://www.sandwell.gov.uk/info/200202/performance_and_spending/1079/payments_over_500,23-May-2023,Individual School Budgets With Inclusion,TINY STEPS,Individual School Budgets With Inclusion,3049.20,Grant Payments,2324P02_CR00632,125778
Sandwell Metropolitan Borough Council,http://www.sandwell.gov.uk/info/200202/performance_and_spending/1079/payments_over_500,23-May-2023,Individual School Budgets With Inclusion,LITTLE VALERS PRE SCHOOL,Individual School Budgets With Inclusion,3384.36,Grant Payments,2324P02_CR00633,99107
Sandwell Metropolitan Borough Council,http://www.sandwell.gov.uk/info/200202/performance_and_spending/1079/payments_over_500,23-May-2023,Individual School Budgets With Inclusion,PLAYHOUSE DAY NURSERY,Individual School Budgets With Inclusion,3702.60,Grant Payments,2324P02_CR00634,01586669
Sandwell Metropolitan Borough Council,http://www.sandwell.gov.uk/info/200202/performance_and_spending/1079/payments_over_500,23-May-2023,Individual School Budgets With Inclusion,TWO STEPS PRE-SCHOOL,Individual School Budgets With Inclusion,3817.35,Grant Payments,2324P02_CR00635,109186
Sandwell Metropolitan Borough Council,http://www.sandwell.gov.uk/info/200202/performance_and_spending/1079/payments_over_500,23-May-2023,Individual School Budgets With Inclusion,LITTLE ACADEMY NURSERY,Individual School Budgets With Inclusion,3879.90,Grant Payments,2324P02_CR00636,81904
Sandwell Metropolitan Borough Council,http://www.sandwell.gov.uk/info/200202/performance_and_spending/1079/payments_over_500,23-May-2023,Individual School Budgets With Inclusion,ROOTS & SHOOTS PLAYGROUP,Individual School Budgets With Inclusion,4290.30,Grant Payments,2324P02_CR00637,75502
Sandwell Metropolitan Borough Council,http://www.sandwell.gov.uk/info/200202/performance_and_spending/1079/payments_over_500,23-May-2023,Individual School Budgets With Inclusion,TULIP DAY NURSERY LTD,Individual School Budgets With Inclusion,4446.00,Grant Payments,2324P02_CR00638,152250
Sandwell Metropolitan Borough Council,http://www.sandwell.gov.uk/info/200202/performance_and_spending/1079/payments_over_500,23-May-2023,Individual School Budgets With Inclusion,CATHERINE HOUSE DAY NURSERY,Individual School Budgets With Inclusion,4727.73,Grant Payments,2324P02_CR00639,08587767
Sandwell Metropolitan Borough Council,http://www.sandwell.gov.uk/info/200202/performance_and_spending/1079/payments_over_500,23-May-2023,Individual School Budgets With Inclusion,PRECIOUS TIMES DAY NURSERY,Individual School Budgets With Inclusion,4742.10,Grant Payments,2324P02_CR00640,165946
Sandwell Metropolitan Borough Council,http://www.sandwell.gov.uk/info/200202/performance_and_spending/1079/payments_over_500,10-May-2023,Individual School Budgets With Inclusion,PRECIOUS TIMES DAY NURSERY,Individual School Budgets With Inclusion,4742.10,Grant Payments,2324P02_CR00641,165946
Sandwell Metropolitan Borough Council,http://www.sandwell.gov.uk/info/200202/performance_and_spending/1079/payments_over_500,23-May-2023,Individual School Budgets With Inclusion,WHITECREST PRIMARY SCHOOL        ,Individual School Budgets With Inclusion,4995.00,Grant Payments,2324P02_CR00642,38087
Sandwell Metropolitan Borough Council,http://www.sandwell.gov.uk/info/200202/performance_and_spending/1079/payments_over_500,23-May-2023,Individual School Budgets With Inclusion,CAP DAY NURSERY,Individual School Budgets With Inclusion,5112.90,Grant Payments,2324P02_CR00643,51154
Sandwell Metropolitan Borough Council,http://www.sandwell.gov.uk/info/200202/performance_and_spending/1079/payments_over_500,23-May-2023,Individual School Budgets With Inclusion,LITTLE LEGEND NURSERIES LTD,Individual School Budgets With Inclusion,5220.00,Grant Payments,2324P02_CR00644,117890
Sandwell Metropolitan Borough Council,http://www.sandwell.gov.uk/info/200202/performance_and_spending/1079/payments_over_500,23-May-2023,Individual School Budgets With Inclusion,KANGAROO POUCH CHARLEMONT,Individual School Budgets With Inclusion,5335.20,Grant Payments,2324P02_CR00645,117283
Sandwell Metropolitan Borough Council,http://www.sandwell.gov.uk/info/200202/performance_and_spending/1079/payments_over_500,23-May-2023,Individual School Budgets With Inclusion,STEPPING STONES NURSERY,Individual School Budgets With Inclusion,5604.30,Grant Payments,2324P02_CR00646,50029
Sandwell Metropolitan Borough Council,http://www.sandwell.gov.uk/info/200202/performance_and_spending/1079/payments_over_500,23-May-2023,Individual School Budgets With Inclusion,FATIMA DAY NURSERY,Individual School Budgets With Inclusion,5662.80,Grant Payments,2324P02_CR00647,131343
Sandwell Metropolitan Borough Council,http://www.sandwell.gov.uk/info/200202/performance_and_spending/1079/payments_over_500,23-May-2023,Individual School Budgets With Inclusion,PITTA PATTA DAYCARE,Individual School Budgets With Inclusion,5662.80,Grant Payments,2324P02_CR00648,114742
Sandwell Metropolitan Borough Council,http://www.sandwell.gov.uk/info/200202/performance_and_spending/1079/payments_over_500,23-May-2023,Individual School Budgets With Inclusion,LITTLE STEPPERS,Individual School Budgets With Inclusion,6098.40,Grant Payments,2324P02_CR00649,120240
Sandwell Metropolitan Borough Council,http://www.sandwell.gov.uk/info/200202/performance_and_spending/1079/payments_over_500,23-May-2023,Individual School Budgets With Inclusion,SADWICA DAY NURSERY,Individual School Budgets With Inclusion,6171.00,Grant Payments,2324P02_CR00650,01667892
Sandwell Metropolitan Borough Council,http://www.sandwell.gov.uk/info/200202/performance_and_spending/1079/payments_over_500,23-May-2023,Individual School Budgets With Inclusion,LITTLE ANGELS DAY NURSERY LIMITED,Individual School Budgets With Inclusion,6316.20,Grant Payments,2324P02_CR00651,10207
Sandwell Metropolitan Borough Council,http://www.sandwell.gov.uk/info/200202/performance_and_spending/1079/payments_over_500,23-May-2023,Individual School Budgets With Inclusion,CONIFERS DAY NURSERY LTD,Individual School Budgets With Inclusion,6534.00,Grant Payments,2324P02_CR00652,131957
Sandwell Metropolitan Borough Council,http://www.sandwell.gov.uk/info/200202/performance_and_spending/1079/payments_over_500,23-May-2023,Individual School Budgets With Inclusion,MOORLANDS LITTLE LEARNERS PLAYGROUP,Individual School Budgets With Inclusion,6751.80,Grant Payments,2324P02_CR00653,46390
Sandwell Metropolitan Borough Council,http://www.sandwell.gov.uk/info/200202/performance_and_spending/1079/payments_over_500,23-May-2023,Individual School Budgets With Inclusion,BLOXCIDGE HOUSE DAY NURSERY,Individual School Budgets With Inclusion,7187.40,Grant Payments,2324P02_CR00654,82862
Sandwell Metropolitan Borough Council,http://www.sandwell.gov.uk/info/200202/performance_and_spending/1079/payments_over_500,23-May-2023,Individual School Budgets With Inclusion,MINNS LIMITED,Individual School Budgets With Inclusion,7187.40,Grant Payments,2324P02_CR00655,120067
Sandwell Metropolitan Borough Council,http://www.sandwell.gov.uk/info/200202/performance_and_spending/1079/payments_over_500,23-May-2023,Individual School Budgets With Inclusion,5 STAR DAY NURSERY LIMITED,Individual School Budgets With Inclusion,7252.20,Grant Payments,2324P02_CR00656,105382
Sandwell Metropolitan Borough Council,http://www.sandwell.gov.uk/info/200202/performance_and_spending/1079/payments_over_500,23-May-2023,Individual School Budgets With Inclusion,DAFFODILS NURSERY LTD,Individual School Budgets With Inclusion,7335.90,Grant Payments,2324P02_CR00657,120066
Sandwell Metropolitan Borough Council,http://www.sandwell.gov.uk/info/200202/performance_and_spending/1079/payments_over_500,23-May-2023,Individual School Budgets With Inclusion,FIRST STEPS OLDBURY,Individual School Budgets With Inclusion,7405.20,Grant Payments,2324P02_CR00658,118886
Sandwell Metropolitan Borough Council,http://www.sandwell.gov.uk/info/200202/performance_and_spending/1079/payments_over_500,23-May-2023,Individual School Budgets With Inclusion,SMARTY PANTS @ LIGHTWOODS HOUSE LTD,Individual School Budgets With Inclusion,7465.50,Grant Payments,2324P02_CR00659,130645
Sandwell Metropolitan Borough Council,http://www.sandwell.gov.uk/info/200202/performance_and_spending/1079/payments_over_500,23-May-2023,Individual School Budgets With Inclusion,KANGAROO POUCH AT TIVIDALE,Individual School Budgets With Inclusion,7678.80,Grant Payments,2324P02_CR00660,113715
Sandwell Metropolitan Borough Council,http://www.sandwell.gov.uk/info/200202/performance_and_spending/1079/payments_over_500,23-May-2023,Individual School Budgets With Inclusion,HAPPY DAYS NURSERY (GREETS GREEN),Individual School Budgets With Inclusion,8225.10,Grant Payments,2324P02_CR00661,125840
Sandwell Metropolitan Borough Council,http://www.sandwell.gov.uk/info/200202/performance_and_spending/1079/payments_over_500,23-May-2023,Individual School Budgets With Inclusion,ADVENTURE QUEST (GREAT BRIDGE) LTD,Individual School Budgets With Inclusion,8276.40,Grant Payments,2324P02_CR00662,153563
Sandwell Metropolitan Borough Council,http://www.sandwell.gov.uk/info/200202/performance_and_spending/1079/payments_over_500,23-May-2023,Individual School Budgets With Inclusion,KANGAROO POUCH AT GREAT BRIDGE,Individual School Budgets With Inclusion,8276.40,Grant Payments,2324P02_CR00663,129771
Sandwell Metropolitan Borough Council,http://www.sandwell.gov.uk/info/200202/performance_and_spending/1079/payments_over_500,23-May-2023,Individual School Budgets With Inclusion,KANGAROO POUCH LIMITED,Individual School Budgets With Inclusion,8276.40,Grant Payments,2324P02_CR00664,106981
Sandwell Metropolitan Borough Council,http://www.sandwell.gov.uk/info/200202/performance_and_spending/1079/payments_over_500,23-May-2023,Individual School Budgets With Inclusion,BOOKWORMS DAYCARE LIMITED,Individual School Budgets With Inclusion,8406.45,Grant Payments,2324P02_CR00665,114741
Sandwell Metropolitan Borough Council,http://www.sandwell.gov.uk/info/200202/performance_and_spending/1079/payments_over_500,23-May-2023,Individual School Budgets With Inclusion,JUNIPER'S PRESCHOOL,Individual School Budgets With Inclusion,8406.45,Grant Payments,2324P02_CR00666,154579
Sandwell Metropolitan Borough Council,http://www.sandwell.gov.uk/info/200202/performance_and_spending/1079/payments_over_500,23-May-2023,Individual School Budgets With Inclusion,N & K VARMA LIMITED T/A (KIDDIES PLAYHOUSE TIPTON),Individual School Budgets With Inclusion,8494.20,Grant Payments,2324P02_CR00667,26124
Sandwell Metropolitan Borough Council,http://www.sandwell.gov.uk/info/200202/performance_and_spending/1079/payments_over_500,23-May-2023,Individual School Budgets With Inclusion,SPON LANE DAY NURSERY LIMITED,Individual School Budgets With Inclusion,8669.70,Grant Payments,2324P02_CR00668,127024
Sandwell Metropolitan Borough Council,http://www.sandwell.gov.uk/info/200202/performance_and_spending/1079/payments_over_500,23-May-2023,Individual School Budgets With Inclusion,5 STAR DAY NURSERY - OLDBURY,Individual School Budgets With Inclusion,8712.00,Grant Payments,2324P02_CR00669,120730
Sandwell Metropolitan Borough Council,http://www.sandwell.gov.uk/info/200202/performance_and_spending/1079/payments_over_500,23-May-2023,Individual School Budgets With Inclusion,GNG NURSERY,Individual School Budgets With Inclusion,8712.00,Grant Payments,2324P02_CR00670,114805
Sandwell Metropolitan Borough Council,http://www.sandwell.gov.uk/info/200202/performance_and_spending/1079/payments_over_500,23-May-2023,Individual School Budgets With Inclusion,TIP TOP DAY NURSERY WEDNESBURY,Individual School Budgets With Inclusion,8712.00,Grant Payments,2324P02_CR00671,147082
Sandwell Metropolitan Borough Council,http://www.sandwell.gov.uk/info/200202/performance_and_spending/1079/payments_over_500,23-May-2023,Individual School Budgets With Inclusion,LITTLE LEARNERS LTD,Individual School Budgets With Inclusion,8757.45,Grant Payments,2324P02_CR00672,01424133
Sandwell Metropolitan Borough Council,http://www.sandwell.gov.uk/info/200202/performance_and_spending/1079/payments_over_500,23-May-2023,Individual School Budgets With Inclusion,BUSY BEE NURSERY,Individual School Budgets With Inclusion,8981.25,Grant Payments,2324P02_CR00673,01222577
Sandwell Metropolitan Borough Council,http://www.sandwell.gov.uk/info/200202/performance_and_spending/1079/payments_over_500,23-May-2023,Individual School Budgets With Inclusion,LITTLE SAPLINGS CHILDCARE CENTRES,Individual School Budgets With Inclusion,9268.65,Grant Payments,2324P02_CR00674,131043
Sandwell Metropolitan Borough Council,http://www.sandwell.gov.uk/info/200202/performance_and_spending/1079/payments_over_500,23-May-2023,Individual School Budgets With Inclusion,TIPTON NURSERY,Individual School Budgets With Inclusion,9336.60,Grant Payments,2324P02_CR00675,89881
Sandwell Metropolitan Borough Council,http://www.sandwell.gov.uk/info/200202/performance_and_spending/1079/payments_over_500,23-May-2023,Individual School Budgets With Inclusion,THE TODDLER HOUSE LIMITED,Individual School Budgets With Inclusion,9365.40,Grant Payments,2324P02_CR00676,122166
Sandwell Metropolitan Borough Council,http://www.sandwell.gov.uk/info/200202/performance_and_spending/1079/payments_over_500,23-May-2023,Individual School Budgets With Inclusion,PERRYFIELDS PRE SCHOOL,Individual School Budgets With Inclusion,9750.05,Grant Payments,2324P02_CR00677,18879
Sandwell Metropolitan Borough Council,http://www.sandwell.gov.uk/info/200202/performance_and_spending/1079/payments_over_500,23-May-2023,Individual School Budgets With Inclusion,THE WONDER YEARS DAY NURSERY LIMITED,Individual School Budgets With Inclusion,9801.00,Grant Payments,2324P02_CR00678,01647249
Sandwell Metropolitan Borough Council,http://www.sandwell.gov.uk/info/200202/performance_and_spending/1079/payments_over_500,23-May-2023,Individual School Budgets With Inclusion,TINY TOEZ LIMITED,Individual School Budgets With Inclusion,10025.10,Grant Payments,2324P02_CR00679,23618
Sandwell Metropolitan Borough Council,http://www.sandwell.gov.uk/info/200202/performance_and_spending/1079/payments_over_500,23-May-2023,Individual School Budgets With Inclusion,OUR LADY AND ST HUBERTS CATHOLIC PRIMARY SCHOOL         ,Individual School Budgets With Inclusion,10105.92,Grant Payments,2324P02_CR00680,61053
Sandwell Metropolitan Borough Council,http://www.sandwell.gov.uk/info/200202/performance_and_spending/1079/payments_over_500,23-May-2023,Individual School Budgets With Inclusion,LILLIPUT LODGE CHILDRENS DAY NURSERY,Individual School Budgets With Inclusion,10130.85,Grant Payments,2324P02_CR00681,2980
Sandwell Metropolitan Borough Council,http://www.sandwell.gov.uk/info/200202/performance_and_spending/1079/payments_over_500,23-May-2023,Individual School Budgets With Inclusion,FIREFLIES NURSERY LIMITED,Individual School Budgets With Inclusion,10236.60,Grant Payments,2324P02_CR00682,124120
Sandwell Metropolitan Borough Council,http://www.sandwell.gov.uk/info/200202/performance_and_spending/1079/payments_over_500,23-May-2023,Individual School Budgets With Inclusion,HUMPTY DUMPTYS DAY NURSERY,Individual School Budgets With Inclusion,10236.60,Grant Payments,2324P02_CR00683,08510771
Sandwell Metropolitan Borough Council,http://www.sandwell.gov.uk/info/200202/performance_and_spending/1079/payments_over_500,23-May-2023,Individual School Budgets With Inclusion,MINI MONKEYS LTD,Individual School Budgets With Inclusion,10236.60,Grant Payments,2324P02_CR00684,114818
Sandwell Metropolitan Borough Council,http://www.sandwell.gov.uk/info/200202/performance_and_spending/1079/payments_over_500,23-May-2023,Individual School Budgets With Inclusion,UNITED KIDS LIMITED,Individual School Budgets With Inclusion,10236.60,Grant Payments,2324P02_CR00685,136360
Sandwell Metropolitan Borough Council,http://www.sandwell.gov.uk/info/200202/performance_and_spending/1079/payments_over_500,23-May-2023,Individual School Budgets With Inclusion,THE FAMILY NURSERY COMPANY LTD,Individual School Budgets With Inclusion,10454.40,Grant Payments,2324P02_CR00686,89879
Sandwell Metropolitan Borough Council,http://www.sandwell.gov.uk/info/200202/performance_and_spending/1079/payments_over_500,23-May-2023,Individual School Budgets With Inclusion,FIRST STEPS DAY NURSERY,Individual School Budgets With Inclusion,10890.00,Grant Payments,2324P02_CR00687,51155
Sandwell Metropolitan Borough Council,http://www.sandwell.gov.uk/info/200202/performance_and_spending/1079/payments_over_500,23-May-2023,Individual School Budgets With Inclusion,LOLA BELLES PRIVATE DAY NURSERY,Individual School Budgets With Inclusion,11208.60,Grant Payments,2324P02_CR00688,89271
Sandwell Metropolitan Borough Council,http://www.sandwell.gov.uk/info/200202/performance_and_spending/1079/payments_over_500,23-May-2023,Individual School Budgets With Inclusion,BANANA MOON DAY NURSERY,Individual School Budgets With Inclusion,11325.60,Grant Payments,2324P02_CR00689,124220
Sandwell Metropolitan Borough Council,http://www.sandwell.gov.uk/info/200202/performance_and_spending/1079/payments_over_500,23-May-2023,Individual School Budgets With Inclusion,ROWLEY VILLAGE DAY NURSERY,Individual School Budgets With Inclusion,11325.60,Grant Payments,2324P02_CR00690,24228
Sandwell Metropolitan Borough Council,http://www.sandwell.gov.uk/info/200202/performance_and_spending/1079/payments_over_500,23-May-2023,Individual School Budgets With Inclusion,ABC DAY NURSERY & PRE SCHOOL LTD,Individual School Budgets With Inclusion,11424.15,Grant Payments,2324P02_CR00691,01472823
Sandwell Metropolitan Borough Council,http://www.sandwell.gov.uk/info/200202/performance_and_spending/1079/payments_over_500,23-May-2023,Individual School Budgets With Inclusion,TIMBERTREE NEIGHBOURHOOD NURSERY,Individual School Budgets With Inclusion,11855.25,Grant Payments,2324P02_CR00692,135664
Sandwell Metropolitan Borough Council,http://www.sandwell.gov.uk/info/200202/performance_and_spending/1079/payments_over_500,23-May-2023,Individual School Budgets With Inclusion,BRIGHT LIGHTS DAY NURSERY,Individual School Budgets With Inclusion,12004.20,Grant Payments,2324P02_CR00693,89877
Sandwell Metropolitan Borough Council,http://www.sandwell.gov.uk/info/200202/performance_and_spending/1079/payments_over_500,23-May-2023,Individual School Budgets With Inclusion,RAK DAY CARE LTD T/A HAPPY VALLEY PRE SCHOOL LTD,Individual School Budgets With Inclusion,12414.60,Grant Payments,2324P02_CR00694,01572212
Sandwell Metropolitan Borough Council,http://www.sandwell.gov.uk/info/200202/performance_and_spending/1079/payments_over_500,23-May-2023,Individual School Budgets With Inclusion,SANTOS DAY NURSERIES,Individual School Budgets With Inclusion,13011.30,Grant Payments,2324P02_CR00695,129262
Sandwell Metropolitan Borough Council,http://www.sandwell.gov.uk/info/200202/performance_and_spending/1079/payments_over_500,23-May-2023,Individual School Budgets With Inclusion,GENIUS GEMS,Individual School Budgets With Inclusion,13024.44,Grant Payments,2324P02_CR00696,160606
Sandwell Metropolitan Borough Council,http://www.sandwell.gov.uk/info/200202/performance_and_spending/1079/payments_over_500,23-May-2023,Individual School Budgets With Inclusion,UNITED KIDS CHILDCARE,Individual School Budgets With Inclusion,13148.55,Grant Payments,2324P02_CR00697,134806
Sandwell Metropolitan Borough Council,http://www.sandwell.gov.uk/info/200202/performance_and_spending/1079/payments_over_500,23-May-2023,Individual School Budgets With Inclusion,WEST BROMWICH & DISTRICT Y.M.C.A. COMMUNITY ENTERPRISES,Individual School Budgets With Inclusion,13364.64,Grant Payments,2324P02_CR00698,01088376
Sandwell Metropolitan Borough Council,http://www.sandwell.gov.uk/info/200202/performance_and_spending/1079/payments_over_500,23-May-2023,Individual School Budgets With Inclusion,SMARTY PANTS PRIVATE DAY NURSERY LTD,Individual School Budgets With Inclusion,13503.60,Grant Payments,2324P02_CR00699,74037
Sandwell Metropolitan Borough Council,http://www.sandwell.gov.uk/info/200202/performance_and_spending/1079/payments_over_500,23-May-2023,Individual School Budgets With Inclusion,FAIRYTALES NURSERY LTD,Individual School Budgets With Inclusion,13579.65,Grant Payments,2324P02_CR00700,106247
Sandwell Metropolitan Borough Council,http://www.sandwell.gov.uk/info/200202/performance_and_spending/1079/payments_over_500,23-May-2023,Individual School Budgets With Inclusion,TIDDLYWINKS KIDDYS NURSERY LIMITED,Individual School Budgets With Inclusion,14157.00,Grant Payments,2324P02_CR00701,110667
Sandwell Metropolitan Borough Council,http://www.sandwell.gov.uk/info/200202/performance_and_spending/1079/payments_over_500,23-May-2023,Individual School Budgets With Inclusion,TIPTON TODDLERS DAY NURSERY,Individual School Budgets With Inclusion,15196.28,Grant Payments,2324P02_CR00702,4397
Sandwell Metropolitan Borough Council,http://www.sandwell.gov.uk/info/200202/performance_and_spending/1079/payments_over_500,23-May-2023,Individual School Budgets With Inclusion,RARE WOOD LIMITED,Individual School Budgets With Inclusion,15338.70,Grant Payments,2324P02_CR00703,20167
Sandwell Metropolitan Borough Council,http://www.sandwell.gov.uk/info/200202/performance_and_spending/1079/payments_over_500,23-May-2023,Individual School Budgets With Inclusion,SANDWELL NHS TRUST DAY NURSERY,Individual School Budgets With Inclusion,16335.00,Grant Payments,2324P02_CR00704,40788
Sandwell Metropolitan Borough Council,http://www.sandwell.gov.uk/info/200202/performance_and_spending/1079/payments_over_500,23-May-2023,Individual School Budgets With Inclusion,LITTLE EXPLORERS (WEST MIDLANDS) LTD,Individual School Budgets With Inclusion,17641.80,Grant Payments,2324P02_CR00705,114804
Sandwell Metropolitan Borough Council,http://www.sandwell.gov.uk/info/200202/performance_and_spending/1079/payments_over_500,23-May-2023,Individual School Budgets With Inclusion,TINY WOODS PRE SCHOOL,Individual School Budgets With Inclusion,17703.90,Grant Payments,2324P02_CR00706,91788
Sandwell Metropolitan Borough Council,http://www.sandwell.gov.uk/info/200202/performance_and_spending/1079/payments_over_500,23-May-2023,Individual School Budgets With Inclusion,ST HUBERTS PRE-SCHOOL PLAYGROUP 2,Individual School Budgets With Inclusion,19097.73,Grant Payments,2324P02_CR00707,123074
Sandwell Metropolitan Borough Council,http://www.sandwell.gov.uk/info/200202/performance_and_spending/1079/payments_over_500,23-May-2023,Individual School Budgets With Inclusion,LITTLE WENDY HOUSE DAY NURSERY,Individual School Budgets With Inclusion,19602.00,Grant Payments,2324P02_CR00708,91544
Sandwell Metropolitan Borough Council,http://www.sandwell.gov.uk/info/200202/performance_and_spending/1079/payments_over_500,23-May-2023,Individual School Budgets With Inclusion,WIGGLES & GIGGLES LTD,Individual School Budgets With Inclusion,20304.81,Grant Payments,2324P02_CR00709,01674799
Sandwell Metropolitan Borough Council,http://www.sandwell.gov.uk/info/200202/performance_and_spending/1079/payments_over_500,23-May-2023,Individual School Budgets With Inclusion,TICK TOCK DAY NURSERY LTD,Individual School Budgets With Inclusion,20691.00,Grant Payments,2324P02_CR00710,9391
Sandwell Metropolitan Borough Council,http://www.sandwell.gov.uk/info/200202/performance_and_spending/1079/payments_over_500,23-May-2023,Individual School Budgets With Inclusion,THE RIVERS MULTI ACADEMY TRUST,Individual School Budgets With Inclusion,24829.20,Grant Payments,2324P02_CR00711,61014
Sandwell Metropolitan Borough Council,http://www.sandwell.gov.uk/info/200202/performance_and_spending/1079/payments_over_500,23-May-2023,Individual School Budgets With Inclusion,WONDERLAND CHILDRENS DAY NURSERY (UK) LTD,Individual School Budgets With Inclusion,24829.20,Grant Payments,2324P02_CR00712,50852
Sandwell Metropolitan Borough Council,http://www.sandwell.gov.uk/info/200202/performance_and_spending/1079/payments_over_500,23-May-2023,Individual School Budgets With Inclusion,UNICORN DAY NURSERY,Individual School Budgets With Inclusion,29474.82,Grant Payments,2324P02_CR00713,91543
Sandwell Metropolitan Borough Council,http://www.sandwell.gov.uk/info/200202/performance_and_spending/1079/payments_over_500,23-May-2023,Individual School Budgets With Inclusion,LAVENDER FARM DAY NURSERY,Individual School Budgets With Inclusion,30927.60,Grant Payments,2324P02_CR00714,65596
Sandwell Metropolitan Borough Council,http://www.sandwell.gov.uk/info/200202/performance_and_spending/1079/payments_over_500,23-May-2023,Individual School Budgets With Inclusion,KAI DRUMS,Individual School Budgets With Inclusion,9053.10,Grant Payments,2324P02_CR00715,120729
Sandwell Metropolitan Borough Council,http://www.sandwell.gov.uk/info/200202/performance_and_spending/1079/payments_over_500,23-May-2023,Individual School Budgets With Inclusion,NATALIE WESTON,Individual School Budgets With Inclusion,511.92,Grant Payments,2324P02_CR00716,152056
Sandwell Metropolitan Borough Council,http://www.sandwell.gov.uk/info/200202/performance_and_spending/1079/payments_over_500,23-May-2023,Individual School Budgets With Inclusion,CAROLINE HENDERSON,Individual School Budgets With Inclusion,639.90,Grant Payments,2324P02_CR00717,129980
Sandwell Metropolitan Borough Council,http://www.sandwell.gov.uk/info/200202/performance_and_spending/1079/payments_over_500,23-May-2023,Individual School Budgets With Inclusion,DONNA CLEARY,Individual School Budgets With Inclusion,639.90,Grant Payments,2324P02_CR00718,118531
Sandwell Metropolitan Borough Council,http://www.sandwell.gov.uk/info/200202/performance_and_spending/1079/payments_over_500,23-May-2023,Individual School Budgets With Inclusion,THERESA DEAKIN,Individual School Budgets With Inclusion,639.90,Grant Payments,2324P02_CR00719,39468
Sandwell Metropolitan Borough Council,http://www.sandwell.gov.uk/info/200202/performance_and_spending/1079/payments_over_500,23-May-2023,Individual School Budgets With Inclusion,LISA HINTON,Individual School Budgets With Inclusion,653.40,Grant Payments,2324P02_CR00720,92923
Sandwell Metropolitan Borough Council,http://www.sandwell.gov.uk/info/200202/performance_and_spending/1079/payments_over_500,23-May-2023,Individual School Budgets With Inclusion,CAROLINE TAVARES,Individual School Budgets With Inclusion,673.65,Grant Payments,2324P02_CR00721,112188
Sandwell Metropolitan Borough Council,http://www.sandwell.gov.uk/info/200202/performance_and_spending/1079/payments_over_500,23-May-2023,Individual School Budgets With Inclusion,ANNE MARIE JACKSON-HEPBURN,Individual School Budgets With Inclusion,696.96,Grant Payments,2324P02_CR00722,162845
Sandwell Metropolitan Borough Council,http://www.sandwell.gov.uk/info/200202/performance_and_spending/1079/payments_over_500,23-May-2023,Individual School Budgets With Inclusion,SARAH HOWEY,Individual School Budgets With Inclusion,853.20,Grant Payments,2324P02_CR00723,140888
Sandwell Metropolitan Borough Council,http://www.sandwell.gov.uk/info/200202/performance_and_spending/1079/payments_over_500,23-May-2023,Individual School Budgets With Inclusion,ROWINA WINDSOR,Individual School Budgets With Inclusion,862.20,Grant Payments,2324P02_CR00724,138305
Sandwell Metropolitan Borough Council,http://www.sandwell.gov.uk/info/200202/performance_and_spending/1079/payments_over_500,23-May-2023,Individual School Budgets With Inclusion,JENNIE THOMAS,Individual School Budgets With Inclusion,871.20,Grant Payments,2324P02_CR00725,134322
Sandwell Metropolitan Borough Council,http://www.sandwell.gov.uk/info/200202/performance_and_spending/1079/payments_over_500,23-May-2023,Individual School Budgets With Inclusion,LEEANNE ADAMS,Individual School Budgets With Inclusion,871.20,Grant Payments,2324P02_CR00726,134517
Sandwell Metropolitan Borough Council,http://www.sandwell.gov.uk/info/200202/performance_and_spending/1079/payments_over_500,23-May-2023,Individual School Budgets With Inclusion,CLARE O'DRISCOLL,Individual School Budgets With Inclusion,883.76,Grant Payments,2324P02_CR00727,129659
Sandwell Metropolitan Borough Council,http://www.sandwell.gov.uk/info/200202/performance_and_spending/1079/payments_over_500,23-May-2023,Individual School Budgets With Inclusion,MICHAELA MOSELEY,Individual School Budgets With Inclusion,898.20,Grant Payments,2324P02_CR00728,121672
Sandwell Metropolitan Borough Council,http://www.sandwell.gov.uk/info/200202/performance_and_spending/1079/payments_over_500,23-May-2023,Individual School Budgets With Inclusion,REKA ONWUMELU,Individual School Budgets With Inclusion,995.40,Grant Payments,2324P02_CR00729,123887
Sandwell Metropolitan Borough Council,http://www.sandwell.gov.uk/info/200202/performance_and_spending/1079/payments_over_500,23-May-2023,Individual School Budgets With Inclusion,CARA PRATT,Individual School Budgets With Inclusion,1066.50,Grant Payments,2324P02_CR00730,140537
Sandwell Metropolitan Borough Council,http://www.sandwell.gov.uk/info/200202/performance_and_spending/1079/payments_over_500,23-May-2023,Individual School Budgets With Inclusion,RUPINDER KAUR.,Individual School Budgets With Inclusion,1066.50,Grant Payments,2324P02_CR00731,143707
Sandwell Metropolitan Borough Council,http://www.sandwell.gov.uk/info/200202/performance_and_spending/1079/payments_over_500,23-May-2023,Individual School Budgets With Inclusion,LEKA HOWE,Individual School Budgets With Inclusion,1089.00,Grant Payments,2324P02_CR00732,119503
Sandwell Metropolitan Borough Council,http://www.sandwell.gov.uk/info/200202/performance_and_spending/1079/payments_over_500,23-May-2023,Individual School Budgets With Inclusion,CLAIRE PARTRIDGE,Individual School Budgets With Inclusion,1293.30,Grant Payments,2324P02_CR00733,123143
Sandwell Metropolitan Borough Council,http://www.sandwell.gov.uk/info/200202/performance_and_spending/1079/payments_over_500,23-May-2023,Individual School Budgets With Inclusion,MONIQUE BROWN.,Individual School Budgets With Inclusion,1347.30,Grant Payments,2324P02_CR00734,127112
Sandwell Metropolitan Borough Council,http://www.sandwell.gov.uk/info/200202/performance_and_spending/1079/payments_over_500,23-May-2023,Individual School Budgets With Inclusion,ABIGAIL CRUMPTON,Individual School Budgets With Inclusion,1571.85,Grant Payments,2324P02_CR00735,130863
Sandwell Metropolitan Borough Council,http://www.sandwell.gov.uk/info/200202/performance_and_spending/1079/payments_over_500,23-May-2023,Individual School Budgets With Inclusion,VANESSA BILLINGSLEY,Individual School Budgets With Inclusion,1706.40,Grant Payments,2324P02_CR00736,125216
Sandwell Metropolitan Borough Council,http://www.sandwell.gov.uk/info/200202/performance_and_spending/1079/payments_over_500,23-May-2023,Individual School Budgets With Inclusion,SATVINDER KAUR,Individual School Budgets With Inclusion,1919.70,Grant Payments,2324P02_CR00737,131042
Sandwell Metropolitan Borough Council,http://www.sandwell.gov.uk/info/200202/performance_and_spending/1079/payments_over_500,23-May-2023,Individual School Budgets With Inclusion,HAYLEY TURNER,Individual School Budgets With Inclusion,2133.00,Grant Payments,2324P02_CR00738,162824
